BODY,BODY NAME,SERVICE CODE,ORGANISATIONAL UNIT,ORGANISATIONAL UNIT CODE,EXPENDITURE CATEGORY,EXPENDITURE CODE,DATE (POSTING DATE),TRANSACTION NUMBER,AMOUNT,SUPPLIER NAME,SUPPLIER ID
WARRINGTON BOROUGH COUNCIL,http://opendatacommunities.org/id/unitary-authority/warrington,RSC,One - Off ICT Costs,23200,Computer Software - Maintenance,450850,10/01/2022,5100482865,1200,Civica Uk Ltd,100585
WARRINGTON BOROUGH COUNCIL,http://opendatacommunities.org/id/unitary-authority/warrington,ET0,Trees & Woodland Services,41421,Training,190150,18/02/2022,5100487190,1030,Arboricultural Association,116373
WARRINGTON BOROUGH COUNCIL,http://opendatacommunities.org/id/unitary-authority/warrington,RSC,ICT Projects,23300,ICT Comms - Line Purchase,450150,21/03/2022,5100490425,2272.83,TNP - The Networking People,110271
WARRINGTON BOROUGH COUNCIL,http://opendatacommunities.org/id/unitary-authority/warrington,RSC,Schools & Libraries Internet Project,23030,ICT Comms - Line Rental,450200,21/03/2022,5100490425,1764.5,TNP - The Networking People,110271
WARRINGTON BOROUGH COUNCIL,http://opendatacommunities.org/id/unitary-authority/warrington,ET0,Transport Holding Account,41311,Maintenance Work - Sub Contractors,301150,20/07/2022,5100491817,525,Quartix Ltd,115590
WARRINGTON BOROUGH COUNCIL,http://opendatacommunities.org/id/unitary-authority/warrington,ET0,Transport Holding Account,41311,Vehicle Hire Charges,320000,05/07/2022,5100492335,609,F R Sharrock Ltd,105122
WARRINGTON BOROUGH COUNCIL,http://opendatacommunities.org/id/unitary-authority/warrington,ET0,Transport Holding Account,41311,Vehicle Hire Charges,320000,26/07/2022,5100492549,3600,F G Rowland Ltd,102555
WARRINGTON BOROUGH COUNCIL,http://opendatacommunities.org/id/unitary-authority/warrington,FWB,BCF - Equipment Store,54930,Equipment Purchase & Contract,400000,13/04/2022,5100492949,712.32,Prism Medical UK,108616
WARRINGTON BOROUGH COUNCIL,http://opendatacommunities.org/id/unitary-authority/warrington,FWB,BCF - Equipment Store,54930,Equipment Purchase & Contract,400000,13/04/2022,5100492949,572.5,Prism Medical UK,108616
WARRINGTON BOROUGH COUNCIL,http://opendatacommunities.org/id/unitary-authority/warrington,ET0,Transport Holding Account,41311,Veh Maint. Materials,300000,13/04/2022,5100492950,1300,Tennants Distribution Limited,103720
WARRINGTON BOROUGH COUNCIL,http://opendatacommunities.org/id/unitary-authority/warrington,ET0,Transport Holding Account,41311,Veh Maint. Materials,300000,13/04/2022,5100492951,650,Tennants Distribution Limited,103720
WARRINGTON BOROUGH COUNCIL,http://opendatacommunities.org/id/unitary-authority/warrington,ET0,Traffic and Safety,44350,Consult.& Prof. Serv,440000,04/07/2022,5100493008,1111.66,Step up Security Ltd,116851
WARRINGTON BOROUGH COUNCIL,http://opendatacommunities.org/id/unitary-authority/warrington,ET0,P.F.I.,43630,Fees (Including Agents Fees),441450,19/04/2022,5100493327,74303,Your Housing Group,102933
WARRINGTON BOROUGH COUNCIL,http://opendatacommunities.org/id/unitary-authority/warrington,ET0,Street Lighting Client,44241,Lighting Energy Char,531550,12/05/2022,5100493471,998.94,Npower Electricity,101884
WARRINGTON BOROUGH COUNCIL,http://opendatacommunities.org/id/unitary-authority/warrington,ET0,Transport Holding Account,41311,Veh Maint. Materials,300000,20/04/2022,5100493646,650,Tennants Distribution Limited,103720
WARRINGTON BOROUGH COUNCIL,http://opendatacommunities.org/id/unitary-authority/warrington,ET0,Street Lighting Client,44241,Lighting Energy Char,531550,20/05/2022,5100493833,14042.97,Npower Electricity,101884
WARRINGTON BOROUGH COUNCIL,http://opendatacommunities.org/id/unitary-authority/warrington,RSC,Printing & Graphics,23040,Materials,400500,13/06/2022,5100493879,1920,WL Coller Ltd,106299
WARRINGTON BOROUGH COUNCIL,http://opendatacommunities.org/id/unitary-authority/warrington,ET0,On Street Car Parking,44323,Equipment Purchase & Contract,400000,07/07/2022,5100494779,1004.1,Patrol,103313
WARRINGTON BOROUGH COUNCIL,http://opendatacommunities.org/id/unitary-authority/warrington,ET0,Transport Holding Account,41311,Veh Maint. Materials,300000,06/07/2022,5100495222,650,Tennants Distribution Limited,103720
WARRINGTON BOROUGH COUNCIL,http://opendatacommunities.org/id/unitary-authority/warrington,ENO,Highways LTP,82004,Permanent Traffic Regulation Orders,442350,13/07/2022,5100495306,1630.42,TMP UK Ltd,108498
WARRINGTON BOROUGH COUNCIL,http://opendatacommunities.org/id/unitary-authority/warrington,FWB,BCF - Equipment Store,54930,Annual Maintenance,442100,26/07/2022,5100495357,3984.94,Prism Medical UK,108616
WARRINGTON BOROUGH COUNCIL,http://opendatacommunities.org/id/unitary-authority/warrington,ET0,Transport Holding Account,41311,Vehicle Hire Charges,320000,26/07/2022,5100495361,638,F R Sharrock Ltd,105122
WARRINGTON BOROUGH COUNCIL,http://opendatacommunities.org/id/unitary-authority/warrington,FWB,DSG Independent School Fees,32011,Fees (Including Agents Fees),441450,20/07/2022,5100495556,15782.7,Kedleston (Olson House) Limited,117893
WARRINGTON BOROUGH COUNCIL,http://opendatacommunities.org/id/unitary-authority/warrington,ET0,Street Lighting Client,44241,Lighting Energy Char,531550,09/05/2022,5100495582,11247.21,Npower Electricity,101884
WARRINGTON BOROUGH COUNCIL,http://opendatacommunities.org/id/unitary-authority/warrington,ET0,Street Lighting Client,44241,Lighting Energy Char,531550,10/05/2022,5100495719,89316.24,Npower Electricity,101884
WARRINGTON BOROUGH COUNCIL,http://opendatacommunities.org/id/unitary-authority/warrington,RSC,Democratic Services,11400,Exhibitions,442450,13/05/2022,5100496130,2180,Improvement and Development Agency,104893
WARRINGTON BOROUGH COUNCIL,http://opendatacommunities.org/id/unitary-authority/warrington,ET0,Transport Holding Account,41311,Veh Maint. Materials,300000,04/07/2022,5100496153,823.61,Turner Groundscare,105201
WARRINGTON BOROUGH COUNCIL,http://opendatacommunities.org/id/unitary-authority/warrington,ET0,Street Lighting Client,44241,Lighting Energy Char,531550,13/05/2022,5100496178,4428.94,Npower Electricity,101884
WARRINGTON BOROUGH COUNCIL,http://opendatacommunities.org/id/unitary-authority/warrington,ET0,Street Lighting Client,44241,Lighting Energy Char,531550,13/05/2022,5100496179,5290.29,Npower Electricity,101884
WARRINGTON BOROUGH COUNCIL,http://opendatacommunities.org/id/unitary-authority/warrington,ET0,Street Lighting Client,44241,Lighting Energy Char,531550,13/05/2022,5100496180,5847.23,Npower Electricity,101884
WARRINGTON BOROUGH COUNCIL,http://opendatacommunities.org/id/unitary-authority/warrington,ET0,Street Lighting Client,44241,Lighting Energy Char,531550,13/05/2022,5100496182,53222.83,Npower Electricity,101884
WARRINGTON BOROUGH COUNCIL,http://opendatacommunities.org/id/unitary-authority/warrington,ET0,Transport Holding Account,41311,Veh Maint. Materials,300000,20/07/2022,5100496336,757.68,Gunn Jcb Ltd,104763
WARRINGTON BOROUGH COUNCIL,http://opendatacommunities.org/id/unitary-authority/warrington,ENO,Highways LTP,82004,Permanent Traffic Regulation Orders,442350,28/07/2022,5100496350,1357.27,TMP UK Ltd,108498
WARRINGTON BOROUGH COUNCIL,http://opendatacommunities.org/id/unitary-authority/warrington,ET0,Transport Holding Account,41311,Vehicle Hire Charges,320000,07/07/2022,5100496354,837.01,Hire Station North,104819
WARRINGTON BOROUGH COUNCIL,http://opendatacommunities.org/id/unitary-authority/warrington,ET0,School Brow Depot,41330,Public Survey Costs,440500,06/07/2022,5100496543,570,Marlowe Fire And Security,102215
WARRINGTON BOROUGH COUNCIL,http://opendatacommunities.org/id/unitary-authority/warrington,ET0,Construction Stores Overhead Account,41320,Uniforms,420000,20/07/2022,5100496829,505.68,SMI INT Group Ltd,117262
WARRINGTON BOROUGH COUNCIL,http://opendatacommunities.org/id/unitary-authority/warrington,ET0,Academy Way Pay & Display Car Park,44327,Equipment Purchase & Contract,400000,19/05/2022,5100496910,736,Flowbird Smart City UK Ltd,100854
WARRINGTON BOROUGH COUNCIL,http://opendatacommunities.org/id/unitary-authority/warrington,FWB,DSG Post-16 Special Educational Needs,32309,Fees (Including Agents Fees),441450,13/07/2022,5100497187,4949.28,Weston Point College,110596
WARRINGTON BOROUGH COUNCIL,http://opendatacommunities.org/id/unitary-authority/warrington,ET0,Street Lighting Client,44241,Lighting Energy Char,531550,23/05/2022,5100497360,623.41,Npower Electricity,101884
WARRINGTON BOROUGH COUNCIL,http://opendatacommunities.org/id/unitary-authority/warrington,ENO,Highways LTP,82004,Technical Surveys,532050,13/07/2022,5100497486,2100,Malcolm Hughes Land Surveyors Ltd,115042
WARRINGTON BOROUGH COUNCIL,http://opendatacommunities.org/id/unitary-authority/warrington,ET0,Taxi and Private Hire Licensing,44450,Consult.& Prof. Serv,440000,07/07/2022,5100497540,1129.24,Oyster Partnership,116595
WARRINGTON BOROUGH COUNCIL,http://opendatacommunities.org/id/unitary-authority/warrington,ET0,Highways Drainage,44270,Materials,400500,06/07/2022,5100497542,860.75,M & P Survey Equipment Ltd,118147
WARRINGTON BOROUGH COUNCIL,http://opendatacommunities.org/id/unitary-authority/warrington,ET0,Transport Holding Account,41311,Veh Maint. Materials,300000,13/07/2022,5100497630,606.33,Turner Groundscare,105201
WARRINGTON BOROUGH COUNCIL,http://opendatacommunities.org/id/unitary-authority/warrington,DG0,Development Control,43430,Consult.& Prof. Serv,440000,19/07/2022,5100497754,5062,Tameside M B,440155
WARRINGTON BOROUGH COUNCIL,http://opendatacommunities.org/id/unitary-authority/warrington,ET0,Administration,44340,Temporary Traffic Regulation Orders,442400,11/07/2022,5100497883,578.26,TMP UK Ltd,108498
WARRINGTON BOROUGH COUNCIL,http://opendatacommunities.org/id/unitary-authority/warrington,ET0,School Brow Depot,41330,Public Survey Costs,440500,06/07/2022,5100498217,570,Marlowe Fire And Security,102215
WARRINGTON BOROUGH COUNCIL,http://opendatacommunities.org/id/unitary-authority/warrington,ET0,Building Facilities,41112,Equipment Purchase & Contract,400000,06/06/2022,5100498724,5119,Bunzl Cleaning And Hygiene Supplies,104650
WARRINGTON BOROUGH COUNCIL,http://opendatacommunities.org/id/unitary-authority/warrington,ENO,Environmental Projects,82007,Building Work,200850,12/07/2022,5100498727,934,Complete Home Energy Systems,111861
WARRINGTON BOROUGH COUNCIL,http://opendatacommunities.org/id/unitary-authority/warrington,ET0,Facilities Management,41422,Materials,400500,07/06/2022,5100498871,1146,Wicksteed Leisure Ltd,105436
WARRINGTON BOROUGH COUNCIL,http://opendatacommunities.org/id/unitary-authority/warrington,ET0,Facilities Management,41422,Materials,400500,07/06/2022,5100498871,540,Wicksteed Leisure Ltd,105436
WARRINGTON BOROUGH COUNCIL,http://opendatacommunities.org/id/unitary-authority/warrington,ET0,Facilities Management,41422,Materials,400500,07/06/2022,5100498872,1709.84,Wicksteed Leisure Ltd,105436
WARRINGTON BOROUGH COUNCIL,http://opendatacommunities.org/id/unitary-authority/warrington,ET0,Urban Traffic Management Control,44370,Signal Equipment,531650,07/06/2022,5100498873,576.88,Yunex Limited,101162
WARRINGTON BOROUGH COUNCIL,http://opendatacommunities.org/id/unitary-authority/warrington,ET0,Urban Traffic Management Control,44370,Signal Equipment,531650,07/06/2022,5100498874,2341.21,Yunex Limited,101162
WARRINGTON BOROUGH COUNCIL,http://opendatacommunities.org/id/unitary-authority/warrington,ET0,Urban Traffic Management Control,44370,Signal Equipment,531650,07/06/2022,5100498875,986.9,Yunex Limited,101162
WARRINGTON BOROUGH COUNCIL,http://opendatacommunities.org/id/unitary-authority/warrington,ET0,Transport Holding Account,41311,Vehicle Hire Charges,320000,06/07/2022,5100498888,638,F R Sharrock Ltd,105122
WARRINGTON BOROUGH COUNCIL,http://opendatacommunities.org/id/unitary-authority/warrington,NEO,IT Projects,83003,Computer Software - Maintenance,450850,08/06/2022,5100498891,6250,Phoenix Software Ltd,105022
WARRINGTON BOROUGH COUNCIL,http://opendatacommunities.org/id/unitary-authority/warrington,NEO,IT Projects,83003,Computer Software - Maintenance,450850,08/06/2022,5100498892,1587,Phoenix Software Ltd,105022
WARRINGTON BOROUGH COUNCIL,http://opendatacommunities.org/id/unitary-authority/warrington,COR,General Contingencies,61000,Other Advertising & Publicity,450050,08/06/2022,5100498895,2000,Newsquest Media Group,100070
WARRINGTON BOROUGH COUNCIL,http://opendatacommunities.org/id/unitary-authority/warrington,ET0,Crematorium,41411,Resaleables,400600,08/06/2022,5100498952,771.89,Barleylands Glassworks,114896
WARRINGTON BOROUGH COUNCIL,http://opendatacommunities.org/id/unitary-authority/warrington,RSC,Printing & Graphics,23040,External Printing,430100,08/06/2022,5100498954,690,Browns CTP Limited,116875
WARRINGTON BOROUGH COUNCIL,http://opendatacommunities.org/id/unitary-authority/warrington,ENO,Highways LTP,82004,Environmental Works,531050,07/07/2022,5100498956,4025,Blue Arrow Traffic Management Ltd,109292
WARRINGTON BOROUGH COUNCIL,http://opendatacommunities.org/id/unitary-authority/warrington,ET0,Transport Planning Policy & Strategy,44530,Public Rights Of Way,531900,08/06/2022,5100498960,3336.4,McEwan Contractors Ltd,103366
WARRINGTON BOROUGH COUNCIL,http://opendatacommunities.org/id/unitary-authority/warrington,ET0,Transport Planning Policy & Strategy,44530,Public Rights Of Way,531900,08/06/2022,5100498961,3330.08,McEwan Contractors Ltd,103366
WARRINGTON BOROUGH COUNCIL,http://opendatacommunities.org/id/unitary-authority/warrington,COR,Heat Network Distribution Unit,62092,Consult.& Prof. Serv,440000,08/06/2022,5100498963,4000,Pure Leapfrog,118557
WARRINGTON BOROUGH COUNCIL,http://opendatacommunities.org/id/unitary-authority/warrington,DG0,Crosfields Rec Ground,45213,Maintenance of Plant & Machinery,250050,13/06/2022,5100498964,7357,Conditioned Air Technology Limited,118707
WARRINGTON BOROUGH COUNCIL,http://opendatacommunities.org/id/unitary-authority/warrington,NEO,IT Projects,83003,Computer Hardware - Purchase,450700,08/06/2022,5100498965,4051.8,Dell,104659
WARRINGTON BOROUGH COUNCIL,http://opendatacommunities.org/id/unitary-authority/warrington,FWB,Home to School Transport,33210,Mainstream Pupil Transport,300800,08/06/2022,5100498982,12154.82,Hiltons Coach Travel,104784
WARRINGTON BOROUGH COUNCIL,http://opendatacommunities.org/id/unitary-authority/warrington,FWB,Director Adult Social Care,54000,Training,190150,13/06/2022,5100498996,3440,A.J.M. Robertson Consulting Limited,118374
WARRINGTON BOROUGH COUNCIL,http://opendatacommunities.org/id/unitary-authority/warrington,COR,Investment Property Acquisitions,62095,Consult.& Prof. Serv,440000,09/06/2022,5100499062,9000,CBRE Limited,113065
WARRINGTON BOROUGH COUNCIL,http://opendatacommunities.org/id/unitary-authority/warrington,NEO,Neighbourhood & Community Other,83002,Consult.& Prof. Serv,440000,09/06/2022,5100499074,595,Baker Mallett LLP,116160
WARRINGTON BOROUGH COUNCIL,http://opendatacommunities.org/id/unitary-authority/warrington,ET0,Transport Holding Account,41311,Vehicle Hire Charges,320000,13/06/2022,5100499079,3321.34,Dawsongroup Sweepers Ltd,118270
WARRINGTON BOROUGH COUNCIL,http://opendatacommunities.org/id/unitary-authority/warrington,FWB,BCF - Equipment Store,54930,Equipment Purchase & Contract,400000,09/06/2022,5100499086,564.9,Nottingham Rehab Limited,101513
WARRINGTON BOROUGH COUNCIL,http://opendatacommunities.org/id/unitary-authority/warrington,ET0,Taxi and Private Hire Licensing,44450,Consult.& Prof. Serv,440000,09/06/2022,5100499088,1117.03,Oyster Partnership,116595
WARRINGTON BOROUGH COUNCIL,http://opendatacommunities.org/id/unitary-authority/warrington,DG0,Culture Trust,53191,Consult.& Prof. Serv,440000,09/06/2022,5100499090,14000,Not too Tame Theatre Company,116799
WARRINGTON BOROUGH COUNCIL,http://opendatacommunities.org/id/unitary-authority/warrington,ET0,Crematorium,41411,Resaleables,400600,09/06/2022,5100499093,690,Vivedia Ltd,116354
WARRINGTON BOROUGH COUNCIL,http://opendatacommunities.org/id/unitary-authority/warrington,ENO,Highways LTP,82004,Consult.& Prof. Serv,440000,09/06/2022,5100499096,18893,Bikeright,101692
WARRINGTON BOROUGH COUNCIL,http://opendatacommunities.org/id/unitary-authority/warrington,ENO,Highways Other,82005,Environmental Works,531050,09/06/2022,5100499099,882.42,Yunex Limited,101162
WARRINGTON BOROUGH COUNCIL,http://opendatacommunities.org/id/unitary-authority/warrington,ET0,Urban Traffic Management Control,44370,Signal Equipment,531650,09/06/2022,5100499100,14142.98,Yunex Limited,101162
WARRINGTON BOROUGH COUNCIL,http://opendatacommunities.org/id/unitary-authority/warrington,ET0,Transport Holding Account,41311,Diesel,300100,09/06/2022,5100499107,28617.43,Standard Fuel Oils Ltd,117478
WARRINGTON BOROUGH COUNCIL,http://opendatacommunities.org/id/unitary-authority/warrington,ET0,Transport Holding Account,41311,Diesel,300100,09/06/2022,5100499108,2856.03,Standard Fuel Oils Ltd,117478
WARRINGTON BOROUGH COUNCIL,http://opendatacommunities.org/id/unitary-authority/warrington,ET0,Golf Course Client,41432,Oil - Gas,301250,19/07/2022,5100499109,2004,Standard Fuel Oils Ltd,117478
WARRINGTON BOROUGH COUNCIL,http://opendatacommunities.org/id/unitary-authority/warrington,ET0,Transport Holding Account,41311,Vehicle Hire Charges,320000,13/06/2022,5100499114,1120,F G Rowland Ltd,102555
WARRINGTON BOROUGH COUNCIL,http://opendatacommunities.org/id/unitary-authority/warrington,FWB,BCF - Equipment Store,54930,Annual Maintenance,442100,14/07/2022,5100499121,3400.64,Prism Medical UK,108616
WARRINGTON BOROUGH COUNCIL,http://opendatacommunities.org/id/unitary-authority/warrington,FWB,BCF - Telecare/Sensory,54560,Health Awareness,441950,10/06/2022,5100499218,2570,Redacted for personal data,114604
WARRINGTON BOROUGH COUNCIL,http://opendatacommunities.org/id/unitary-authority/warrington,COR,New Market - Operational Account,47000,Equipment Purchase & Contract,400000,10/06/2022,5100499219,21035.77,Chris Bowker Limited,117572
WARRINGTON BOROUGH COUNCIL,http://opendatacommunities.org/id/unitary-authority/warrington,DG0,West Annexe,45161,Maintenance of Plant & Machinery,250050,10/06/2022,5100499225,686.45,Generator Power Ltd,117550
WARRINGTON BOROUGH COUNCIL,http://opendatacommunities.org/id/unitary-authority/warrington,FWB,Fostering Team,31105,Consult.& Prof. Serv,440000,10/06/2022,5100499227,650,Child Bereavement UK,118751
WARRINGTON BOROUGH COUNCIL,http://opendatacommunities.org/id/unitary-authority/warrington,COR,The Base,43850,Maintenance of Plant & Machinery,250050,13/06/2022,5100499228,769.11,Glass Technology Services Ltd,118337
WARRINGTON BOROUGH COUNCIL,http://opendatacommunities.org/id/unitary-authority/warrington,DG0,B.U.M Warrington & Co,43835,Advertisings-Jobs,190000,10/06/2022,5100499229,1495,Place North West,108440
WARRINGTON BOROUGH COUNCIL,http://opendatacommunities.org/id/unitary-authority/warrington,ENO,Building Maintenance Environment & Regen,82001,Consult.& Prof. Serv,440000,10/06/2022,5100499230,6375,Structural Surveys Ltd,118336
WARRINGTON BOROUGH COUNCIL,http://opendatacommunities.org/id/unitary-authority/warrington,FWB,BCF - Telecare/Sensory,54560,Health Awareness,441950,10/06/2022,5100499240,900,Cair (UK) Ltd,117944
WARRINGTON BOROUGH COUNCIL,http://opendatacommunities.org/id/unitary-authority/warrington,ENO,Highways LTP,82004,Signal Equipment,531650,10/06/2022,5100499241,1922.42,Yunex Limited,101162
WARRINGTON BOROUGH COUNCIL,http://opendatacommunities.org/id/unitary-authority/warrington,IGO,Property & Estates,86001,Consult.& Prof. Serv,440000,13/07/2022,5100499243,4750,4ward Management Ltd,118056
WARRINGTON BOROUGH COUNCIL,http://opendatacommunities.org/id/unitary-authority/warrington,RSC,One - Off ICT Costs,23200,Consult.& Prof. Serv,440000,13/06/2022,5100499244,7600,Civica Uk Ltd,100585
WARRINGTON BOROUGH COUNCIL,http://opendatacommunities.org/id/unitary-authority/warrington,ET0,Traffic and Safety,44350,Equipment Purchase & Contract,400000,13/06/2022,5100499251,5500,Adarak Ltd,118747
WARRINGTON BOROUGH COUNCIL,http://opendatacommunities.org/id/unitary-authority/warrington,ET0,Sankey Canal Maintenace,44125,Named Drainage Schm,532100,10/06/2022,5100499252,5209.52,Xylem Water Solutions UK LTD,117633
WARRINGTON BOROUGH COUNCIL,http://opendatacommunities.org/id/unitary-authority/warrington,IGO,Property & Estates,86001,Consult.& Prof. Serv,440000,07/07/2022,5100499253,4500,Wsp Uk Ltd,103007
WARRINGTON BOROUGH COUNCIL,http://opendatacommunities.org/id/unitary-authority/warrington,COR,Investment Property Acquisitions,62095,Consult.& Prof. Serv,440000,10/06/2022,5100499254,3000,CBRE Limited,113065
WARRINGTON BOROUGH COUNCIL,http://opendatacommunities.org/id/unitary-authority/warrington,ET0,Transport Holding Account,41311,Tyres,300250,10/06/2022,5100499262,8437.94,Lodge Tyre Company,105203
WARRINGTON BOROUGH COUNCIL,http://opendatacommunities.org/id/unitary-authority/warrington,ET0,Transport Holding Account,41311,Tyres,300250,10/06/2022,5100499264,10383.3,Lodge Tyre Company,105203
WARRINGTON BOROUGH COUNCIL,http://opendatacommunities.org/id/unitary-authority/warrington,ENO,Highways LTP,82004,Surf.Dress-C'Way,532400,10/06/2022,5100499269,686.21,Road Maintenance Services Ltd,105408
WARRINGTON BOROUGH COUNCIL,http://opendatacommunities.org/id/unitary-authority/warrington,ENO,Highways LTP,82004,Surf.Dress-C'Way,532400,10/06/2022,5100499270,915.2,Road Maintenance Services Ltd,105408
WARRINGTON BOROUGH COUNCIL,http://opendatacommunities.org/id/unitary-authority/warrington,ENO,Highways LTP,82004,Surf.Dress-C'Way,532400,10/06/2022,5100499271,3035.58,Road Maintenance Services Ltd,105408
WARRINGTON BOROUGH COUNCIL,http://opendatacommunities.org/id/unitary-authority/warrington,ENO,Highways LTP,82004,Surf.Dress-C'Way,532400,10/06/2022,5100499272,1078.54,Road Maintenance Services Ltd,105408
WARRINGTON BOROUGH COUNCIL,http://opendatacommunities.org/id/unitary-authority/warrington,ENO,Highways LTP,82004,Surf.Dress-C'Way,532400,10/06/2022,5100499273,2436.78,Road Maintenance Services Ltd,105408
WARRINGTON BOROUGH COUNCIL,http://opendatacommunities.org/id/unitary-authority/warrington,PIO,People & Improvement Other,85002,Lifts from Stock,400850,10/06/2022,5100499277,2879.18,AMW Lift & Mobility Services Ltd,112766
WARRINGTON BOROUGH COUNCIL,http://opendatacommunities.org/id/unitary-authority/warrington,ET0,Private Sector Hsg.,43660,Equipment Purchase & Contract,400000,13/06/2022,5100499447,1600,Complete Home Energy Systems,111861
WARRINGTON BOROUGH COUNCIL,http://opendatacommunities.org/id/unitary-authority/warrington,ET0,Private Sector Hsg.,43660,Equipment Purchase & Contract,400000,13/06/2022,5100499448,1600,Complete Home Energy Systems,111861
WARRINGTON BOROUGH COUNCIL,http://opendatacommunities.org/id/unitary-authority/warrington,ET0,Private Sector Hsg.,43660,Equipment Purchase & Contract,400000,13/06/2022,5100499449,1600,Complete Home Energy Systems,111861
WARRINGTON BOROUGH COUNCIL,http://opendatacommunities.org/id/unitary-authority/warrington,FWB,Home to School Transport,33210,Mainstream Pupil Transport,300800,13/06/2022,5100499472,889.55,MD Bus & Coach Ltd,116003
WARRINGTON BOROUGH COUNCIL,http://opendatacommunities.org/id/unitary-authority/warrington,ET0,Transport Holding Account,41311,Veh Maint. Materials,300000,26/07/2022,5100499485,1497.07,Dennis Eagle Parts,104661
WARRINGTON BOROUGH COUNCIL,http://opendatacommunities.org/id/unitary-authority/warrington,FWB,Leaving Care,31101,Fees (Including Agents Fees),441450,13/06/2022,5100499489,1314.28,Encircle Housing Association,118576
WARRINGTON BOROUGH COUNCIL,http://opendatacommunities.org/id/unitary-authority/warrington,FWB,Prison Substance Misuse Services,53840,Drug Action,443600,12/07/2022,5100499493,1046.61,MOJ Shared Service Centre,102024
WARRINGTON BOROUGH COUNCIL,http://opendatacommunities.org/id/unitary-authority/warrington,FWB,DSG - Medical Needs,32002,Eotas Pupil Funding,490350,13/06/2022,5100499496,7229.9,Network Ventures Ltd,110554
WARRINGTON BOROUGH COUNCIL,http://opendatacommunities.org/id/unitary-authority/warrington,FWB,Contracts - SM Commissioning Team 1,55910,Public Health Contract Payments,540000,13/06/2022,5100499497,6578,Eric Moore Partnership Medical Prac,113398
WARRINGTON BOROUGH COUNCIL,http://opendatacommunities.org/id/unitary-authority/warrington,ET0,Transport Holding Account,41311,Veh Maint. Materials,300000,14/06/2022,5100499575,826.9,Johnston Sweepers Ltd,101251
WARRINGTON BOROUGH COUNCIL,http://opendatacommunities.org/id/unitary-authority/warrington,ET0,Transport Holding Account,41311,Vehicle Hire Charges,320000,18/07/2022,5100499580,869.02,Hire Station North,104819
WARRINGTON BOROUGH COUNCIL,http://opendatacommunities.org/id/unitary-authority/warrington,FWB,BCF - Padgate House,54760,Agency Supply - GF,180000,15/06/2022,5100499583,1045.65,Abicare Health Solutions Ltd,118769
WARRINGTON BOROUGH COUNCIL,http://opendatacommunities.org/id/unitary-authority/warrington,PIO,People & Improvement Other,85002,Minor Adaptations<750,400700,15/06/2022,5100499584,3653.1,Access-Able (UK) Limited,114939
WARRINGTON BOROUGH COUNCIL,http://opendatacommunities.org/id/unitary-authority/warrington,FWB,BCF - Telecare/Sensory,54560,Health Awareness,441950,15/06/2022,5100499587,795,iTs Designs Ltd t/a Alert IT Care A,116838
WARRINGTON BOROUGH COUNCIL,http://opendatacommunities.org/id/unitary-authority/warrington,ET0,Vehicle & Plant Acq.,41312,Vehicle & Plant Purchase,301350,15/06/2022,5100499589,1050,Balmers Garden Machinery,103669
WARRINGTON BOROUGH COUNCIL,http://opendatacommunities.org/id/unitary-authority/warrington,ET0,Vehicle & Plant Acq.,41312,Vehicle & Plant Purchase,301350,15/06/2022,5100499589,1050,Balmers Garden Machinery,103669
WARRINGTON BOROUGH COUNCIL,http://opendatacommunities.org/id/unitary-authority/warrington,ET0,Vehicle & Plant Acq.,41312,Vehicle & Plant Purchase,301350,15/06/2022,5100499589,1050,Balmers Garden Machinery,103669
WARRINGTON BOROUGH COUNCIL,http://opendatacommunities.org/id/unitary-authority/warrington,FWB,DSG Post-16 Special Educational Needs,32309,Fees (Including Agents Fees),441450,15/06/2022,5100499637,6244,Chatsworth Futures Limited,116803
WARRINGTON BOROUGH COUNCIL,http://opendatacommunities.org/id/unitary-authority/warrington,ET0,Vehicle & Plant Acq.,41312,Vehicle & Plant Purchase,301350,15/06/2022,5100499640,2200,Balmers Garden Machinery,103669
WARRINGTON BOROUGH COUNCIL,http://opendatacommunities.org/id/unitary-authority/warrington,COR,New Market - Operational Account,47000,"Campaigns,  Projects and Events",491950,15/06/2022,5100499641,600,Big Comedy UK,118554
WARRINGTON BOROUGH COUNCIL,http://opendatacommunities.org/id/unitary-authority/warrington,ENO,Highways LTP,82004,Environmental Works,531050,07/07/2022,5100499644,6325,Blue Arrow Traffic Management Ltd,109292
WARRINGTON BOROUGH COUNCIL,http://opendatacommunities.org/id/unitary-authority/warrington,ET0,Public Health Licensing,41550,Consult.& Prof. Serv,440000,13/07/2022,5100499645,2220,Buckingham Futures,118389
WARRINGTON BOROUGH COUNCIL,http://opendatacommunities.org/id/unitary-authority/warrington,FWB,DSG - Medical Needs,32002,Eotas Pupil Funding,490350,15/06/2022,5100499663,581.25,TutorRight Limited,116990
WARRINGTON BOROUGH COUNCIL,http://opendatacommunities.org/id/unitary-authority/warrington,FWB,DSG - Medical Needs,32002,Eotas Pupil Funding,490350,15/06/2022,5100499664,581.25,TutorRight Limited,116990
WARRINGTON BOROUGH COUNCIL,http://opendatacommunities.org/id/unitary-authority/warrington,ET0,Transport Holding Account,41311,Veh Maint. Materials,300000,07/07/2022,5100499666,1530.02,Turner Groundscare,105201
WARRINGTON BOROUGH COUNCIL,http://opendatacommunities.org/id/unitary-authority/warrington,ET0,Park Development Sites,41423,Materials,400500,26/07/2022,5100499670,304.11,M C & M A Stewart Haulage Ltd,105159
WARRINGTON BOROUGH COUNCIL,http://opendatacommunities.org/id/unitary-authority/warrington,ET0,Schools (Street Scene),41733,Materials,400500,26/07/2022,5100499670,304.11,M C & M A Stewart Haulage Ltd,105159
WARRINGTON BOROUGH COUNCIL,http://opendatacommunities.org/id/unitary-authority/warrington,ET0,LCWIP (Phases 1 and 2),40053,Consult.& Prof. Serv,440000,15/06/2022,5100499690,8851.38,Mott Macdonald Ltd,104950
WARRINGTON BOROUGH COUNCIL,http://opendatacommunities.org/id/unitary-authority/warrington,ET0,Building Control Services,43410,Computer Software - Purchase,450800,15/06/2022,5100499693,758.88,Phoenix Software Ltd,105022
WARRINGTON BOROUGH COUNCIL,http://opendatacommunities.org/id/unitary-authority/warrington,RSC,Recruitment & Advertising,52123,Subscriptions,470000,07/07/2022,5100499705,989.5,Cantium Business Solutions Ltd,462309
WARRINGTON BOROUGH COUNCIL,http://opendatacommunities.org/id/unitary-authority/warrington,RSC,Translation Service,52202,Agency Supply - GF,180000,07/07/2022,5100499709,7175.93,DA Languages Ltd,115660
WARRINGTON BOROUGH COUNCIL,http://opendatacommunities.org/id/unitary-authority/warrington,ET0,Transport Holding Account,41311,Tyres,300250,15/06/2022,5100499729,9754.89,Lodge Tyre Company,105203
WARRINGTON BOROUGH COUNCIL,http://opendatacommunities.org/id/unitary-authority/warrington,ET0,Highways Drainage,44270,Tools Purchase,401150,15/06/2022,5100499730,6250,Minicam Ltd,118675
WARRINGTON BOROUGH COUNCIL,http://opendatacommunities.org/id/unitary-authority/warrington,ENO,Highways LTP,82004,Consult.& Prof. Serv,440000,15/06/2022,5100499733,1935,Mott Macdonald Ltd,104950
WARRINGTON BOROUGH COUNCIL,http://opendatacommunities.org/id/unitary-authority/warrington,HOL,Insurance Fund,91100,Insurance Claims,443400,15/06/2022,5100499740,9056.61,Gallagher Bassett (Leeds),118350
WARRINGTON BOROUGH COUNCIL,http://opendatacommunities.org/id/unitary-authority/warrington,DG0,West Annexe,45161,Maintenance of Plant & Machinery,250050,15/06/2022,5100499741,1252.9,Generator Power Ltd,117550
WARRINGTON BOROUGH COUNCIL,http://opendatacommunities.org/id/unitary-authority/warrington,ET0,Trading Standards North West,41564,"Campaigns,  Projects and Events",491950,15/06/2022,5100499757,601,Illicit Tobacco Services Ltd,118776
WARRINGTON BOROUGH COUNCIL,http://opendatacommunities.org/id/unitary-authority/warrington,ET0,Taxi and Private Hire Licensing,44450,Consult.& Prof. Serv,440000,15/06/2022,5100499762,677.54,Oyster Partnership,116595
WARRINGTON BOROUGH COUNCIL,http://opendatacommunities.org/id/unitary-authority/warrington,ET0,Transport Holding Account,41311,Vehicle Hire Charges,320000,16/06/2022,5100499841,2641.2,West Wallasey Car Hire Ltd,103584
WARRINGTON BOROUGH COUNCIL,http://opendatacommunities.org/id/unitary-authority/warrington,DG0,Kickstart,22244,"Campaigns,  Projects and Events",491950,16/06/2022,5100499842,746.52,Planet 9 Holistic Gifts,118578
WARRINGTON BOROUGH COUNCIL,http://opendatacommunities.org/id/unitary-authority/warrington,FWB,DSG Inter Authority Recoupment,32009,Fees (Including Agents Fees),441450,07/07/2022,5100499847,500,Weaverham High School,400247
WARRINGTON BOROUGH COUNCIL,http://opendatacommunities.org/id/unitary-authority/warrington,ET0,Transport Holding Account,41311,Training,190150,16/06/2022,5100499848,730,Stockport HGV Training Centre,114894
WARRINGTON BOROUGH COUNCIL,http://opendatacommunities.org/id/unitary-authority/warrington,FWB,Inclusion,32207,Fees (Including Agents Fees),441450,16/06/2022,5100499849,1030,PsyCATS,117777
WARRINGTON BOROUGH COUNCIL,http://opendatacommunities.org/id/unitary-authority/warrington,DG0,Development Control,43430,Consult.& Prof. Serv,440000,16/06/2022,5100499855,1258,Vivid Resourcing Limited,115752
WARRINGTON BOROUGH COUNCIL,http://opendatacommunities.org/id/unitary-authority/warrington,DG0,Development Control,43430,Consult.& Prof. Serv,440000,16/06/2022,5100499856,1402.5,Vivid Resourcing Limited,115752
WARRINGTON BOROUGH COUNCIL,http://opendatacommunities.org/id/unitary-authority/warrington,ET0,Construction Stores Overhead Account,41320,Uniforms,420000,07/07/2022,5100499861,1575,Parker Merchanting Ltd,105007
WARRINGTON BOROUGH COUNCIL,http://opendatacommunities.org/id/unitary-authority/warrington,ET0,Construction Stores Overhead Account,41320,Uniforms,420000,07/07/2022,5100499863,1107.59,Parker Merchanting Ltd,105007
WARRINGTON BOROUGH COUNCIL,http://opendatacommunities.org/id/unitary-authority/warrington,ENO,Priority Infrastructure,82009,Consult.& Prof. Serv,440000,17/06/2022,5100499902,1081.41,Sanderson Weatherall LLP,117413
WARRINGTON BOROUGH COUNCIL,http://opendatacommunities.org/id/unitary-authority/warrington,DG0,West Annexe,45161,Maintenance of Plant & Machinery,250050,17/06/2022,5100499926,1189.98,Generator Power Ltd,117550
WARRINGTON BOROUGH COUNCIL,http://opendatacommunities.org/id/unitary-authority/warrington,ET0,Transport Holding Account,41311,Petrol,300050,17/06/2022,5100499928,3146.2,Standard Fuel Oils Ltd,117478
WARRINGTON BOROUGH COUNCIL,http://opendatacommunities.org/id/unitary-authority/warrington,FWB,Adoption Team,31107,Subscriptions,470000,17/06/2022,5100499930,4999,Intercountry Adoption Centre,118343
WARRINGTON BOROUGH COUNCIL,http://opendatacommunities.org/id/unitary-authority/warrington,FWB,Inclusion,32207,Fees (Including Agents Fees),441450,17/06/2022,5100499932,900,Stoddart Cross Psychology,118344
WARRINGTON BOROUGH COUNCIL,http://opendatacommunities.org/id/unitary-authority/warrington,ET0,Transport Planning Policy & Strategy,44530,Public Rights Of Way,531900,17/06/2022,5100499933,4004.2,Ecological Landscape Management Ltd,109936
WARRINGTON BOROUGH COUNCIL,http://opendatacommunities.org/id/unitary-authority/warrington,RSC,Financial Protection Team,56130,Materials,400500,07/07/2022,5100499941,561.15,Valtech Ltd,117044
WARRINGTON BOROUGH COUNCIL,http://opendatacommunities.org/id/unitary-authority/warrington,ET0,Transport Holding Account,41311,Veh Maint. Materials,300000,04/07/2022,5100499962,902.5,F R Sharrock Ltd,105122
WARRINGTON BOROUGH COUNCIL,http://opendatacommunities.org/id/unitary-authority/warrington,ET0,Transport Holding Account,41311,Veh Maint. Materials,300000,04/07/2022,5100499963,579.37,F R Sharrock Ltd,105122
WARRINGTON BOROUGH COUNCIL,http://opendatacommunities.org/id/unitary-authority/warrington,ET0,Transport Holding Account,41311,Veh Maint. Materials,300000,06/07/2022,5100499964,1688.58,F R Sharrock Ltd,105122
WARRINGTON BOROUGH COUNCIL,http://opendatacommunities.org/id/unitary-authority/warrington,ET0,Safety Cameras,44360,"Campaigns,  Projects and Events",491950,20/06/2022,5100499968,8584.84,Global Media Group Services Ltd,118688
WARRINGTON BOROUGH COUNCIL,http://opendatacommunities.org/id/unitary-authority/warrington,ET0,Safety Cameras,44360,"Campaigns,  Projects and Events",491950,20/06/2022,5100499969,2820,Global Media Group Services Ltd,118688
WARRINGTON BOROUGH COUNCIL,http://opendatacommunities.org/id/unitary-authority/warrington,ET0,Safety Cameras,44360,"Campaigns,  Projects and Events",491950,20/06/2022,5100500110,2475,Global Media Group Services Ltd,118688
WARRINGTON BOROUGH COUNCIL,http://opendatacommunities.org/id/unitary-authority/warrington,FWB,BCF - Padgate House,54760,Agency Supply - GF,180000,20/06/2022,5100500111,1136.46,Abicare Health Solutions Ltd,118769
WARRINGTON BOROUGH COUNCIL,http://opendatacommunities.org/id/unitary-authority/warrington,FWB,BCF - Padgate House,54760,Agency Supply - GF,180000,20/06/2022,5100500114,699.33,Abicare Health Solutions Ltd,118769
WARRINGTON BOROUGH COUNCIL,http://opendatacommunities.org/id/unitary-authority/warrington,RSC,Financial Protection Team,56130,Consult.& Prof. Serv,440000,05/07/2022,5100500120,1027.41,Allied Publicity Services (Man) LTD,117019
WARRINGTON BOROUGH COUNCIL,http://opendatacommunities.org/id/unitary-authority/warrington,FWB,BCF - Telecare/Sensory,54560,Health Awareness,441950,20/06/2022,5100500122,567,Cair (UK) Ltd,117944
WARRINGTON BOROUGH COUNCIL,http://opendatacommunities.org/id/unitary-authority/warrington,ET0,Walton Estate,41430,Consult.& Prof. Serv,440000,26/07/2022,5100500124,1200,Carringtons Catering Ltd,116708
WARRINGTON BOROUGH COUNCIL,http://opendatacommunities.org/id/unitary-authority/warrington,ET0,Walton Estate,41430,Consult.& Prof. Serv,440000,26/07/2022,5100500125,1800,Redacted for personal data,116708
WARRINGTON BOROUGH COUNCIL,http://opendatacommunities.org/id/unitary-authority/warrington,FWB,Director of Public Health,55000,Public Health Contract Payments,540000,20/06/2022,5100500135,6373,Disabled Enabled Limited,115589
WARRINGTON BOROUGH COUNCIL,http://opendatacommunities.org/id/unitary-authority/warrington,FWB,Workforce Development,31603,Materials,400500,07/07/2022,5100500143,980.78,GL Education Group (Lucid Research),115278
WARRINGTON BOROUGH COUNCIL,http://opendatacommunities.org/id/unitary-authority/warrington,FWB,BCF - Equipment Store,54930,Equipment Purchase & Contract,400000,20/06/2022,5100500149,1798.5,Katnic Ltd t/a H&M,118079
WARRINGTON BOROUGH COUNCIL,http://opendatacommunities.org/id/unitary-authority/warrington,RSC,Financial Assistance & Income,53111,Computer Software - Maintenance,450850,20/06/2022,5100500150,11391.46,Access UK Ltd,107029
WARRINGTON BOROUGH COUNCIL,http://opendatacommunities.org/id/unitary-authority/warrington,PIO,People & Improvement Other,85002,Minor Adaptations<750,400700,20/06/2022,5100500151,3154,Access-Able (UK) Limited,114939
WARRINGTON BOROUGH COUNCIL,http://opendatacommunities.org/id/unitary-authority/warrington,ET0,Cemeteries,41410,Materials,400500,20/06/2022,5100500155,636,Agrovista Uk Ltd,101700
WARRINGTON BOROUGH COUNCIL,http://opendatacommunities.org/id/unitary-authority/warrington,ENO,Highways LTP,82004,Stores Purchases,401300,20/06/2022,5100500157,2681.18,Altitude Services Ltd,118550
WARRINGTON BOROUGH COUNCIL,http://opendatacommunities.org/id/unitary-authority/warrington,ENP,Environment & Regeneration,82000,Stores Purchases,401300,20/06/2022,5100500157,20300.95,Altitude Services Ltd,118550
WARRINGTON BOROUGH COUNCIL,http://opendatacommunities.org/id/unitary-authority/warrington,ET0,Street Lighting (Other Works),44243,Stores Purchases,401300,20/06/2022,5100500157,509.75,Altitude Services Ltd,118550
WARRINGTON BOROUGH COUNCIL,http://opendatacommunities.org/id/unitary-authority/warrington,ET0,Street Lighting (Other Works),44243,Lighting Emerg Normal os Hs,531400,20/06/2022,5100500157,4275,Altitude Services Ltd,118550
WARRINGTON BOROUGH COUNCIL,http://opendatacommunities.org/id/unitary-authority/warrington,ET0,Street Lighting Contractor,44240,Lighting col works order Rep,531450,20/06/2022,5100500157,2071.12,Altitude Services Ltd,118550
WARRINGTON BOROUGH COUNCIL,http://opendatacommunities.org/id/unitary-authority/warrington,FWB,DSG Post-16 Special Educational Needs,32309,Fees (Including Agents Fees),441450,08/07/2022,5100500164,12451.33,Lymm High Academy,400221
WARRINGTON BOROUGH COUNCIL,http://opendatacommunities.org/id/unitary-authority/warrington,RSC,Democratic Services,11400,Training,190150,20/06/2022,5100500166,600,North West Employers,102754
WARRINGTON BOROUGH COUNCIL,http://opendatacommunities.org/id/unitary-authority/warrington,ET0,Recreation & Games,41431,Outdoor Pursuit,490550,20/06/2022,5100500174,720,Jrs Fabrications Ltd,105378
WARRINGTON BOROUGH COUNCIL,http://opendatacommunities.org/id/unitary-authority/warrington,FWB,Wellbeing Service,51315,Computer Software - Purchase,450800,20/06/2022,5100500183,10830,NHS Midlands & Lancashire CSU,115102
WARRINGTON BOROUGH COUNCIL,http://opendatacommunities.org/id/unitary-authority/warrington,ENO,Environmental Projects,82007,Building Work,200850,08/07/2022,5100500204,7726,Complete Home Energy Systems,111861
WARRINGTON BOROUGH COUNCIL,http://opendatacommunities.org/id/unitary-authority/warrington,ENO,Environmental Projects,82007,Building Work,200850,08/07/2022,5100500205,6994,Complete Home Energy Systems,111861
WARRINGTON BOROUGH COUNCIL,http://opendatacommunities.org/id/unitary-authority/warrington,FWB,DSG Independent School Fees,32011,Fees (Including Agents Fees),441450,21/06/2022,5100500206,3272,Reflexion Care Group Limited,117938
WARRINGTON BOROUGH COUNCIL,http://opendatacommunities.org/id/unitary-authority/warrington,FWB,DSG Independent School Fees,32011,Fees (Including Agents Fees),441450,21/06/2022,5100500207,2804.57,Reflexion Care Group Limited,117938
WARRINGTON BOROUGH COUNCIL,http://opendatacommunities.org/id/unitary-authority/warrington,FWB,DSG Post-16 Special Educational Needs,32309,Fees (Including Agents Fees),441450,21/06/2022,5100500208,1397.5,TutorRight Limited,116990
WARRINGTON BOROUGH COUNCIL,http://opendatacommunities.org/id/unitary-authority/warrington,ET0,Walton Estate,41430,Zoo Materials,401250,20/06/2022,5100500210,531.22,AR Wholesale,115749
WARRINGTON BOROUGH COUNCIL,http://opendatacommunities.org/id/unitary-authority/warrington,ENO,Environmental Projects,82007,Building Work,200850,08/07/2022,5100500239,8194,Complete Home Energy Systems,111861
WARRINGTON BOROUGH COUNCIL,http://opendatacommunities.org/id/unitary-authority/warrington,ENO,Environmental Projects,82007,Building Work,200850,20/06/2022,5100500240,5974,Complete Home Energy Systems,111861
WARRINGTON BOROUGH COUNCIL,http://opendatacommunities.org/id/unitary-authority/warrington,ENO,Environmental Projects,82007,Building Work,200850,20/06/2022,5100500241,5951,Complete Home Energy Systems,111861
WARRINGTON BOROUGH COUNCIL,http://opendatacommunities.org/id/unitary-authority/warrington,ENO,Environmental Projects,82007,Building Work,200850,08/07/2022,5100500242,919,Complete Home Energy Systems,111861
WARRINGTON BOROUGH COUNCIL,http://opendatacommunities.org/id/unitary-authority/warrington,ET0,Transport Holding Account,41311,Diesel,300100,08/07/2022,5100500321,31375.57,Standard Fuel Oils Ltd,117478
WARRINGTON BOROUGH COUNCIL,http://opendatacommunities.org/id/unitary-authority/warrington,ENO,Highways LTP,82004,Technical Surveys,532050,08/07/2022,5100500332,2850,Malcolm Hughes Land Surveyors Ltd,115042
WARRINGTON BOROUGH COUNCIL,http://opendatacommunities.org/id/unitary-authority/warrington,DG0,Development Control,43430,Consult.& Prof. Serv,440000,21/06/2022,5100500334,3975,Redacted for personal data,117421
WARRINGTON BOROUGH COUNCIL,http://opendatacommunities.org/id/unitary-authority/warrington,DG0,Local Plan,43445,Consult.& Prof. Serv,440000,08/07/2022,5100500338,1375,Programme Officer Solutions Limited,118782
WARRINGTON BOROUGH COUNCIL,http://opendatacommunities.org/id/unitary-authority/warrington,FWB,Inclusion,32207,Fees (Including Agents Fees),441450,21/06/2022,5100500339,500,Leggett Consultancy,118590
WARRINGTON BOROUGH COUNCIL,http://opendatacommunities.org/id/unitary-authority/warrington,ENO,Highways LTP,82004,Technical Surveys,532050,08/07/2022,5100500341,1500,Pm Surveys Ltd,100711
WARRINGTON BOROUGH COUNCIL,http://opendatacommunities.org/id/unitary-authority/warrington,ENO,Highways LTP,82004,Technical Surveys,532050,08/07/2022,5100500342,1000,Pm Surveys Ltd,100711
WARRINGTON BOROUGH COUNCIL,http://opendatacommunities.org/id/unitary-authority/warrington,DG0,Development Control,43430,Consult.& Prof. Serv,440000,21/06/2022,5100500343,1258,Vivid Resourcing Limited,115752
WARRINGTON BOROUGH COUNCIL,http://opendatacommunities.org/id/unitary-authority/warrington,DG0,Development Control,43430,Consult.& Prof. Serv,440000,21/06/2022,5100500344,795,Vivid Resourcing Limited,115752
WARRINGTON BOROUGH COUNCIL,http://opendatacommunities.org/id/unitary-authority/warrington,FWB,DSG Post-16 Special Educational Needs,32309,Fees (Including Agents Fees),441450,08/07/2022,5100500352,60066.88,Priestley College,400151
WARRINGTON BOROUGH COUNCIL,http://opendatacommunities.org/id/unitary-authority/warrington,ENO,Highways LTP,82004,Environmental Works,531050,08/07/2022,5100500357,12810,Tarmac,100489
WARRINGTON BOROUGH COUNCIL,http://opendatacommunities.org/id/unitary-authority/warrington,FWB,DSG Post-16 Special Educational Needs,32309,Fees (Including Agents Fees),441450,21/06/2022,5100500363,3790.42,The LTE Group,117985
WARRINGTON BOROUGH COUNCIL,http://opendatacommunities.org/id/unitary-authority/warrington,ET0,Waste Recycling,41820,MRF Recycling,530750,21/06/2022,5100500369,142340.44,Wsr Recycling Ltd,101196
WARRINGTON BOROUGH COUNCIL,http://opendatacommunities.org/id/unitary-authority/warrington,ET0,Waste Disposal,41830,Residual Waste Disposal,530500,27/07/2022,5100500371,141926.5,Viridor Energy Limited,118588
WARRINGTON BOROUGH COUNCIL,http://opendatacommunities.org/id/unitary-authority/warrington,ET0,Waste Disposal,41830,Residual Waste Disposal,530500,24/06/2022,5100500372,169543.25,Viridor Energy Limited,118588
WARRINGTON BOROUGH COUNCIL,http://opendatacommunities.org/id/unitary-authority/warrington,ET0,Street Lighting Client,44241,Lighting Energy Char,531550,22/06/2022,5100500377,1432.88,Npower Electricity,101884
WARRINGTON BOROUGH COUNCIL,http://opendatacommunities.org/id/unitary-authority/warrington,ENO,Highways LTP,82004,Consult.& Prof. Serv,440000,08/07/2022,5100500417,7032,Mott Macdonald Ltd,104950
WARRINGTON BOROUGH COUNCIL,http://opendatacommunities.org/id/unitary-authority/warrington,RSC,ICT Centralised Budget,23100,Computer Software - Maintenance,450850,22/06/2022,5100500424,43200,Access UK Ltd,107029
WARRINGTON BOROUGH COUNCIL,http://opendatacommunities.org/id/unitary-authority/warrington,FWB,BCF - Equipment Store,54930,Equipment Purchase & Contract,400000,22/06/2022,5100500433,564.9,Nottingham Rehab Limited,101513
WARRINGTON BOROUGH COUNCIL,http://opendatacommunities.org/id/unitary-authority/warrington,FWB,Permanence staff teams,31021,Fees (Including Agents Fees),441450,22/06/2022,5100500434,927,Lextox,114551
WARRINGTON BOROUGH COUNCIL,http://opendatacommunities.org/id/unitary-authority/warrington,FWB,Permanence staff teams,31021,Fees (Including Agents Fees),441450,22/06/2022,5100500435,777,Lextox,114551
WARRINGTON BOROUGH COUNCIL,http://opendatacommunities.org/id/unitary-authority/warrington,FWB,DSG - Medical Needs,32002,Eotas Pupil Funding,490350,22/06/2022,5100500444,6658.6,Network Ventures Ltd,110554
WARRINGTON BOROUGH COUNCIL,http://opendatacommunities.org/id/unitary-authority/warrington,ENO,Priority Infrastructure,82009,Consult.& Prof. Serv,440000,22/06/2022,5100500478,8665.83,Sanderson Weatherall LLP,117413
WARRINGTON BOROUGH COUNCIL,http://opendatacommunities.org/id/unitary-authority/warrington,ENO,Environmental Projects,82007,Building Work,200850,08/07/2022,5100500485,7963,Complete Home Energy Systems,111861
WARRINGTON BOROUGH COUNCIL,http://opendatacommunities.org/id/unitary-authority/warrington,ENO,Environmental Projects,82007,Building Work,200850,08/07/2022,5100500486,1260,Complete Home Energy Systems,111861
WARRINGTON BOROUGH COUNCIL,http://opendatacommunities.org/id/unitary-authority/warrington,ENO,Environmental Projects,82007,Building Work,200850,08/07/2022,5100500487,7379,Complete Home Energy Systems,111861
WARRINGTON BOROUGH COUNCIL,http://opendatacommunities.org/id/unitary-authority/warrington,ET0,Private Sector Hsg.,43660,Equipment Purchase & Contract,400000,22/06/2022,5100500488,1650,Complete Home Energy Systems,111861
WARRINGTON BOROUGH COUNCIL,http://opendatacommunities.org/id/unitary-authority/warrington,FWB,BCF - Equipment Store,54930,Equipment Purchase & Contract,400000,23/06/2022,5100500558,1952.71,Prism Medical UK,108616
WARRINGTON BOROUGH COUNCIL,http://opendatacommunities.org/id/unitary-authority/warrington,ET0,Fair Trading & Investigations,41500,Training,190150,23/06/2022,5100500561,855,Chartered Trading Standards Institu,115937
WARRINGTON BOROUGH COUNCIL,http://opendatacommunities.org/id/unitary-authority/warrington,ENO,Priority Infrastructure,82009,Technical Surveys,532050,07/07/2022,5100500563,921.57,Envirotechnology PLC,110364
WARRINGTON BOROUGH COUNCIL,http://opendatacommunities.org/id/unitary-authority/warrington,ET0,Taxi and Private Hire Licensing,44450,Consult.& Prof. Serv,440000,23/06/2022,5100500565,1101.77,Oyster Partnership,116595
WARRINGTON BOROUGH COUNCIL,http://opendatacommunities.org/id/unitary-authority/warrington,FWB,DSG - Medical Needs,32002,Eotas Pupil Funding,490350,23/06/2022,5100500576,608,Integra People,116891
WARRINGTON BOROUGH COUNCIL,http://opendatacommunities.org/id/unitary-authority/warrington,ET0,Walton Hall Catering,41433,Provisions-Purchase,410000,23/06/2022,5100500579,4853.75,Carringtons Catering Ltd,116708
WARRINGTON BOROUGH COUNCIL,http://opendatacommunities.org/id/unitary-authority/warrington,ET0,Walton Hall Catering,41433,Provisions-Purchase,410000,23/06/2022,5100500580,628,Carringtons Catering Ltd,116708
WARRINGTON BOROUGH COUNCIL,http://opendatacommunities.org/id/unitary-authority/warrington,NEO,IT Projects,83003,Computer Hardware - Purchase,450700,23/06/2022,5100500586,1925,Dell,104659
WARRINGTON BOROUGH COUNCIL,http://opendatacommunities.org/id/unitary-authority/warrington,ET0,Private Sector Hsg.,43660,Equipment Purchase & Contract,400000,23/06/2022,5100500597,1650,Complete Home Energy Systems,111861
WARRINGTON BOROUGH COUNCIL,http://opendatacommunities.org/id/unitary-authority/warrington,DG0,Estates & Valuation,43520,Consult.& Prof. Serv,440000,23/06/2022,5100500598,5000,CBRE Limited,113065
WARRINGTON BOROUGH COUNCIL,http://opendatacommunities.org/id/unitary-authority/warrington,DG0,Contingency,45227,Consult.& Prof. Serv,440000,08/07/2022,5100500600,30000,Concrete & Corrosion Consultancy,118497
WARRINGTON BOROUGH COUNCIL,http://opendatacommunities.org/id/unitary-authority/warrington,COR,Investment Property Acquisitions,62095,Consult.& Prof. Serv,440000,23/06/2022,5100500611,2000,CBRE Limited,113065
WARRINGTON BOROUGH COUNCIL,http://opendatacommunities.org/id/unitary-authority/warrington,COR,Investment Property Acquisitions,62095,Consult.& Prof. Serv,440000,23/06/2022,5100500611,2000,CBRE Limited,113065
WARRINGTON BOROUGH COUNCIL,http://opendatacommunities.org/id/unitary-authority/warrington,DG0,West Annexe,45161,Maintenance of Plant & Machinery,250050,23/06/2022,5100500612,1239.48,Generator Power Ltd,117550
WARRINGTON BOROUGH COUNCIL,http://opendatacommunities.org/id/unitary-authority/warrington,RSC,IT - Contracts,23600,Computer Software - Maintenance,450850,23/06/2022,5100500613,558,Phoenix Software Ltd,105022
WARRINGTON BOROUGH COUNCIL,http://opendatacommunities.org/id/unitary-authority/warrington,FWB,BCF - Equipment Store,54930,Equipment Purchase & Contract,400000,23/06/2022,5100500618,7910.11,Ethical Technology,100775
WARRINGTON BOROUGH COUNCIL,http://opendatacommunities.org/id/unitary-authority/warrington,FWB,Mental Capacity Act,54650,Consult.& Prof. Serv,440000,23/06/2022,5100500619,4710,Reed Talent Solutions Limited,118453
WARRINGTON BOROUGH COUNCIL,http://opendatacommunities.org/id/unitary-authority/warrington,FWB,CC-Mgt Costs,51233,Equipment Purchase & Contract,400000,23/06/2022,5100500620,11755.52,PPL PRS Ltd,101488
WARRINGTON BOROUGH COUNCIL,http://opendatacommunities.org/id/unitary-authority/warrington,ET0,Traffic and Safety,44350,Unlit Signs,531200,08/07/2022,5100500621,2057.7,Twm Traffic Control Systems,103994
WARRINGTON BOROUGH COUNCIL,http://opendatacommunities.org/id/unitary-authority/warrington,FWB,Inclusion,32207,Fees (Including Agents Fees),441450,23/06/2022,5100500622,785,Redacted for personal data,118551
WARRINGTON BOROUGH COUNCIL,http://opendatacommunities.org/id/unitary-authority/warrington,COR,Other Commercial Prop.,43560,Consult.& Prof. Serv,440000,23/06/2022,5100500645,30000,Christie & Co,116681
WARRINGTON BOROUGH COUNCIL,http://opendatacommunities.org/id/unitary-authority/warrington,ET0,Street Lighting Contractor,44240,Materials,400500,11/07/2022,5100500647,1676.36,Designplan Lighting,118780
WARRINGTON BOROUGH COUNCIL,http://opendatacommunities.org/id/unitary-authority/warrington,ENO,Environmental Projects,82007,Building Work,200850,11/07/2022,5100500648,3495.52,Broad Oak Properties Limited,118320
WARRINGTON BOROUGH COUNCIL,http://opendatacommunities.org/id/unitary-authority/warrington,DG0,Estates & Valuation,43520,Consult.& Prof. Serv,440000,23/06/2022,5100500651,5000,Redacted for personal data,117952
WARRINGTON BOROUGH COUNCIL,http://opendatacommunities.org/id/unitary-authority/warrington,ET0,Public Health Licensing,41550,Consult.& Prof. Serv,440000,23/06/2022,5100500652,800,Cieh,100887
WARRINGTON BOROUGH COUNCIL,http://opendatacommunities.org/id/unitary-authority/warrington,NEO,IT Projects,83003,Computer Software - Maintenance,450850,23/06/2022,5100500653,2938.05,Dell,104659
WARRINGTON BOROUGH COUNCIL,http://opendatacommunities.org/id/unitary-authority/warrington,ET0,Walton Estate,41430,Events Costs,490000,24/06/2022,5100500703,2050,Heartbreak,101743
WARRINGTON BOROUGH COUNCIL,http://opendatacommunities.org/id/unitary-authority/warrington,ET0,Walton Estate,41430,Events Costs,490000,24/06/2022,5100500704,1695,Interact Entertainments Ltd,118726
WARRINGTON BOROUGH COUNCIL,http://opendatacommunities.org/id/unitary-authority/warrington,ET0,Waste Disposal,41830,Residual Waste Disposal,530500,24/06/2022,5100500713,140934.32,Viridor Energy Limited,118588
WARRINGTON BOROUGH COUNCIL,http://opendatacommunities.org/id/unitary-authority/warrington,RSC,Welfare Support,10360,"Campaigns,  Projects and Events",491950,11/07/2022,5100500887,4143,Changing Lives Together,111607
WARRINGTON BOROUGH COUNCIL,http://opendatacommunities.org/id/unitary-authority/warrington,RSC,Welfare Support,10360,"Campaigns,  Projects and Events",491950,11/07/2022,5100500888,5754,Changing Lives Together,111607
WARRINGTON BOROUGH COUNCIL,http://opendatacommunities.org/id/unitary-authority/warrington,ENO,Building Maintenance Environment & Regen,82001,Maintenance of Plant & Machinery,250050,27/06/2022,5100500901,22077.6,Jennings Roofing Limited,118366
WARRINGTON BOROUGH COUNCIL,http://opendatacommunities.org/id/unitary-authority/warrington,RSC,Professional Development Centre,21000,Security Systems,250000,11/07/2022,5100500902,1085.84,Kingdom Security Ltd,101324
WARRINGTON BOROUGH COUNCIL,http://opendatacommunities.org/id/unitary-authority/warrington,ENO,Highways LTP,82004,Environmental Works,531050,27/06/2022,5100500904,950,Mott Macdonald Ltd,104950
WARRINGTON BOROUGH COUNCIL,http://opendatacommunities.org/id/unitary-authority/warrington,ET0,Park Development Sites,41423,Materials,400500,27/06/2022,5100500905,1288,Rigby Taylor Ltd,105070
WARRINGTON BOROUGH COUNCIL,http://opendatacommunities.org/id/unitary-authority/warrington,FWB,P & W Development,54510,Multimedia,401200,27/06/2022,5100500913,9900,Signis Limited,117314
WARRINGTON BOROUGH COUNCIL,http://opendatacommunities.org/id/unitary-authority/warrington,ENO,Environmental Projects,82007,Consult.& Prof. Serv,440000,27/06/2022,5100500916,1850,Warmer Home Grants Ltd,118266
WARRINGTON BOROUGH COUNCIL,http://opendatacommunities.org/id/unitary-authority/warrington,RSC,IT - Contracts,23600,Computer Software - Maintenance,450850,27/06/2022,5100500927,11328.5,Phoenix Software Ltd,105022
WARRINGTON BOROUGH COUNCIL,http://opendatacommunities.org/id/unitary-authority/warrington,ENO,Building Maintenance Environment & Regen,82001,Maintenance of Plant & Machinery,250050,27/06/2022,5100500928,27336.57,KDE Limited,118464
WARRINGTON BOROUGH COUNCIL,http://opendatacommunities.org/id/unitary-authority/warrington,ET0,Transport Holding Account,41311,Veh Maint. Materials,300000,06/07/2022,5100500929,1756,Warrington Truck Parts,100379
WARRINGTON BOROUGH COUNCIL,http://opendatacommunities.org/id/unitary-authority/warrington,FWB,BCF - Telecare/Sensory,54560,Health Awareness,441950,27/06/2022,5100500934,2364,Porters Care Limited,118515
WARRINGTON BOROUGH COUNCIL,http://opendatacommunities.org/id/unitary-authority/warrington,FWB,BCF - Telecare/Sensory,54560,Health Awareness,441950,27/06/2022,5100500935,4700,Porters Care Limited,118515
WARRINGTON BOROUGH COUNCIL,http://opendatacommunities.org/id/unitary-authority/warrington,FWB,BCF - Telecare/Sensory,54560,Health Awareness,441950,27/06/2022,5100500936,3600,Porters Care Limited,118515
WARRINGTON BOROUGH COUNCIL,http://opendatacommunities.org/id/unitary-authority/warrington,ENO,Environmental Projects,82007,Building Work,200850,27/06/2022,5100500937,9571,Complete Home Energy Systems,111861
WARRINGTON BOROUGH COUNCIL,http://opendatacommunities.org/id/unitary-authority/warrington,ENO,Environmental Projects,82007,Building Work,200850,27/06/2022,5100500938,4305.02,Complete Home Energy Systems,111861
WARRINGTON BOROUGH COUNCIL,http://opendatacommunities.org/id/unitary-authority/warrington,ENO,Environmental Projects,82007,Building Work,200850,11/07/2022,5100500939,1260,Complete Home Energy Systems,111861
WARRINGTON BOROUGH COUNCIL,http://opendatacommunities.org/id/unitary-authority/warrington,ENO,Environmental Projects,82007,Building Work,200850,27/06/2022,5100500944,4839.9,Complete Home Energy Systems,111861
WARRINGTON BOROUGH COUNCIL,http://opendatacommunities.org/id/unitary-authority/warrington,ENO,Environmental Projects,82007,Building Work,200850,27/06/2022,5100500945,4839.9,Complete Home Energy Systems,111861
WARRINGTON BOROUGH COUNCIL,http://opendatacommunities.org/id/unitary-authority/warrington,ENO,Environmental Projects,82007,Building Work,200850,27/06/2022,5100500946,4693.23,Complete Home Energy Systems,111861
WARRINGTON BOROUGH COUNCIL,http://opendatacommunities.org/id/unitary-authority/warrington,ENO,Environmental Projects,82007,Building Work,200850,27/06/2022,5100500960,4447.79,Complete Home Energy Systems,111861
WARRINGTON BOROUGH COUNCIL,http://opendatacommunities.org/id/unitary-authority/warrington,ENO,Environmental Projects,82007,Building Work,200850,11/07/2022,5100500961,9881,Complete Home Energy Systems,111861
WARRINGTON BOROUGH COUNCIL,http://opendatacommunities.org/id/unitary-authority/warrington,DG0,Management & Admin,53130,Consult.& Prof. Serv,440000,27/06/2022,5100500975,1851.6,Bevan Brittan,102113
WARRINGTON BOROUGH COUNCIL,http://opendatacommunities.org/id/unitary-authority/warrington,ET0,Strategic Transportation,44510,Consult.& Prof. Serv,440000,27/06/2022,5100500976,17436.69,Aecom Limited,101037
WARRINGTON BOROUGH COUNCIL,http://opendatacommunities.org/id/unitary-authority/warrington,RSC,ICT Centralised Budget,23100,Computer Software - Maintenance,450850,27/06/2022,5100500978,2965.65,Ascertia Limited,117219
WARRINGTON BOROUGH COUNCIL,http://opendatacommunities.org/id/unitary-authority/warrington,ENO,Environmental Projects,82007,Building Work,200850,27/06/2022,5100500981,7051,Complete Home Energy Systems,111861
WARRINGTON BOROUGH COUNCIL,http://opendatacommunities.org/id/unitary-authority/warrington,ET0,Transport Holding Account,41311,Veh Maint. Materials,300000,27/06/2022,5100500997,1035.89,Probrush,103996
WARRINGTON BOROUGH COUNCIL,http://opendatacommunities.org/id/unitary-authority/warrington,ET0,Waste Disposal,41830,Residual Waste Disposal,530500,27/06/2022,5100501006,20752.32,Viridor Energy Limited,118588
WARRINGTON BOROUGH COUNCIL,http://opendatacommunities.org/id/unitary-authority/warrington,ET0,Waste Disposal,41830,Residual Waste Disposal,530500,27/06/2022,5100501007,11960.24,Viridor Energy Limited,118588
WARRINGTON BOROUGH COUNCIL,http://opendatacommunities.org/id/unitary-authority/warrington,ET0,Waste Disposal,41830,Residual Waste Disposal,530500,27/06/2022,5100501009,23056.85,Viridor Energy Limited,118588
WARRINGTON BOROUGH COUNCIL,http://opendatacommunities.org/id/unitary-authority/warrington,DG0,Development Control,43430,Consult.& Prof. Serv,440000,27/06/2022,5100501011,1130.5,Vivid Resourcing Limited,115752
WARRINGTON BOROUGH COUNCIL,http://opendatacommunities.org/id/unitary-authority/warrington,ET0,Waste Disposal,41830,Residual Waste Disposal,530500,27/06/2022,5100501012,13768.94,Viridor Energy Limited,118588
WARRINGTON BOROUGH COUNCIL,http://opendatacommunities.org/id/unitary-authority/warrington,DG0,Development Control,43430,Consult.& Prof. Serv,440000,27/06/2022,5100501013,1065,Vivid Resourcing Limited,115752
WARRINGTON BOROUGH COUNCIL,http://opendatacommunities.org/id/unitary-authority/warrington,ENO,Highways LTP,82004,Annual Maintenance,442100,27/06/2022,5100501016,700,Commutaports Ltd,111451
WARRINGTON BOROUGH COUNCIL,http://opendatacommunities.org/id/unitary-authority/warrington,ENO,Highways LTP,82004,Annual Maintenance,442100,27/06/2022,5100501017,3840,Commutaports Ltd,111451
WARRINGTON BOROUGH COUNCIL,http://opendatacommunities.org/id/unitary-authority/warrington,ENO,Environmental Projects,82007,Building Work,200850,11/07/2022,5100501019,5335.75,Broad Oak Properties Limited,118320
WARRINGTON BOROUGH COUNCIL,http://opendatacommunities.org/id/unitary-authority/warrington,ENO,Highways LTP,82004,Environmental Works,531050,11/07/2022,5100501020,1780,W A P Lawton & Son Ltd,105431
WARRINGTON BOROUGH COUNCIL,http://opendatacommunities.org/id/unitary-authority/warrington,ENO,Environmental Projects,82007,Building Work,200850,11/07/2022,5100501021,747,Broad Oak Properties Limited,118320
WARRINGTON BOROUGH COUNCIL,http://opendatacommunities.org/id/unitary-authority/warrington,ENO,Environmental Projects,82007,Building Work,200850,27/06/2022,5100501022,6282.86,Broad Oak Properties Limited,118320
WARRINGTON BOROUGH COUNCIL,http://opendatacommunities.org/id/unitary-authority/warrington,ENO,Environmental Projects,82007,Building Work,200850,27/06/2022,5100501023,3496.03,Broad Oak Properties Limited,118320
WARRINGTON BOROUGH COUNCIL,http://opendatacommunities.org/id/unitary-authority/warrington,ENO,Highways Other,82005,Environmental Works,531050,11/07/2022,5100501026,177527.59,A E Yates Ltd,109758
WARRINGTON BOROUGH COUNCIL,http://opendatacommunities.org/id/unitary-authority/warrington,DG0,Development Control,43430,Consult.& Prof. Serv,440000,29/06/2022,5100501029,3100,Adams Integra,118822
WARRINGTON BOROUGH COUNCIL,http://opendatacommunities.org/id/unitary-authority/warrington,ET0,Walton Estate,41430,Consult.& Prof. Serv,440000,28/06/2022,5100501061,1800,Carringtons Catering Ltd,116708
WARRINGTON BOROUGH COUNCIL,http://opendatacommunities.org/id/unitary-authority/warrington,FWB,DSG Independent School Fees,32011,Fees (Including Agents Fees),441450,18/07/2022,5100501062,19245.67,West Kirby Residential School,103625
WARRINGTON BOROUGH COUNCIL,http://opendatacommunities.org/id/unitary-authority/warrington,PIO,People & Improvement Other,85002,Lifts from Stock,400850,28/06/2022,5100501066,7707,AMW Lift & Mobility Services Ltd,112766
WARRINGTON BOROUGH COUNCIL,http://opendatacommunities.org/id/unitary-authority/warrington,RSC,IT - Contracts,23600,Computer Software - Maintenance,450850,28/06/2022,5100501079,477908.2,Phoenix Software Ltd,105022
WARRINGTON BOROUGH COUNCIL,http://opendatacommunities.org/id/unitary-authority/warrington,IGO,Property & Estates,86001,Consult.& Prof. Serv,440000,11/07/2022,5100501080,1700,Wsp Uk Ltd,103007
WARRINGTON BOROUGH COUNCIL,http://opendatacommunities.org/id/unitary-authority/warrington,FWB,Mental Capacity Act,54650,Consult.& Prof. Serv,440000,28/06/2022,5100501084,4900,Reed Talent Solutions Limited,118453
WARRINGTON BOROUGH COUNCIL,http://opendatacommunities.org/id/unitary-authority/warrington,ET0,Taxi and Private Hire Licensing,44450,Consult.& Prof. Serv,440000,28/06/2022,5100501085,903.39,Oyster Partnership,116595
WARRINGTON BOROUGH COUNCIL,http://opendatacommunities.org/id/unitary-authority/warrington,ET0,Construction Stores Overhead Account,41320,Uniforms,420000,28/06/2022,5100501086,517.7,SMI INT Group Ltd,117262
WARRINGTON BOROUGH COUNCIL,http://opendatacommunities.org/id/unitary-authority/warrington,FWB,BCF - Equipment Store,54930,Equipment Purchase & Contract,400000,28/06/2022,5100501094,920.9,Nottingham Rehab Limited,101513
WARRINGTON BOROUGH COUNCIL,http://opendatacommunities.org/id/unitary-authority/warrington,IGO,Property & Estates,86001,Consult.& Prof. Serv,440000,07/07/2022,5100501096,9500,Wsp Uk Ltd,103007
WARRINGTON BOROUGH COUNCIL,http://opendatacommunities.org/id/unitary-authority/warrington,ENO,Highways LTP,82004,Materials,400500,28/06/2022,5100501111,17517,Marwood Electrical Co Ltd,104927
WARRINGTON BOROUGH COUNCIL,http://opendatacommunities.org/id/unitary-authority/warrington,ENO,Building Maintenance Environment & Regen,82001,Maintenance of Plant & Machinery,250050,04/07/2022,5100501114,6378.53,KDE Limited,118464
WARRINGTON BOROUGH COUNCIL,http://opendatacommunities.org/id/unitary-authority/warrington,ENO,Building Maintenance Environment & Regen,82001,Maintenance of Plant & Machinery,250050,04/07/2022,5100501115,4917.12,KDE Limited,118464
WARRINGTON BOROUGH COUNCIL,http://opendatacommunities.org/id/unitary-authority/warrington,ENO,Highways Other,82005,Environmental Works,531050,29/06/2022,5100501210,9281.01,A E Yates Ltd,109758
WARRINGTON BOROUGH COUNCIL,http://opendatacommunities.org/id/unitary-authority/warrington,ET0,Transport Holding Account,41311,Veh Maint. Materials,300000,11/07/2022,5100501216,750.14,Dennis Eagle Parts,104661
WARRINGTON BOROUGH COUNCIL,http://opendatacommunities.org/id/unitary-authority/warrington,ET0,Transport Holding Account,41311,Vehicle Hire Charges,320000,29/06/2022,5100501217,8424.41,Enterprise Flex E Rent,100597
WARRINGTON BOROUGH COUNCIL,http://opendatacommunities.org/id/unitary-authority/warrington,RSC,Individual Electoral Registration,11660,Advertisings-Jobs,190000,29/06/2022,5100501218,581,Association Of Electoral Administra,101942
WARRINGTON BOROUGH COUNCIL,http://opendatacommunities.org/id/unitary-authority/warrington,RSC,IT - Contracts,23600,Computer Software - Maintenance,450850,11/07/2022,5100501226,18696,Accenture UK Limited,118763
WARRINGTON BOROUGH COUNCIL,http://opendatacommunities.org/id/unitary-authority/warrington,ET0,Waste Recycling,41820,Waste Initiatives,443200,29/06/2022,5100501228,5040,Mgb Plastics Ltd,103465
WARRINGTON BOROUGH COUNCIL,http://opendatacommunities.org/id/unitary-authority/warrington,ET0,Waste Recycling,41820,Waste Initiatives,443200,29/06/2022,5100501229,1969.92,Mgb Plastics Ltd,103465
WARRINGTON BOROUGH COUNCIL,http://opendatacommunities.org/id/unitary-authority/warrington,ET0,Fair Trading & Investigations,41500,Consult.& Prof. Serv,440000,29/06/2022,5100501230,1588,Capita Business Services Ltd,105516
WARRINGTON BOROUGH COUNCIL,http://opendatacommunities.org/id/unitary-authority/warrington,ET0,Transport Holding Account,41311,Petrol,300050,29/06/2022,5100501231,3001.48,Standard Fuel Oils Ltd,117478
WARRINGTON BOROUGH COUNCIL,http://opendatacommunities.org/id/unitary-authority/warrington,RSC,Welfare Support,10360,"Campaigns,  Projects and Events",491950,29/06/2022,5100501239,500,Gift Card CIC,118834
WARRINGTON BOROUGH COUNCIL,http://opendatacommunities.org/id/unitary-authority/warrington,RSC,ICT Centralised Budget,23100,Computer Software - Maintenance,450850,29/06/2022,5100501242,6000,Locata Housing Services,114319
WARRINGTON BOROUGH COUNCIL,http://opendatacommunities.org/id/unitary-authority/warrington,ET0,Walton Hall Catering,41433,Provisions-Purchase,410000,29/06/2022,5100501244,3518.92,Carringtons Catering Ltd,116708
WARRINGTON BOROUGH COUNCIL,http://opendatacommunities.org/id/unitary-authority/warrington,ET0,Waste Recycling,41820,Waste Initiatives,443200,29/06/2022,5100501248,6912,Mgb Plastics Ltd,103465
WARRINGTON BOROUGH COUNCIL,http://opendatacommunities.org/id/unitary-authority/warrington,ET0,Waste Recycling,41820,Waste Initiatives,443200,29/06/2022,5100501250,7200,Mgb Plastics Ltd,103465
WARRINGTON BOROUGH COUNCIL,http://opendatacommunities.org/id/unitary-authority/warrington,FWB,Educational Health & Care,32203,Fees (Including Agents Fees),441450,29/06/2022,5100501252,1534,Mosaic Children's Therapy Centre,117034
WARRINGTON BOROUGH COUNCIL,http://opendatacommunities.org/id/unitary-authority/warrington,ET0,Street Lighting Client,44241,Lighting Energy Char,531550,29/06/2022,5100501261,908.49,Npower Electricity,101884
WARRINGTON BOROUGH COUNCIL,http://opendatacommunities.org/id/unitary-authority/warrington,COR,Investment Property Acquisitions,62095,Consult.& Prof. Serv,440000,29/06/2022,5100501269,2000,CBRE Limited,113065
WARRINGTON BOROUGH COUNCIL,http://opendatacommunities.org/id/unitary-authority/warrington,FWB,Inclusion,32207,Fees (Including Agents Fees),441450,29/06/2022,5100501270,500,Leggett Consultancy,118590
WARRINGTON BOROUGH COUNCIL,http://opendatacommunities.org/id/unitary-authority/warrington,FWB,Contracts - SM Commissioning Team 1,55910,Drug Action,443600,29/06/2022,5100501272,1480,Greater Mcr Mental Health NHS,117528
WARRINGTON BOROUGH COUNCIL,http://opendatacommunities.org/id/unitary-authority/warrington,ET0,Street Lighting Client,44241,Lighting Energy Char,531550,29/06/2022,5100501277,1419.53,Npower Electricity,101884
WARRINGTON BOROUGH COUNCIL,http://opendatacommunities.org/id/unitary-authority/warrington,ET0,Transport Holding Account,41311,Petrol,300050,11/07/2022,5100501282,3031.8,Standard Fuel Oils Ltd,117478
WARRINGTON BOROUGH COUNCIL,http://opendatacommunities.org/id/unitary-authority/warrington,ET0,Transport Holding Account,41311,Diesel,300100,11/07/2022,5100501283,2435.4,Standard Fuel Oils Ltd,117478
WARRINGTON BOROUGH COUNCIL,http://opendatacommunities.org/id/unitary-authority/warrington,ET0,Transport Holding Account,41311,Diesel,300100,11/07/2022,5100501284,4621.76,Standard Fuel Oils Ltd,117478
WARRINGTON BOROUGH COUNCIL,http://opendatacommunities.org/id/unitary-authority/warrington,ET0,Transport Holding Account,41311,Diesel,300100,06/07/2022,5100501285,28954.8,Standard Fuel Oils Ltd,117478
WARRINGTON BOROUGH COUNCIL,http://opendatacommunities.org/id/unitary-authority/warrington,ENO,Highways Other,82005,Equipment Purchase & Contract,400000,20/07/2022,5100501286,13365,Vodafone Limited PLC,101402
WARRINGTON BOROUGH COUNCIL,http://opendatacommunities.org/id/unitary-authority/warrington,FWB,Contracts - SM Commissioning Team 1,55910,Public Health Contract Payments,540000,11/07/2022,5100501288,283991.75,Bridgewater Community Healthcare,108932
WARRINGTON BOROUGH COUNCIL,http://opendatacommunities.org/id/unitary-authority/warrington,FWB,Contracts - SM Commissioning Team 1,55910,Public Health Contract Payments,540000,11/07/2022,5100501289,283991.75,Bridgewater Community Healthcare,108932
WARRINGTON BOROUGH COUNCIL,http://opendatacommunities.org/id/unitary-authority/warrington,FWB,Supporting People Contracts,53260,Sheltd/Xtra Care Hsing and Comm Alarms,535050,30/06/2022,5100501318,1442.44,Warrington Housing Current Acc,101208
WARRINGTON BOROUGH COUNCIL,http://opendatacommunities.org/id/unitary-authority/warrington,FWB,Supporting People Contracts,53260,Young People and/or Care Leavers,535150,30/06/2022,5100501319,76711.38,Arena Options,101746
WARRINGTON BOROUGH COUNCIL,http://opendatacommunities.org/id/unitary-authority/warrington,FWB,Care Purchase - Central,54050,CP-Domicil.External,440950,30/06/2022,5100501320,22047.56,Making Space,104913
WARRINGTON BOROUGH COUNCIL,http://opendatacommunities.org/id/unitary-authority/warrington,FWB,3rd Sector Contracts,53920,Payment of Grants,470050,30/06/2022,5100501321,17797.5,WIRED,109547
WARRINGTON BOROUGH COUNCIL,http://opendatacommunities.org/id/unitary-authority/warrington,FWB,Supporting People Contracts,53260,People with Mental Health Problems,535200,30/06/2022,5100501322,5712.37,Independent Living Alliance Ltd,111037
WARRINGTON BOROUGH COUNCIL,http://opendatacommunities.org/id/unitary-authority/warrington,FWB,Supporting People Contracts,53260,Young People and/or Care Leavers,535150,30/06/2022,5100501323,19583.33,Forum Birkenhead Housing Associ.,118085
WARRINGTON BOROUGH COUNCIL,http://opendatacommunities.org/id/unitary-authority/warrington,DG0,Registrar Office,45188,Servicing Contracts,200150,30/06/2022,5100501324,1168.47,Equans Services Ltd,118813
WARRINGTON BOROUGH COUNCIL,http://opendatacommunities.org/id/unitary-authority/warrington,DG0,Risley Moss Visitor's Centre,45179,Servicing Contracts,200150,30/06/2022,5100501326,839.7,Equans Services Ltd,118813
WARRINGTON BOROUGH COUNCIL,http://opendatacommunities.org/id/unitary-authority/warrington,DG0,Rixton Claypits Visitor's Centre,45187,Servicing Contracts,200150,30/06/2022,5100501329,905.34,Equans Services Ltd,118813
WARRINGTON BOROUGH COUNCIL,http://opendatacommunities.org/id/unitary-authority/warrington,DG0,Sandy Lane Children's Centre,45035,Servicing Contracts,200150,30/06/2022,5100501330,1344.36,Equans Services Ltd,118813
WARRINGTON BOROUGH COUNCIL,http://opendatacommunities.org/id/unitary-authority/warrington,DG0,Shaw Street Recreation Ground Pavilion,45206,Servicing Contracts,200150,30/06/2022,5100501331,1318.44,Equans Services Ltd,118813
WARRINGTON BOROUGH COUNCIL,http://opendatacommunities.org/id/unitary-authority/warrington,DG0,Sow Brook Changing Rooms,45203,Servicing Contracts,200150,30/06/2022,5100501333,508.14,Equans Services Ltd,118813
WARRINGTON BOROUGH COUNCIL,http://opendatacommunities.org/id/unitary-authority/warrington,DG0,St Elphin's Park Pavillion-ManchesterRd,45209,Servicing Contracts,200150,30/06/2022,5100501334,629.28,Equans Services Ltd,118813
WARRINGTON BOROUGH COUNCIL,http://opendatacommunities.org/id/unitary-authority/warrington,DG0,Redacted for personal data,45249,Servicing Contracts,200150,30/06/2022,5100501335,1217.07,Equans Services Ltd,118813
WARRINGTON BOROUGH COUNCIL,http://opendatacommunities.org/id/unitary-authority/warrington,DG0,St Werburgh's Social Services Offices,45160,Servicing Contracts,200150,30/06/2022,5100501336,4028.16,Equans Services Ltd,118813
WARRINGTON BOROUGH COUNCIL,http://opendatacommunities.org/id/unitary-authority/warrington,DG0,TIME SQ. NEW RETAIL MARKET UPRN 28016,45260,Servicing Contracts,200150,30/06/2022,5100501338,19841.73,Equans Services Ltd,118813
WARRINGTON BOROUGH COUNCIL,http://opendatacommunities.org/id/unitary-authority/warrington,DG0,Thornton Road Changing Rooms,45204,Servicing Contracts,200150,30/06/2022,5100501339,1177.29,Equans Services Ltd,118813
WARRINGTON BOROUGH COUNCIL,http://opendatacommunities.org/id/unitary-authority/warrington,DG0,Town Hall,45167,Servicing Contracts,200150,30/06/2022,5100501340,2116.65,Equans Services Ltd,118813
WARRINGTON BOROUGH COUNCIL,http://opendatacommunities.org/id/unitary-authority/warrington,DG0,Victoria Park Sports Area,45244,Servicing Contracts,200150,30/06/2022,5100501344,1050.87,Equans Services Ltd,118813
WARRINGTON BOROUGH COUNCIL,http://opendatacommunities.org/id/unitary-authority/warrington,DG0,Victoria Park Sports Area,45244,Servicing Contracts,200150,30/06/2022,5100501346,1563.66,Equans Services Ltd,118813
WARRINGTON BOROUGH COUNCIL,http://opendatacommunities.org/id/unitary-authority/warrington,DG0,Victoria Park Sports Pavillion,45212,Servicing Contracts,200150,30/06/2022,5100501347,3747.21,Equans Services Ltd,118813
WARRINGTON BOROUGH COUNCIL,http://opendatacommunities.org/id/unitary-authority/warrington,DG0,Walton Crematorium,45016,Servicing Contracts,200150,30/06/2022,5100501348,1506.3,Equans Services Ltd,118813
WARRINGTON BOROUGH COUNCIL,http://opendatacommunities.org/id/unitary-authority/warrington,DG0,Walton Golf Course (Clubhouse),45114,Servicing Contracts,200150,30/06/2022,5100501349,2308.89,Equans Services Ltd,118813
WARRINGTON BOROUGH COUNCIL,http://opendatacommunities.org/id/unitary-authority/warrington,DG0,Walton Hall,45123,Servicing Contracts,200150,30/06/2022,5100501350,3588.87,Equans Services Ltd,118813
WARRINGTON BOROUGH COUNCIL,http://opendatacommunities.org/id/unitary-authority/warrington,DG0,Walton Hall Estate/Gardens,45122,Servicing Contracts,200150,30/06/2022,5100501352,641.88,Equans Services Ltd,118813
WARRINGTON BOROUGH COUNCIL,http://opendatacommunities.org/id/unitary-authority/warrington,DG0,Walton Hall Estate/Gardens,45122,Servicing Contracts,200150,30/06/2022,5100501354,511.95,Equans Services Ltd,118813
WARRINGTON BOROUGH COUNCIL,http://opendatacommunities.org/id/unitary-authority/warrington,DG0,Walton Hall Estate/Gardens,45122,Servicing Contracts,200150,30/06/2022,5100501355,1330.02,Equans Services Ltd,118813
WARRINGTON BOROUGH COUNCIL,http://opendatacommunities.org/id/unitary-authority/warrington,DG0,Heritage Yard Walton Hall,45248,Servicing Contracts,200150,30/06/2022,5100501358,985.32,Equans Services Ltd,118813
WARRINGTON BOROUGH COUNCIL,http://opendatacommunities.org/id/unitary-authority/warrington,DG0,Warrington Cemetery,45014,Servicing Contracts,200150,30/06/2022,5100501360,635.85,Equans Services Ltd,118813
WARRINGTON BOROUGH COUNCIL,http://opendatacommunities.org/id/unitary-authority/warrington,DG0,Market Multi Storey Car Park Academy Way,45131,Servicing Contracts,200150,30/06/2022,5100501361,3250.29,Equans Services Ltd,118813
WARRINGTON BOROUGH COUNCIL,http://opendatacommunities.org/id/unitary-authority/warrington,DG0,Former Park Pavillion Victoria Park,45234,Servicing Contracts,200150,30/06/2022,5100501362,542.85,Equans Services Ltd,118813
WARRINGTON BOROUGH COUNCIL,http://opendatacommunities.org/id/unitary-authority/warrington,DG0,West Annexe,45161,Servicing Contracts,200150,30/06/2022,5100501363,1468.38,Equans Services Ltd,118813
WARRINGTON BOROUGH COUNCIL,http://opendatacommunities.org/id/unitary-authority/warrington,DG0,Westy Community Centre,45069,Servicing Contracts,200150,30/06/2022,5100501364,1522.86,Equans Services Ltd,118813
WARRINGTON BOROUGH COUNCIL,http://opendatacommunities.org/id/unitary-authority/warrington,DG0,Unit 12 The Wharf,45429,Servicing Contracts,200150,30/06/2022,5100501365,861.21,Equans Services Ltd,118813
WARRINGTON BOROUGH COUNCIL,http://opendatacommunities.org/id/unitary-authority/warrington,DG0,Whitbarrow Road Rangers Cabin,45178,Servicing Contracts,200150,30/06/2022,5100501367,543.9,Equans Services Ltd,118813
WARRINGTON BOROUGH COUNCIL,http://opendatacommunities.org/id/unitary-authority/warrington,DG0,Whitecross Community Centre,45070,Servicing Contracts,200150,30/06/2022,5100501368,1522.38,Equans Services Ltd,118813
WARRINGTON BOROUGH COUNCIL,http://opendatacommunities.org/id/unitary-authority/warrington,DG0,Woolston Playbarn,45039,Servicing Contracts,200150,30/06/2022,5100501370,1074.09,Equans Services Ltd,118813
WARRINGTON BOROUGH COUNCIL,http://opendatacommunities.org/id/unitary-authority/warrington,FWB,Supporting People Contracts,53260,Risk of Homelessness and Floating Suppor,535100,30/06/2022,5100501387,10242,Warrington Womens Aid Ltd,440000
WARRINGTON BOROUGH COUNCIL,http://opendatacommunities.org/id/unitary-authority/warrington,FWB,Supporting People Contracts,53260,Risk of Homelessness and Floating Suppor,535100,30/06/2022,5100501388,16666.66,Room at the Inn and The Y Project,440065
WARRINGTON BOROUGH COUNCIL,http://opendatacommunities.org/id/unitary-authority/warrington,RSC,IT - Contracts,23600,Computer Software - Maintenance,450850,30/06/2022,5100501390,483670,Phoenix Software Ltd,105022
WARRINGTON BOROUGH COUNCIL,http://opendatacommunities.org/id/unitary-authority/warrington,DG0,B.U.M Warrington & Co,43835,Advertisings-Jobs,190000,30/06/2022,5100501392,2000,Hemming Group Ltd,104779
WARRINGTON BOROUGH COUNCIL,http://opendatacommunities.org/id/unitary-authority/warrington,ET0,Waste Disposal,41830,Residual Waste Disposal,530500,30/06/2022,5100501393,6049.95,Viridor Energy Limited,118588
WARRINGTON BOROUGH COUNCIL,http://opendatacommunities.org/id/unitary-authority/warrington,FWB,Educational Health & Care,32203,Fees (Including Agents Fees),441450,30/06/2022,5100501398,827.18,ATtherapy Ltd,118840
WARRINGTON BOROUGH COUNCIL,http://opendatacommunities.org/id/unitary-authority/warrington,FWB,Educational Health & Care,32203,Fees (Including Agents Fees),441450,30/06/2022,5100501399,767.8,ATtherapy Ltd,118840
WARRINGTON BOROUGH COUNCIL,http://opendatacommunities.org/id/unitary-authority/warrington,FWB,Educational Health & Care,32203,Fees (Including Agents Fees),441450,30/06/2022,5100501400,1314.06,ATtherapy Ltd,118840
WARRINGTON BOROUGH COUNCIL,http://opendatacommunities.org/id/unitary-authority/warrington,FWB,DSG - Medical Needs,32002,Eotas Pupil Funding,490350,30/06/2022,5100501404,535,TutorRight Limited,116990
WARRINGTON BOROUGH COUNCIL,http://opendatacommunities.org/id/unitary-authority/warrington,ENO,Highways Other,82005,Consult.& Prof. Serv,440000,30/06/2022,5100501405,675,Atkins Ltd,105752
WARRINGTON BOROUGH COUNCIL,http://opendatacommunities.org/id/unitary-authority/warrington,ENO,Highways LTP,82004,Traffic Section,531150,30/06/2022,5100501408,840,W A P Lawton & Son Ltd,105431
WARRINGTON BOROUGH COUNCIL,http://opendatacommunities.org/id/unitary-authority/warrington,PIO,People & Improvement Other,85002,Minor Adaptations<750,400700,30/06/2022,5100501409,920,Access-Able (UK) Limited,114939
WARRINGTON BOROUGH COUNCIL,http://opendatacommunities.org/id/unitary-authority/warrington,FWB,BCF - Padgate House,54760,Agency Supply - GF,180000,30/06/2022,5100501411,640.8,Bluetree Healthcare Limited,117310
WARRINGTON BOROUGH COUNCIL,http://opendatacommunities.org/id/unitary-authority/warrington,RSC,Civic,11440,"Campaigns,  Projects and Events",491950,30/06/2022,5100501412,880,Brian The Brush Ltd,117294
WARRINGTON BOROUGH COUNCIL,http://opendatacommunities.org/id/unitary-authority/warrington,FWB,Virtual School,31112,Looked after children in Warrington,301000,28/07/2022,5100501413,1090,Bridgewater High School Academy,400251
WARRINGTON BOROUGH COUNCIL,http://opendatacommunities.org/id/unitary-authority/warrington,FWB,Virtual School,31112,Looked after children in Warrington,301000,28/07/2022,5100501413,550,Bridgewater High School Academy,400251
WARRINGTON BOROUGH COUNCIL,http://opendatacommunities.org/id/unitary-authority/warrington,ET0,Public Health Licensing,41550,Consult.& Prof. Serv,440000,11/07/2022,5100501415,1500,Buckingham Futures,118389
WARRINGTON BOROUGH COUNCIL,http://opendatacommunities.org/id/unitary-authority/warrington,ENO,Environmental Projects,82007,Building Work,200850,30/06/2022,5100501416,6191,Complete Home Energy Systems,111861
WARRINGTON BOROUGH COUNCIL,http://opendatacommunities.org/id/unitary-authority/warrington,FWB,Catalyst Choices,54495,CP ExternalOther Exp,440800,01/07/2022,5100501417,30000,Walton Lea Partnership,102953
WARRINGTON BOROUGH COUNCIL,http://opendatacommunities.org/id/unitary-authority/warrington,DG0,Trust Livewire,45431,Servicing Contracts,200150,01/07/2022,5100501419,999.34,Equans Services Ltd,118813
WARRINGTON BOROUGH COUNCIL,http://opendatacommunities.org/id/unitary-authority/warrington,COR,Investment Property Acquisitions,62095,Consult.& Prof. Serv,440000,30/06/2022,5100501428,500,Brabners LLP,117064
WARRINGTON BOROUGH COUNCIL,http://opendatacommunities.org/id/unitary-authority/warrington,FWB,Collaborative Training Group,33301,Training,190150,30/06/2022,5100501431,3400,Aim Training Project,105546
WARRINGTON BOROUGH COUNCIL,http://opendatacommunities.org/id/unitary-authority/warrington,FWB,Collaborative Training Group,33301,Training,190150,30/06/2022,5100501431,505.01,Aim Training Project,105546
WARRINGTON BOROUGH COUNCIL,http://opendatacommunities.org/id/unitary-authority/warrington,ET0,Woolston Depot,41331,Building Work,200850,30/06/2022,5100501434,2777.32,GBJ Environmental Systems (UK),118818
WARRINGTON BOROUGH COUNCIL,http://opendatacommunities.org/id/unitary-authority/warrington,FWB,OT/Equip - Childrens,54315,Equipment Purchase & Contract,400000,30/06/2022,5100501435,798.3,BES Rehab Limited,105798
WARRINGTON BOROUGH COUNCIL,http://opendatacommunities.org/id/unitary-authority/warrington,ENO,Environmental Projects,82007,Building Work,200850,11/07/2022,5100501437,4862.09,Broad Oak Properties Limited,118320
WARRINGTON BOROUGH COUNCIL,http://opendatacommunities.org/id/unitary-authority/warrington,ENO,Environmental Projects,82007,Building Work,200850,11/07/2022,5100501438,5271.44,Broad Oak Properties Limited,118320
WARRINGTON BOROUGH COUNCIL,http://opendatacommunities.org/id/unitary-authority/warrington,ENO,Environmental Projects,82007,Building Work,200850,11/07/2022,5100501439,1178,Broad Oak Properties Limited,118320
WARRINGTON BOROUGH COUNCIL,http://opendatacommunities.org/id/unitary-authority/warrington,RSC,ICT Projects,23300,Computer Software - Maintenance,450850,30/06/2022,5100501441,8084.61,Phoenix Software Ltd,105022
WARRINGTON BOROUGH COUNCIL,http://opendatacommunities.org/id/unitary-authority/warrington,RSC,ICT Projects,23300,Computer Software - Maintenance,450850,30/06/2022,5100501441,1667.25,Phoenix Software Ltd,105022
WARRINGTON BOROUGH COUNCIL,http://opendatacommunities.org/id/unitary-authority/warrington,COR,Other Commercial Prop.,43560,Consult.& Prof. Serv,440000,11/07/2022,5100501443,520,Brabners LLP,117064
WARRINGTON BOROUGH COUNCIL,http://opendatacommunities.org/id/unitary-authority/warrington,ENO,Environmental Projects,82007,Building Work,200850,11/07/2022,5100501444,930,Broad Oak Properties Limited,118320
WARRINGTON BOROUGH COUNCIL,http://opendatacommunities.org/id/unitary-authority/warrington,ET0,Facilities Management,41422,Materials,400500,01/07/2022,5100501449,1339.6,Atg Access Ltd,105321
WARRINGTON BOROUGH COUNCIL,http://opendatacommunities.org/id/unitary-authority/warrington,DG0,Trust Livewire,45431,Servicing Contracts,200150,01/07/2022,5100501450,1570.86,Equans Services Ltd,118813
WARRINGTON BOROUGH COUNCIL,http://opendatacommunities.org/id/unitary-authority/warrington,DG0,Trust Livewire,45431,Servicing Contracts,200150,01/07/2022,5100501454,3899.79,Equans Services Ltd,118813
WARRINGTON BOROUGH COUNCIL,http://opendatacommunities.org/id/unitary-authority/warrington,DG0,Trust Livewire,45431,Servicing Contracts,200150,01/07/2022,5100501460,578.13,Equans Services Ltd,118813
WARRINGTON BOROUGH COUNCIL,http://opendatacommunities.org/id/unitary-authority/warrington,DG0,Trust Livewire,45431,Servicing Contracts,200150,01/07/2022,5100501462,2945.94,Equans Services Ltd,118813
WARRINGTON BOROUGH COUNCIL,http://opendatacommunities.org/id/unitary-authority/warrington,DG0,Trust Cultural,45432,Servicing Contracts,200150,01/07/2022,5100501465,956.93,Equans Services Ltd,118813
WARRINGTON BOROUGH COUNCIL,http://opendatacommunities.org/id/unitary-authority/warrington,DG0,Trust Cultural,45432,Servicing Contracts,200150,01/07/2022,5100501466,1264.86,Equans Services Ltd,118813
WARRINGTON BOROUGH COUNCIL,http://opendatacommunities.org/id/unitary-authority/warrington,DG0,TIME SQ. NEW COUNCIL OFFICES UPRN 28015,45259,Servicing Contracts,200150,01/07/2022,5100501470,10401.58,Equans Services Ltd,118813
WARRINGTON BOROUGH COUNCIL,http://opendatacommunities.org/id/unitary-authority/warrington,DG0,5 Tanning Court,45091,Servicing Contracts,200150,01/07/2022,5100501476,884.49,Equans Services Ltd,118813
WARRINGTON BOROUGH COUNCIL,http://opendatacommunities.org/id/unitary-authority/warrington,DG0,Bank Park New Pavillion & Caf�,45258,Servicing Contracts,200150,01/07/2022,5100501481,572.97,Equans Services Ltd,118813
WARRINGTON BOROUGH COUNCIL,http://opendatacommunities.org/id/unitary-authority/warrington,DG0,Burtonwood Community Centre,45075,Servicing Contracts,200150,01/07/2022,5100501486,546.78,Equans Services Ltd,118813
WARRINGTON BOROUGH COUNCIL,http://opendatacommunities.org/id/unitary-authority/warrington,DG0,Crosfields Rec Ground,45213,Servicing Contracts,200150,01/07/2022,5100501492,558.55,Equans Services Ltd,118813
WARRINGTON BOROUGH COUNCIL,http://opendatacommunities.org/id/unitary-authority/warrington,DG0,East Annexe & Drill Hall,45169,Servicing Contracts,200150,01/07/2022,5100501497,1002.72,Equans Services Ltd,118813
WARRINGTON BOROUGH COUNCIL,http://opendatacommunities.org/id/unitary-authority/warrington,DG0,UPRN 15268 Hatters Row,45232,Servicing Contracts,200150,01/07/2022,5100501500,693.03,Equans Services Ltd,118813
WARRINGTON BOROUGH COUNCIL,http://opendatacommunities.org/id/unitary-authority/warrington,DG0,Orford Community Cafe Hub,45074,Servicing Contracts,200150,01/07/2022,5100501515,741.72,Equans Services Ltd,118813
WARRINGTON BOROUGH COUNCIL,http://opendatacommunities.org/id/unitary-authority/warrington,DG0,Orford Youth Centre - Capesthorne Road,45073,Servicing Contracts,200150,01/07/2022,5100501517,690.94,Equans Services Ltd,118813
WARRINGTON BOROUGH COUNCIL,http://opendatacommunities.org/id/unitary-authority/warrington,DG0,Padgate/Fearnhead Cross Youth Centre,45080,Servicing Contracts,200150,01/07/2022,5100501519,512.66,Equans Services Ltd,118813
WARRINGTON BOROUGH COUNCIL,http://opendatacommunities.org/id/unitary-authority/warrington,DG0,Padgate House,45061,Servicing Contracts,200150,01/07/2022,5100501520,903.02,Equans Services Ltd,118813
WARRINGTON BOROUGH COUNCIL,http://opendatacommunities.org/id/unitary-authority/warrington,DG0,St Werburgh's Social Services Offices,45160,Servicing Contracts,200150,01/07/2022,5100501539,1342.72,Equans Services Ltd,118813
WARRINGTON BOROUGH COUNCIL,http://opendatacommunities.org/id/unitary-authority/warrington,DG0,TIME SQ. NEW RETAIL MARKET UPRN 28016,45260,Servicing Contracts,200150,01/07/2022,5100501541,6613.91,Equans Services Ltd,118813
WARRINGTON BOROUGH COUNCIL,http://opendatacommunities.org/id/unitary-authority/warrington,DG0,Town Hall,45167,Servicing Contracts,200150,01/07/2022,5100501543,705.55,Equans Services Ltd,118813
WARRINGTON BOROUGH COUNCIL,http://opendatacommunities.org/id/unitary-authority/warrington,DG0,Victoria Park Sports Area,45244,Servicing Contracts,200150,01/07/2022,5100501549,521.22,Equans Services Ltd,118813
WARRINGTON BOROUGH COUNCIL,http://opendatacommunities.org/id/unitary-authority/warrington,DG0,Victoria Park Sports Pavillion,45212,Servicing Contracts,200150,01/07/2022,5100501550,1249.07,Equans Services Ltd,118813
WARRINGTON BOROUGH COUNCIL,http://opendatacommunities.org/id/unitary-authority/warrington,DG0,Walton Crematorium,45016,Servicing Contracts,200150,01/07/2022,5100501551,502.1,Equans Services Ltd,118813
WARRINGTON BOROUGH COUNCIL,http://opendatacommunities.org/id/unitary-authority/warrington,DG0,Walton Golf Course (Clubhouse),45114,Servicing Contracts,200150,01/07/2022,5100501552,769.63,Equans Services Ltd,118813
WARRINGTON BOROUGH COUNCIL,http://opendatacommunities.org/id/unitary-authority/warrington,DG0,Walton Hall,45123,Servicing Contracts,200150,01/07/2022,5100501553,1196.29,Equans Services Ltd,118813
WARRINGTON BOROUGH COUNCIL,http://opendatacommunities.org/id/unitary-authority/warrington,DG0,Market Multi Storey Car Park Academy Way,45131,Servicing Contracts,200150,01/07/2022,5100501564,1083.43,Equans Services Ltd,118813
WARRINGTON BOROUGH COUNCIL,http://opendatacommunities.org/id/unitary-authority/warrington,DG0,Westy Community Centre,45069,Servicing Contracts,200150,01/07/2022,5100501567,507.62,Equans Services Ltd,118813
WARRINGTON BOROUGH COUNCIL,http://opendatacommunities.org/id/unitary-authority/warrington,DG0,Whitecross Community Centre,45070,Servicing Contracts,200150,01/07/2022,5100501571,507.46,Equans Services Ltd,118813
WARRINGTON BOROUGH COUNCIL,http://opendatacommunities.org/id/unitary-authority/warrington,ENO,Environmental Projects,82007,Building Work,200850,01/07/2022,5100501603,7691,Complete Home Energy Systems,111861
WARRINGTON BOROUGH COUNCIL,http://opendatacommunities.org/id/unitary-authority/warrington,ET0,NTH/Quattro Re-Dvelopment,40063,Consult.& Prof. Serv,440000,01/07/2022,5100501606,28000,Like Architects Ltd,118027
WARRINGTON BOROUGH COUNCIL,http://opendatacommunities.org/id/unitary-authority/warrington,ET0,Facilities Management,41422,Materials,400500,01/07/2022,5100501610,1048,Atg Access Ltd,105321
WARRINGTON BOROUGH COUNCIL,http://opendatacommunities.org/id/unitary-authority/warrington,ET0,Golf Course Client,41432,Equipment Purchase & Contract,400000,01/07/2022,5100501614,4120,B & K Landscapes,105448
WARRINGTON BOROUGH COUNCIL,http://opendatacommunities.org/id/unitary-authority/warrington,FWB,Virtual School,31112,Looked after children in Warrington,301000,01/07/2022,5100501618,1200,Carlton Academy Trust,118804
WARRINGTON BOROUGH COUNCIL,http://opendatacommunities.org/id/unitary-authority/warrington,FWB,Virtual School,31112,Looked after children in Warrington,301000,01/07/2022,5100501618,1200,Carlton Academy Trust,118804
WARRINGTON BOROUGH COUNCIL,http://opendatacommunities.org/id/unitary-authority/warrington,DG0,West Annexe,45161,Maintenance of Plant & Machinery,250050,01/07/2022,5100501621,1593.9,Generator Power Ltd,117550
WARRINGTON BOROUGH COUNCIL,http://opendatacommunities.org/id/unitary-authority/warrington,ET0,Vehicle & Plant Acq.,41312,Vehicle & Plant Purchase,301350,01/07/2022,5100501622,33065,GM Coachwork Ltd,111427
WARRINGTON BOROUGH COUNCIL,http://opendatacommunities.org/id/unitary-authority/warrington,ET0,Vehicle & Plant Acq.,41312,Vehicle & Plant Purchase,301350,01/07/2022,5100501622,1420,GM Coachwork Ltd,111427
WARRINGTON BOROUGH COUNCIL,http://opendatacommunities.org/id/unitary-authority/warrington,RSC,One - Off ICT Costs,23200,Computer Software - Maintenance,450850,01/07/2022,5100501624,2400,Nta Monitor Limited,100967
WARRINGTON BOROUGH COUNCIL,http://opendatacommunities.org/id/unitary-authority/warrington,ENO,Environmental Projects,82007,Building Work,200850,01/07/2022,5100501626,6845,Complete Home Energy Systems,111861
WARRINGTON BOROUGH COUNCIL,http://opendatacommunities.org/id/unitary-authority/warrington,RSC,ICT Centralised Budget,23100,Computer Software - Maintenance,450850,01/07/2022,5100501628,19160,WPC Software Ltd,117553
WARRINGTON BOROUGH COUNCIL,http://opendatacommunities.org/id/unitary-authority/warrington,FWB,DSG - Medical Needs,32002,Eotas Pupil Funding,490350,01/07/2022,5100501633,5811.5,Network Ventures Ltd,110554
WARRINGTON BOROUGH COUNCIL,http://opendatacommunities.org/id/unitary-authority/warrington,PIO,People & Improvement Other,85002,Lifts from Stock,400850,01/07/2022,5100501638,1081.64,Prism Medical UK,108616
WARRINGTON BOROUGH COUNCIL,http://opendatacommunities.org/id/unitary-authority/warrington,ET0,Recreation & Games,41431,Materials,400500,01/07/2022,5100501641,1420,David Webster & Sons Ltd,102202
WARRINGTON BOROUGH COUNCIL,http://opendatacommunities.org/id/unitary-authority/warrington,ET0,Recreation & Games,41431,Outdoor Pursuit,490550,01/07/2022,5100501642,1320,David Webster & Sons Ltd,102202
WARRINGTON BOROUGH COUNCIL,http://opendatacommunities.org/id/unitary-authority/warrington,ET0,Recreation & Games,41431,Outdoor Pursuit,490550,01/07/2022,5100501643,640,David Webster & Sons Ltd,102202
WARRINGTON BOROUGH COUNCIL,http://opendatacommunities.org/id/unitary-authority/warrington,IGO,Property & Estates,86001,Consult.& Prof. Serv,440000,01/07/2022,5100501644,1700,Wsp Uk Ltd,103007
WARRINGTON BOROUGH COUNCIL,http://opendatacommunities.org/id/unitary-authority/warrington,ET0,Vehicle & Plant Acq.,41312,Vehicle & Plant Purchase,301350,01/07/2022,5100501645,8039,Trek-Trailers Ltd,118651
WARRINGTON BOROUGH COUNCIL,http://opendatacommunities.org/id/unitary-authority/warrington,ET0,Urban Traffic Management Control,44370,Signal Equipment,531650,01/07/2022,5100501646,12450,Clearview Intelligence,104751
WARRINGTON BOROUGH COUNCIL,http://opendatacommunities.org/id/unitary-authority/warrington,FWB,DSG Post-16 Special Educational Needs,32309,Fees (Including Agents Fees),441450,01/07/2022,5100501648,2930,Roundway Centre Ltd,103640
WARRINGTON BOROUGH COUNCIL,http://opendatacommunities.org/id/unitary-authority/warrington,ET0,Taxi and Private Hire Licensing,44450,Consult.& Prof. Serv,440000,01/07/2022,5100501654,634.82,Oyster Partnership,116595
WARRINGTON BOROUGH COUNCIL,http://opendatacommunities.org/id/unitary-authority/warrington,RSC,IT - Contracts,23600,Computer Software - Maintenance,450850,01/07/2022,5100501655,595.5,Promodag,107351
WARRINGTON BOROUGH COUNCIL,http://opendatacommunities.org/id/unitary-authority/warrington,ET0,Social Housing,40085,Consult.& Prof. Serv,440000,01/07/2022,5100501656,4526,Baker Mallett LLP,116160
WARRINGTON BOROUGH COUNCIL,http://opendatacommunities.org/id/unitary-authority/warrington,ET0,Walton Estate,41430,Equipment Purchase & Contract,400000,01/07/2022,5100501657,3168,Flowbird Smart City UK Ltd,100854
WARRINGTON BOROUGH COUNCIL,http://opendatacommunities.org/id/unitary-authority/warrington,DG0,Kickstart,22244,"Campaigns,  Projects and Events",491950,01/07/2022,5100501658,1085.21,Westmnster Finance Limited,118064
WARRINGTON BOROUGH COUNCIL,http://opendatacommunities.org/id/unitary-authority/warrington,ENO,Highways LTP,82004,Signal Equipment,531650,04/07/2022,5100501671,1081.94,Swarco UK & Ireland Ltd,108609
WARRINGTON BOROUGH COUNCIL,http://opendatacommunities.org/id/unitary-authority/warrington,FWB,Supporting People Contracts,53260,People with Mental Health Problems,535200,03/07/2022,5100501745,4461.53,Warrington Community Living,105229
WARRINGTON BOROUGH COUNCIL,http://opendatacommunities.org/id/unitary-authority/warrington,FWB,Supporting People Contracts,53260,People with Mental Health Problems,535200,03/07/2022,5100501746,2977.54,Carr Gomm,106573
WARRINGTON BOROUGH COUNCIL,http://opendatacommunities.org/id/unitary-authority/warrington,ET0,NTH/Quattro Re-Dvelopment,40063,Consult.& Prof. Serv,440000,04/07/2022,5100501819,28225,Like Architects Ltd,118027
WARRINGTON BOROUGH COUNCIL,http://opendatacommunities.org/id/unitary-authority/warrington,FWB,Contracts - SM Commissioning Team 1,55910,Drug Action,443600,04/07/2022,5100501823,4600,Turning Point Ltd,100371
WARRINGTON BOROUGH COUNCIL,http://opendatacommunities.org/id/unitary-authority/warrington,FWB,Prison Substance Misuse Services,53840,Drug Action,443600,04/07/2022,5100501824,1046.61,MOJ Shared Service Centre,102024
WARRINGTON BOROUGH COUNCIL,http://opendatacommunities.org/id/unitary-authority/warrington,FWB,Contracts - SM Commissioning Team 1,55910,Drug Action,443600,04/07/2022,5100501825,22537.22,NHS Business Services Authority,113435
WARRINGTON BOROUGH COUNCIL,http://opendatacommunities.org/id/unitary-authority/warrington,DG0,West Annexe,45161,Maintenance of Plant & Machinery,250050,04/07/2022,5100501827,664.3,Generator Power Ltd,117550
WARRINGTON BOROUGH COUNCIL,http://opendatacommunities.org/id/unitary-authority/warrington,FWB,Inclusion,32207,Fees (Including Agents Fees),441450,04/07/2022,5100501829,9304.17,University Of Manchester,104920
WARRINGTON BOROUGH COUNCIL,http://opendatacommunities.org/id/unitary-authority/warrington,ET0,Woolston Depot,41331,Equipment Purchase & Contract,400000,04/07/2022,5100501834,1678.25,The Premier Pump & Tank Co Ltd,108184
WARRINGTON BOROUGH COUNCIL,http://opendatacommunities.org/id/unitary-authority/warrington,ET0,Walton Hall Catering,41433,Provisions-Purchase,410000,04/07/2022,5100501836,1072.5,Carringtons Catering Ltd,116708
WARRINGTON BOROUGH COUNCIL,http://opendatacommunities.org/id/unitary-authority/warrington,FWB,BCF - Telecare/Sensory,54560,Health Awareness,441950,04/07/2022,5100501837,2460,Redacted for personal data,114604
WARRINGTON BOROUGH COUNCIL,http://opendatacommunities.org/id/unitary-authority/warrington,ET0,Waste Recycling,41820,CRC Contract,530450,04/07/2022,5100501838,4356,Environmental Waste Controls Ltd,102474
WARRINGTON BOROUGH COUNCIL,http://opendatacommunities.org/id/unitary-authority/warrington,ET0,Trading Standards North West,41564,"Campaigns,  Projects and Events",491950,04/07/2022,5100501843,585,Illicit Tobacco Services Ltd,118776
WARRINGTON BOROUGH COUNCIL,http://opendatacommunities.org/id/unitary-authority/warrington,PIO,People & Improvement Other,85002,Minor Adaptations<750,400700,04/07/2022,5100501844,6280,The Excellent Ramp System,100407
WARRINGTON BOROUGH COUNCIL,http://opendatacommunities.org/id/unitary-authority/warrington,FWB,Home to School Transport,33210,Mainstream Pupil Transport,300800,04/07/2022,5100501849,600,Warrington Borough Transport Ltd,105226
WARRINGTON BOROUGH COUNCIL,http://opendatacommunities.org/id/unitary-authority/warrington,FWB,Home to School Transport,33210,Mainstream Pupil Transport,300800,04/07/2022,5100501850,1140,Warrington Borough Transport Ltd,105226
WARRINGTON BOROUGH COUNCIL,http://opendatacommunities.org/id/unitary-authority/warrington,FWB,Children with Disabilities,31005,Transport SLA,300400,04/07/2022,5100501851,2850,Redacted for personal data,101504
WARRINGTON BOROUGH COUNCIL,http://opendatacommunities.org/id/unitary-authority/warrington,FWB,Special Schools Transport,33208,Statemented - Special Unit Pupil Transpo,300750,04/07/2022,5100501856,1769.94,Redacted for personal data,108796
WARRINGTON BOROUGH COUNCIL,http://opendatacommunities.org/id/unitary-authority/warrington,FWB,Special Schools Transport,33208,Statemented - Special Unit Pupil Transpo,300750,04/07/2022,5100501857,1130.69,Raza Taxis,105056
WARRINGTON BOROUGH COUNCIL,http://opendatacommunities.org/id/unitary-authority/warrington,FWB,Special Schools Transport,33208,Statemented - Special Unit Pupil Transpo,300750,04/07/2022,5100501858,1309,Raza Taxis,105056
WARRINGTON BOROUGH COUNCIL,http://opendatacommunities.org/id/unitary-authority/warrington,FWB,Special Schools Transport,33208,Statemented - Special Unit Pupil Transpo,300750,04/07/2022,5100501859,1881,Raza Taxis,105056
WARRINGTON BOROUGH COUNCIL,http://opendatacommunities.org/id/unitary-authority/warrington,FWB,Special Schools Transport,33208,Statemented - Special Unit Pupil Transpo,300750,04/07/2022,5100501862,1709.4,Silver Executive Travel,102638
WARRINGTON BOROUGH COUNCIL,http://opendatacommunities.org/id/unitary-authority/warrington,FWB,Special Schools Transport,33208,Statemented - Special Unit Pupil Transpo,300750,04/07/2022,5100501864,1761.95,Stirton's Wheels,103536
WARRINGTON BOROUGH COUNCIL,http://opendatacommunities.org/id/unitary-authority/warrington,NEO,IT Projects,83003,Computer Software - Maintenance,450850,04/07/2022,5100501865,3664.51,Daisy Corp Services Trading Ltd,107866
WARRINGTON BOROUGH COUNCIL,http://opendatacommunities.org/id/unitary-authority/warrington,ENO,Building Maintenance Environment & Regen,82001,Maintenance of Plant & Machinery,250050,04/07/2022,5100501869,28086.74,KDE Limited,118464
WARRINGTON BOROUGH COUNCIL,http://opendatacommunities.org/id/unitary-authority/warrington,RSC,Payroll Services,52120,Stationery,430150,04/07/2022,5100501870,1974,Print Trade Suppliers Limited,104946
WARRINGTON BOROUGH COUNCIL,http://opendatacommunities.org/id/unitary-authority/warrington,ENO,Building Maintenance Environment & Regen,82001,Maintenance of Plant & Machinery,250050,04/07/2022,5100501881,30330.11,KDE Limited,118464
WARRINGTON BOROUGH COUNCIL,http://opendatacommunities.org/id/unitary-authority/warrington,ENO,Building Maintenance Environment & Regen,82001,Maintenance of Plant & Machinery,250050,04/07/2022,5100501883,10042.75,KDE Limited,118464
WARRINGTON BOROUGH COUNCIL,http://opendatacommunities.org/id/unitary-authority/warrington,FWB,Contracts - SM Commissioning Team 1,55910,Drug Action,443600,04/07/2022,5100501885,6300,Kaleidoscope Project,112092
WARRINGTON BOROUGH COUNCIL,http://opendatacommunities.org/id/unitary-authority/warrington,FWB,DSG - Medical Needs,32002,Eotas Pupil Funding,490350,04/07/2022,5100501886,608,Integra People,116891
WARRINGTON BOROUGH COUNCIL,http://opendatacommunities.org/id/unitary-authority/warrington,ET0,Waste Disposal,41830,Residual Waste Disposal,530500,27/07/2022,5100501887,297439.76,Viridor Energy Limited,118588
WARRINGTON BOROUGH COUNCIL,http://opendatacommunities.org/id/unitary-authority/warrington,ET0,Waste Disposal,41830,Residual Waste Disposal,530500,05/07/2022,5100501888,143334.29,Viridor Energy Limited,118588
WARRINGTON BOROUGH COUNCIL,http://opendatacommunities.org/id/unitary-authority/warrington,ET0,Waste Disposal,41830,Residual Waste Disposal,530500,05/07/2022,5100501889,42389.23,Viridor Energy Limited,118588
WARRINGTON BOROUGH COUNCIL,http://opendatacommunities.org/id/unitary-authority/warrington,COR,Debt Management Expenses,62080,Consult.& Prof. Serv,440000,11/07/2022,5100501920,78750,Bloom Procurement Services Limited,115782
WARRINGTON BOROUGH COUNCIL,http://opendatacommunities.org/id/unitary-authority/warrington,ENO,Highways Other,82005,Environmental Works,531050,05/07/2022,5100501921,47565.45,A E Yates Ltd,109758
WARRINGTON BOROUGH COUNCIL,http://opendatacommunities.org/id/unitary-authority/warrington,ENO,Highways Other,82005,Environmental Works,531050,05/07/2022,5100501922,59452.69,A E Yates Ltd,109758
WARRINGTON BOROUGH COUNCIL,http://opendatacommunities.org/id/unitary-authority/warrington,COR,Debt Management Expenses,62080,Consult.& Prof. Serv,440000,05/07/2022,5100501923,86180,Redacted for personal data,118316
WARRINGTON BOROUGH COUNCIL,http://opendatacommunities.org/id/unitary-authority/warrington,COR,Other Commercial Prop.,43560,Consult.& Prof. Serv,440000,05/07/2022,5100501924,70000,Sanderson Weatherall LLP,117413
WARRINGTON BOROUGH COUNCIL,http://opendatacommunities.org/id/unitary-authority/warrington,ET0,P.F.I.,43630,Fees (Including Agents Fees),441450,05/07/2022,5100501926,69047,Your Housing Group,102933
WARRINGTON BOROUGH COUNCIL,http://opendatacommunities.org/id/unitary-authority/warrington,FWB,Virtual School,31112,Looked after children in Warrington,301000,05/07/2022,5100501929,1080,Over Hall Community School,400726
WARRINGTON BOROUGH COUNCIL,http://opendatacommunities.org/id/unitary-authority/warrington,FWB,Inclusion,32207,Fees (Including Agents Fees),441450,05/07/2022,5100501930,1000,TD Psychology Ltd,118558
WARRINGTON BOROUGH COUNCIL,http://opendatacommunities.org/id/unitary-authority/warrington,ET0,Transport Holding Account,41311,Maintenance Work - Sub Contractors,301150,05/07/2022,5100501932,1012.17,Whale Tankers Ltd,105247
WARRINGTON BOROUGH COUNCIL,http://opendatacommunities.org/id/unitary-authority/warrington,ET0,Park Development Sites,41423,Subscriptions,470000,05/07/2022,5100501935,995,Rigby Taylor Ltd,105070
WARRINGTON BOROUGH COUNCIL,http://opendatacommunities.org/id/unitary-authority/warrington,ET0,Sankey Canal Maintenace,44125,Named Drainage Schm,532100,05/07/2022,5100501936,4370.52,Xylem Water Solutions UK LTD,117633
WARRINGTON BOROUGH COUNCIL,http://opendatacommunities.org/id/unitary-authority/warrington,FWB,Special Schools Transport,33208,Statemented - Special Unit Pupil Transpo,300750,05/07/2022,5100501952,2421,Andys Bus Company,100654
WARRINGTON BOROUGH COUNCIL,http://opendatacommunities.org/id/unitary-authority/warrington,FWB,DSG Post-16 Special Educational Needs,32309,Fees (Including Agents Fees),441450,05/07/2022,5100501955,99621.09,Seashell Trust,103082
WARRINGTON BOROUGH COUNCIL,http://opendatacommunities.org/id/unitary-authority/warrington,COR,Other Commercial Prop.,43560,Consult.& Prof. Serv,440000,06/07/2022,5100501959,1357,Brabners LLP,117064
WARRINGTON BOROUGH COUNCIL,http://opendatacommunities.org/id/unitary-authority/warrington,ENO,Highways LTP,82004,Storage Facilities,441900,05/07/2022,5100501963,2646.31,Kangaroo Self Storage Ltd - Warr.,102745
WARRINGTON BOROUGH COUNCIL,http://opendatacommunities.org/id/unitary-authority/warrington,FWB,DSG - Medical Needs,32002,Eotas Pupil Funding,490350,05/07/2022,5100501964,634.76,Kids Kirby Ltd,112934
WARRINGTON BOROUGH COUNCIL,http://opendatacommunities.org/id/unitary-authority/warrington,FWB,BCF - Equipment Store,54930,Equipment Purchase & Contract,400000,05/07/2022,5100501965,667.2,Langham Products,103643
WARRINGTON BOROUGH COUNCIL,http://opendatacommunities.org/id/unitary-authority/warrington,ET0,NTH/Quattro Re-Dvelopment,40063,Consult.& Prof. Serv,440000,20/07/2022,5100501967,1573.25,Nathaniel Lichfield & Partners Ltd,116860
WARRINGTON BOROUGH COUNCIL,http://opendatacommunities.org/id/unitary-authority/warrington,COR,Other Commercial Prop.,43560,Consult.& Prof. Serv,440000,06/07/2022,5100502013,568,Brabners LLP,117064
WARRINGTON BOROUGH COUNCIL,http://opendatacommunities.org/id/unitary-authority/warrington,FWB,Special Schools Transport,33208,Statemented - Special Unit Pupil Transpo,300750,06/07/2022,5100502014,1474.97,Raza Taxis,105056
WARRINGTON BOROUGH COUNCIL,http://opendatacommunities.org/id/unitary-authority/warrington,FWB,Special Schools Transport,33208,Statemented - Special Unit Pupil Transpo,300750,06/07/2022,5100502015,1428,Andys Bus Company,100654
WARRINGTON BOROUGH COUNCIL,http://opendatacommunities.org/id/unitary-authority/warrington,COR,Other Commercial Prop.,43560,Consult.& Prof. Serv,440000,06/07/2022,5100502016,701,Brabners LLP,117064
WARRINGTON BOROUGH COUNCIL,http://opendatacommunities.org/id/unitary-authority/warrington,COR,Other Commercial Prop.,43560,Consult.& Prof. Serv,440000,06/07/2022,5100502017,2672,Brabners LLP,117064
WARRINGTON BOROUGH COUNCIL,http://opendatacommunities.org/id/unitary-authority/warrington,COR,Other Commercial Prop.,43560,Consult.& Prof. Serv,440000,06/07/2022,5100502018,1830,Brabners LLP,117064
WARRINGTON BOROUGH COUNCIL,http://opendatacommunities.org/id/unitary-authority/warrington,COR,Other Commercial Prop.,43560,Consult.& Prof. Serv,440000,06/07/2022,5100502019,1598,Brabners LLP,117064
WARRINGTON BOROUGH COUNCIL,http://opendatacommunities.org/id/unitary-authority/warrington,COR,Other Commercial Prop.,43560,Consult.& Prof. Serv,440000,06/07/2022,5100502030,840,Brabners LLP,117064
WARRINGTON BOROUGH COUNCIL,http://opendatacommunities.org/id/unitary-authority/warrington,FWB,Special Schools Transport,33208,Statemented - Special Unit Pupil Transpo,300750,06/07/2022,5100502035,816,Direct Taxis,101873
WARRINGTON BOROUGH COUNCIL,http://opendatacommunities.org/id/unitary-authority/warrington,FWB,Special Schools Transport,33208,Statemented - Special Unit Pupil Transpo,300750,06/07/2022,5100502036,1470,Direct Taxis,101873
WARRINGTON BOROUGH COUNCIL,http://opendatacommunities.org/id/unitary-authority/warrington,FWB,Special Schools Transport,33208,Statemented - Special Unit Pupil Transpo,300750,06/07/2022,5100502037,1292,Direct Taxis,101873
WARRINGTON BOROUGH COUNCIL,http://opendatacommunities.org/id/unitary-authority/warrington,ET0,Street Lighting Client,44241,Lighting Energy Char,531550,06/07/2022,5100502047,85000,Npower Electricity,101884
WARRINGTON BOROUGH COUNCIL,http://opendatacommunities.org/id/unitary-authority/warrington,ET0,Street Lighting Client,44241,Lighting Energy Char,531550,06/07/2022,5100502047,1201.07,Npower Electricity,101884
WARRINGTON BOROUGH COUNCIL,http://opendatacommunities.org/id/unitary-authority/warrington,ENO,Highways Other,82005,Carriageway-Resurfacing,532250,06/07/2022,5100502052,185000,Tarmac,100489
WARRINGTON BOROUGH COUNCIL,http://opendatacommunities.org/id/unitary-authority/warrington,ET0,Waste Recycling,41820,CRC Contract,530450,06/07/2022,5100502054,65180.34,Environmental Waste Controls Ltd,102474
WARRINGTON BOROUGH COUNCIL,http://opendatacommunities.org/id/unitary-authority/warrington,ET0,Public Health Licensing,41550,Consult.& Prof. Serv,440000,06/07/2022,5100502055,1560,Buckingham Futures,118389
WARRINGTON BOROUGH COUNCIL,http://opendatacommunities.org/id/unitary-authority/warrington,ENO,Highways Other,82005,Environmental Works,531050,07/07/2022,5100502056,2057.24,Virgin Media Diversionary Works Tea,112137
WARRINGTON BOROUGH COUNCIL,http://opendatacommunities.org/id/unitary-authority/warrington,ET0,Or Rm C'way & F'way,44260,Materials,400500,06/07/2022,5100502060,5480.5,Adler and Allan ltd,112675
WARRINGTON BOROUGH COUNCIL,http://opendatacommunities.org/id/unitary-authority/warrington,FWB,Contracts - SM Commissioning Team 1,55910,Public Health Contract Payments,540000,06/07/2022,5100502062,51000,Wirral Borough Council,440052
WARRINGTON BOROUGH COUNCIL,http://opendatacommunities.org/id/unitary-authority/warrington,ET0,Trading Standards North West,41564,"Campaigns,  Projects and Events",491950,06/07/2022,5100502066,905.2,Rochdale Metropolitan Borough Counc,410032
WARRINGTON BOROUGH COUNCIL,http://opendatacommunities.org/id/unitary-authority/warrington,FWB,Special Schools Transport,33208,Statemented - Special Unit Pupil Transpo,300750,06/07/2022,5100502068,1152.7,Tip Top Travel,113174
WARRINGTON BOROUGH COUNCIL,http://opendatacommunities.org/id/unitary-authority/warrington,FWB,Emergency Planning (Civil Defence),12240,Training,190150,06/07/2022,5100502071,1704,Cheshire Fire Authority,102857
WARRINGTON BOROUGH COUNCIL,http://opendatacommunities.org/id/unitary-authority/warrington,RSC,ICT Centralised Budget,23100,Computer Software - Maintenance,450850,06/07/2022,5100502073,2495,Pilat Europe Limited,114726
WARRINGTON BOROUGH COUNCIL,http://opendatacommunities.org/id/unitary-authority/warrington,ET0,Construction Stores Overhead Account,41320,Materials,400500,06/07/2022,5100502080,1350,Thorne & Derrick (Northern),100201
WARRINGTON BOROUGH COUNCIL,http://opendatacommunities.org/id/unitary-authority/warrington,ET0,Construction Stores Overhead Account,41320,Materials,400500,06/07/2022,5100502080,806,Thorne & Derrick (Northern),100201
WARRINGTON BOROUGH COUNCIL,http://opendatacommunities.org/id/unitary-authority/warrington,ET0,Traffic and Safety,44350,Traffic Section,531150,28/07/2022,5100502084,698.38,TMP UK Ltd,108498
WARRINGTON BOROUGH COUNCIL,http://opendatacommunities.org/id/unitary-authority/warrington,ET0,Traffic and Safety,44350,Traffic Section,531150,11/07/2022,5100502087,665.61,TMP UK Ltd,108498
WARRINGTON BOROUGH COUNCIL,http://opendatacommunities.org/id/unitary-authority/warrington,ET0,Traffic and Safety,44350,Consult.& Prof. Serv,440000,11/07/2022,5100502091,1157.4,Step up Security Ltd,116851
WARRINGTON BOROUGH COUNCIL,http://opendatacommunities.org/id/unitary-authority/warrington,ET0,NTH/Quattro Re-Dvelopment,40063,Consult.& Prof. Serv,440000,07/07/2022,5100502092,1008.9,Nathaniel Lichfield & Partners Ltd,116860
WARRINGTON BOROUGH COUNCIL,http://opendatacommunities.org/id/unitary-authority/warrington,CYP,Primary,81001,Specific Work,200200,06/07/2022,5100502093,227136.05,John Turner and Sons Ltd,108250
WARRINGTON BOROUGH COUNCIL,http://opendatacommunities.org/id/unitary-authority/warrington,FWB,Prison Substance Misuse Services,53840,Drug Action,443600,06/07/2022,5100502099,94806.67,CGL,440139
WARRINGTON BOROUGH COUNCIL,http://opendatacommunities.org/id/unitary-authority/warrington,FWB,BCF - Equipment Store,54930,Equipment Purchase & Contract,400000,06/07/2022,5100502103,684.82,Prism Medical UK,108616
WARRINGTON BOROUGH COUNCIL,http://opendatacommunities.org/id/unitary-authority/warrington,FWB,BCF - Equipment Store,54930,Equipment Purchase & Contract,400000,06/07/2022,5100502103,600,Prism Medical UK,108616
WARRINGTON BOROUGH COUNCIL,http://opendatacommunities.org/id/unitary-authority/warrington,FWB,Contracts - SM Commissioning Team 1,55910,Drug Action,443600,06/07/2022,5100502122,129229.58,CGL,440139
WARRINGTON BOROUGH COUNCIL,http://opendatacommunities.org/id/unitary-authority/warrington,ET0,Construction Stores Overhead Account,41320,Uniforms,420000,07/07/2022,5100502128,800,Parker Merchanting Ltd,105007
WARRINGTON BOROUGH COUNCIL,http://opendatacommunities.org/id/unitary-authority/warrington,ET0,Transport Holding Account,41311,Vehicle Hire Charges,320000,26/07/2022,5100502201,609,F R Sharrock Ltd,105122
WARRINGTON BOROUGH COUNCIL,http://opendatacommunities.org/id/unitary-authority/warrington,RSC,IT - Contracts,23600,Computer Software - Maintenance,450850,07/07/2022,5100502203,36521.96,Daisy Corp Services Trading Ltd,107866
WARRINGTON BOROUGH COUNCIL,http://opendatacommunities.org/id/unitary-authority/warrington,FWB,BCF - Equipment Store,54930,Equipment Purchase & Contract,400000,07/07/2022,5100502238,1900,Prism Medical UK,108616
WARRINGTON BOROUGH COUNCIL,http://opendatacommunities.org/id/unitary-authority/warrington,FWB,BCF - Equipment Store,54930,Annual Maintenance,442100,07/07/2022,5100502241,1052.64,Prism Medical UK,108616
WARRINGTON BOROUGH COUNCIL,http://opendatacommunities.org/id/unitary-authority/warrington,ET0,Vehicle & Plant Acq.,41312,Vehicle & Plant Purchase,301350,07/07/2022,5100502244,7425.6,Turner Groundscare,105201
WARRINGTON BOROUGH COUNCIL,http://opendatacommunities.org/id/unitary-authority/warrington,ET0,Vehicle & Plant Acq.,41312,Vehicle & Plant Purchase,301350,07/07/2022,5100502245,3495,Turner Groundscare,105201
WARRINGTON BOROUGH COUNCIL,http://opendatacommunities.org/id/unitary-authority/warrington,ET0,Vehicle & Plant Acq.,41312,Vehicle & Plant Purchase,301350,07/07/2022,5100502245,3268,Turner Groundscare,105201
WARRINGTON BOROUGH COUNCIL,http://opendatacommunities.org/id/unitary-authority/warrington,ET0,Vehicle & Plant Acq.,41312,Vehicle & Plant Purchase,301350,07/07/2022,5100502245,1024,Turner Groundscare,105201
WARRINGTON BOROUGH COUNCIL,http://opendatacommunities.org/id/unitary-authority/warrington,ET0,Vehicle & Plant Acq.,41312,Vehicle & Plant Purchase,301350,07/07/2022,5100502246,3495,Turner Groundscare,105201
WARRINGTON BOROUGH COUNCIL,http://opendatacommunities.org/id/unitary-authority/warrington,ET0,Vehicle & Plant Acq.,41312,Vehicle & Plant Purchase,301350,07/07/2022,5100502246,1024,Turner Groundscare,105201
WARRINGTON BOROUGH COUNCIL,http://opendatacommunities.org/id/unitary-authority/warrington,ET0,Core Operational Business,41730,Training,190150,07/07/2022,5100502260,720,Nationwide Platforms Ltd,106956
WARRINGTON BOROUGH COUNCIL,http://opendatacommunities.org/id/unitary-authority/warrington,RSC,Civic,11440,"Campaigns,  Projects and Events",491950,11/07/2022,5100502261,940,Tardis Environmental UK Limited,118843
WARRINGTON BOROUGH COUNCIL,http://opendatacommunities.org/id/unitary-authority/warrington,ET0,Local Bus Contracts,44430,Payments To Operator,530150,12/07/2022,5100502268,858.33,Warrington Borough Transport Ltd,105226
WARRINGTON BOROUGH COUNCIL,http://opendatacommunities.org/id/unitary-authority/warrington,ET0,Local Bus Contracts,44430,Payments To Operator,530150,12/07/2022,5100502269,4810,Warrington Borough Transport Ltd,105226
WARRINGTON BOROUGH COUNCIL,http://opendatacommunities.org/id/unitary-authority/warrington,FWB,Special Schools Transport,33208,Statemented - Special Unit Pupil Transpo,300750,07/07/2022,5100502270,3148.56,Diamond Travel,104665
WARRINGTON BOROUGH COUNCIL,http://opendatacommunities.org/id/unitary-authority/warrington,FWB,Special Schools Transport,33208,Statemented - Special Unit Pupil Transpo,300750,07/07/2022,5100502271,897.82,Warrington Travel,112256
WARRINGTON BOROUGH COUNCIL,http://opendatacommunities.org/id/unitary-authority/warrington,FWB,Special Schools Transport,33208,Statemented - Special Unit Pupil Transpo,300750,07/07/2022,5100502272,1597.5,Redacted for personal data,107699
WARRINGTON BOROUGH COUNCIL,http://opendatacommunities.org/id/unitary-authority/warrington,FWB,Special Schools Transport,33208,Statemented - Special Unit Pupil Transpo,300750,07/07/2022,5100502273,792,Warrington Travel,112256
WARRINGTON BOROUGH COUNCIL,http://opendatacommunities.org/id/unitary-authority/warrington,FWB,Special Schools Transport,33208,Statemented - Special Unit Pupil Transpo,300750,14/07/2022,5100502274,2511.4,Lolly's Travel Ltd,117980
WARRINGTON BOROUGH COUNCIL,http://opendatacommunities.org/id/unitary-authority/warrington,FWB,Special Schools Transport,33208,Statemented - Special Unit Pupil Transpo,300750,07/07/2022,5100502275,1174.79,Redacted for personal data,115134
WARRINGTON BOROUGH COUNCIL,http://opendatacommunities.org/id/unitary-authority/warrington,FWB,Special Schools Transport,33208,Statemented - Special Unit Pupil Transpo,300750,07/07/2022,5100502276,2240,Pete's Minibus,113937
WARRINGTON BOROUGH COUNCIL,http://opendatacommunities.org/id/unitary-authority/warrington,FWB,Special Schools Transport,33208,Statemented - Special Unit Pupil Transpo,300750,07/07/2022,5100502277,2185,Rainbow Travel,101270
WARRINGTON BOROUGH COUNCIL,http://opendatacommunities.org/id/unitary-authority/warrington,FWB,Special Schools Transport,33208,Statemented - Special Unit Pupil Transpo,300750,07/07/2022,5100502278,2328.84,Regal Travel,102002
WARRINGTON BOROUGH COUNCIL,http://opendatacommunities.org/id/unitary-authority/warrington,FWB,Special Schools Transport,33208,Statemented - Special Unit Pupil Transpo,300750,07/07/2022,5100502279,2110,Soran's Travel,118414
WARRINGTON BOROUGH COUNCIL,http://opendatacommunities.org/id/unitary-authority/warrington,FWB,Special Schools Transport,33208,Statemented - Special Unit Pupil Transpo,300750,07/07/2022,5100502280,1732.68,Superior Travel,113595
WARRINGTON BOROUGH COUNCIL,http://opendatacommunities.org/id/unitary-authority/warrington,FWB,Children with Disabilities,31005,Transport SLA,300400,07/07/2022,5100502281,1540,Redacted for personal data,112353
WARRINGTON BOROUGH COUNCIL,http://opendatacommunities.org/id/unitary-authority/warrington,FWB,Special Schools Transport,33208,Statemented - Special Unit Pupil Transpo,300750,07/07/2022,5100502282,2765,Redacted for personal data,112353
WARRINGTON BOROUGH COUNCIL,http://opendatacommunities.org/id/unitary-authority/warrington,FWB,Transport - Adult Social Care,54950,Transport-Snad Cot,300600,07/07/2022,5100502283,1673.79,Redacted for personal data,104639
WARRINGTON BOROUGH COUNCIL,http://opendatacommunities.org/id/unitary-authority/warrington,FWB,Special Schools Transport,33208,Statemented - Special Unit Pupil Transpo,300750,07/07/2022,5100502285,2608.2,Mackies Travel,116390
WARRINGTON BOROUGH COUNCIL,http://opendatacommunities.org/id/unitary-authority/warrington,FWB,Special Schools Transport,33208,Statemented - Special Unit Pupil Transpo,300750,07/07/2022,5100502286,2608.2,Mackies Travel,116390
WARRINGTON BOROUGH COUNCIL,http://opendatacommunities.org/id/unitary-authority/warrington,FWB,Special Schools Transport,33208,Statemented - Special Unit Pupil Transpo,300750,07/07/2022,5100502287,2384.64,Sure & Safe Minibus Service Ltd,100137
WARRINGTON BOROUGH COUNCIL,http://opendatacommunities.org/id/unitary-authority/warrington,FWB,Special Schools Transport,33208,Statemented - Special Unit Pupil Transpo,300750,07/07/2022,5100502288,3157.1,Sure & Safe Minibus Service Ltd,100137
WARRINGTON BOROUGH COUNCIL,http://opendatacommunities.org/id/unitary-authority/warrington,FWB,Special Schools Transport,33208,Statemented - Special Unit Pupil Transpo,300750,07/07/2022,5100502289,1170,Direct Taxis,101873
WARRINGTON BOROUGH COUNCIL,http://opendatacommunities.org/id/unitary-authority/warrington,FWB,Special Schools Transport,33208,Statemented - Special Unit Pupil Transpo,300750,07/07/2022,5100502290,1769.94,Direct Taxis,101873
WARRINGTON BOROUGH COUNCIL,http://opendatacommunities.org/id/unitary-authority/warrington,FWB,Special Schools Transport,33208,Statemented - Special Unit Pupil Transpo,300750,07/07/2022,5100502291,1612.53,Direct Taxis,101873
WARRINGTON BOROUGH COUNCIL,http://opendatacommunities.org/id/unitary-authority/warrington,FWB,Special Schools Transport,33208,Statemented - Special Unit Pupil Transpo,300750,07/07/2022,5100502292,1593.9,Direct Taxis,101873
WARRINGTON BOROUGH COUNCIL,http://opendatacommunities.org/id/unitary-authority/warrington,FWB,Special Schools Transport,33208,Statemented - Special Unit Pupil Transpo,300750,07/07/2022,5100502293,596.16,Direct Taxis,101873
WARRINGTON BOROUGH COUNCIL,http://opendatacommunities.org/id/unitary-authority/warrington,FWB,Special Schools Transport,33208,Statemented - Special Unit Pupil Transpo,300750,07/07/2022,5100502294,1868.27,Direct Taxis,101873
WARRINGTON BOROUGH COUNCIL,http://opendatacommunities.org/id/unitary-authority/warrington,FWB,Special Schools Transport,33208,Mainstream Pupil Transport,300800,07/07/2022,5100502295,1579.48,Direct Taxis,101873
WARRINGTON BOROUGH COUNCIL,http://opendatacommunities.org/id/unitary-authority/warrington,FWB,Special Schools Transport,33208,Statemented - Special Unit Pupil Transpo,300750,07/07/2022,5100502296,2235.6,Direct Taxis,101873
WARRINGTON BOROUGH COUNCIL,http://opendatacommunities.org/id/unitary-authority/warrington,FWB,Special Schools Transport,33208,Statemented - Special Unit Pupil Transpo,300750,07/07/2022,5100502297,2182.72,Direct Taxis,101873
WARRINGTON BOROUGH COUNCIL,http://opendatacommunities.org/id/unitary-authority/warrington,FWB,Special Schools Transport,33208,Statemented - Special Unit Pupil Transpo,300750,07/07/2022,5100502298,1825.74,Direct Taxis,101873
WARRINGTON BOROUGH COUNCIL,http://opendatacommunities.org/id/unitary-authority/warrington,FWB,Children with Disabilities,31005,Statemented - Special Unit Pupil Transpo,300750,07/07/2022,5100502299,2070,Direct Taxis,101873
WARRINGTON BOROUGH COUNCIL,http://opendatacommunities.org/id/unitary-authority/warrington,FWB,Special Schools Transport,33208,Statemented - Special Unit Pupil Transpo,300750,07/07/2022,5100502300,2628,Direct Taxis,101873
WARRINGTON BOROUGH COUNCIL,http://opendatacommunities.org/id/unitary-authority/warrington,FWB,Special Schools Transport,33208,Statemented - Special Unit Pupil Transpo,300750,07/07/2022,5100502301,1734.88,Direct Taxis,101873
WARRINGTON BOROUGH COUNCIL,http://opendatacommunities.org/id/unitary-authority/warrington,FWB,Special Schools Transport,33208,Statemented - Special Unit Pupil Transpo,300750,07/07/2022,5100502302,1564.92,Direct Taxis,101873
WARRINGTON BOROUGH COUNCIL,http://opendatacommunities.org/id/unitary-authority/warrington,FWB,Special Schools Transport,33208,Statemented - Special Unit Pupil Transpo,300750,07/07/2022,5100502303,2454,Direct Taxis,101873
WARRINGTON BOROUGH COUNCIL,http://opendatacommunities.org/id/unitary-authority/warrington,FWB,Special Schools Transport,33208,Statemented - Special Unit Pupil Transpo,300750,07/07/2022,5100502304,1927.1,Direct Taxis,101873
WARRINGTON BOROUGH COUNCIL,http://opendatacommunities.org/id/unitary-authority/warrington,FWB,Special Schools Transport,33208,Statemented - Special Unit Pupil Transpo,300750,07/07/2022,5100502305,2064.92,Manhatton Transfers,101264
WARRINGTON BOROUGH COUNCIL,http://opendatacommunities.org/id/unitary-authority/warrington,FWB,Special Schools Transport,33208,Statemented - Special Unit Pupil Transpo,300750,07/07/2022,5100502306,1730.52,Direct Taxis,101873
WARRINGTON BOROUGH COUNCIL,http://opendatacommunities.org/id/unitary-authority/warrington,FWB,Special Schools Transport,33208,Statemented - Special Unit Pupil Transpo,300750,07/07/2022,5100502307,1527.66,Direct Taxis,101873
WARRINGTON BOROUGH COUNCIL,http://opendatacommunities.org/id/unitary-authority/warrington,FWB,Special Schools Transport,33208,Statemented - Special Unit Pupil Transpo,300750,07/07/2022,5100502308,1584,Direct Taxis,101873
WARRINGTON BOROUGH COUNCIL,http://opendatacommunities.org/id/unitary-authority/warrington,FWB,Special Schools Transport,33208,Statemented - Special Unit Pupil Transpo,300750,07/07/2022,5100502309,2014,Direct Taxis,101873
WARRINGTON BOROUGH COUNCIL,http://opendatacommunities.org/id/unitary-authority/warrington,FWB,Special Schools Transport,33208,Statemented - Special Unit Pupil Transpo,300750,07/07/2022,5100502310,1956.06,Direct Taxis,101873
WARRINGTON BOROUGH COUNCIL,http://opendatacommunities.org/id/unitary-authority/warrington,FWB,Special Schools Transport,33208,Statemented - Special Unit Pupil Transpo,300750,07/07/2022,5100502311,2608.2,Direct Taxis,101873
WARRINGTON BOROUGH COUNCIL,http://opendatacommunities.org/id/unitary-authority/warrington,FWB,Special Schools Transport,33208,Statemented - Special Unit Pupil Transpo,300750,07/07/2022,5100502312,2235.6,Direct Taxis,101873
WARRINGTON BOROUGH COUNCIL,http://opendatacommunities.org/id/unitary-authority/warrington,FWB,Special Schools Transport,33208,Statemented - Special Unit Pupil Transpo,300750,07/07/2022,5100502313,1573.2,Direct Taxis,101873
WARRINGTON BOROUGH COUNCIL,http://opendatacommunities.org/id/unitary-authority/warrington,FWB,Special Schools Transport,33208,Statemented - Special Unit Pupil Transpo,300750,07/07/2022,5100502314,2400,Direct Taxis,101873
WARRINGTON BOROUGH COUNCIL,http://opendatacommunities.org/id/unitary-authority/warrington,FWB,Special Schools Transport,33208,Statemented - Special Unit Pupil Transpo,300750,07/07/2022,5100502315,1254,Direct Taxis,101873
WARRINGTON BOROUGH COUNCIL,http://opendatacommunities.org/id/unitary-authority/warrington,FWB,Special Schools Transport,33208,Statemented - Special Unit Pupil Transpo,300750,07/07/2022,5100502316,1738.8,Direct Taxis,101873
WARRINGTON BOROUGH COUNCIL,http://opendatacommunities.org/id/unitary-authority/warrington,FWB,Special Schools Transport,33208,Statemented - Special Unit Pupil Transpo,300750,07/07/2022,5100502317,1956.24,Direct Taxis,101873
WARRINGTON BOROUGH COUNCIL,http://opendatacommunities.org/id/unitary-authority/warrington,FWB,Special Schools Transport,33208,Statemented - Special Unit Pupil Transpo,300750,07/07/2022,5100502318,2202.48,Direct Taxis,101873
WARRINGTON BOROUGH COUNCIL,http://opendatacommunities.org/id/unitary-authority/warrington,FWB,Special Schools Transport,33208,Statemented - Special Unit Pupil Transpo,300750,07/07/2022,5100502319,3146.4,Direct Taxis,101873
WARRINGTON BOROUGH COUNCIL,http://opendatacommunities.org/id/unitary-authority/warrington,FWB,Special Schools Transport,33208,Stationery,430150,07/07/2022,5100502320,1825.74,Direct Taxis,101873
WARRINGTON BOROUGH COUNCIL,http://opendatacommunities.org/id/unitary-authority/warrington,FWB,Special Schools Transport,33208,Statemented - Special Unit Pupil Transpo,300750,07/07/2022,5100502321,2163.15,Direct Taxis,101873
WARRINGTON BOROUGH COUNCIL,http://opendatacommunities.org/id/unitary-authority/warrington,FWB,Special Schools Transport,33208,Statemented - Special Unit Pupil Transpo,300750,07/07/2022,5100502322,2608.2,Direct Taxis,101873
WARRINGTON BOROUGH COUNCIL,http://opendatacommunities.org/id/unitary-authority/warrington,FWB,Transport - Adult Social Care,54950,Transport-Snad Cot,300600,07/07/2022,5100502323,1324.8,Direct Taxis,101873
WARRINGTON BOROUGH COUNCIL,http://opendatacommunities.org/id/unitary-authority/warrington,FWB,Special Schools Transport,33208,Statemented - Special Unit Pupil Transpo,300750,07/07/2022,5100502325,2049.3,Direct Taxis,101873
WARRINGTON BOROUGH COUNCIL,http://opendatacommunities.org/id/unitary-authority/warrington,FWB,Transport - Adult Social Care,54950,Transport-Snad Cot,300600,07/07/2022,5100502326,4454.48,Redacted for personal data,104639
WARRINGTON BOROUGH COUNCIL,http://opendatacommunities.org/id/unitary-authority/warrington,FWB,Special Schools Transport,33208,Statemented - Special Unit Pupil Transpo,300750,07/07/2022,5100502327,776.25,Kings Travel,116965
WARRINGTON BOROUGH COUNCIL,http://opendatacommunities.org/id/unitary-authority/warrington,FWB,Special Schools Transport,33208,Statemented - Special Unit Pupil Transpo,300750,07/07/2022,5100502328,1562.75,LJ Executive Travel,422652
WARRINGTON BOROUGH COUNCIL,http://opendatacommunities.org/id/unitary-authority/warrington,FWB,Special Schools Transport,33208,Statemented - Special Unit Pupil Transpo,300750,07/07/2022,5100502330,978.6,Farrington Taxi Service,100067
WARRINGTON BOROUGH COUNCIL,http://opendatacommunities.org/id/unitary-authority/warrington,FWB,Transport - Adult Social Care,54950,Transport-Snad Cot,300600,07/07/2022,5100502331,1616.74,Redacted for personal data,112712
WARRINGTON BOROUGH COUNCIL,http://opendatacommunities.org/id/unitary-authority/warrington,FWB,Special Schools Transport,33208,Statemented - Special Unit Pupil Transpo,300750,18/07/2022,5100502332,2949.75,K & J Travel,115925
WARRINGTON BOROUGH COUNCIL,http://opendatacommunities.org/id/unitary-authority/warrington,FWB,Special Schools Transport,33208,Statemented - Special Unit Pupil Transpo,300750,07/07/2022,5100502337,2403.36,Direct Taxis,101873
WARRINGTON BOROUGH COUNCIL,http://opendatacommunities.org/id/unitary-authority/warrington,FWB,DSG Independent School Fees,32011,Fees (Including Agents Fees),441450,07/07/2022,5100502338,25847.06,The Priory,101736
WARRINGTON BOROUGH COUNCIL,http://opendatacommunities.org/id/unitary-authority/warrington,ENO,Building Maintenance Environment & Regen,82001,Consult.& Prof. Serv,440000,07/07/2022,5100502340,1136.61,Redacted for personal data,102651
WARRINGTON BOROUGH COUNCIL,http://opendatacommunities.org/id/unitary-authority/warrington,FWB,Special Schools Transport,33208,Statemented - Special Unit Pupil Transpo,300750,08/07/2022,5100502383,1573.28,Redacted for personal data,103064
WARRINGTON BOROUGH COUNCIL,http://opendatacommunities.org/id/unitary-authority/warrington,FWB,Special Schools Transport,33208,Statemented - Special Unit Pupil Transpo,300750,08/07/2022,5100502385,1200,Redacted for personal data,103064
WARRINGTON BOROUGH COUNCIL,http://opendatacommunities.org/id/unitary-authority/warrington,FWB,Special Schools Transport,33208,Statemented - Special Unit Pupil Transpo,300750,08/07/2022,5100502386,879.9,Redacted for personal data,101021
WARRINGTON BOROUGH COUNCIL,http://opendatacommunities.org/id/unitary-authority/warrington,FWB,Special Schools Transport,33208,Statemented - Special Unit Pupil Transpo,300750,08/07/2022,5100502387,532,Horn'S Private Hire,101991
WARRINGTON BOROUGH COUNCIL,http://opendatacommunities.org/id/unitary-authority/warrington,FWB,Special Schools Transport,33208,Statemented - Special Unit Pupil Transpo,300750,08/07/2022,5100502388,2090,Alan Delooze Premier Travel,100727
WARRINGTON BOROUGH COUNCIL,http://opendatacommunities.org/id/unitary-authority/warrington,FWB,Special Schools Transport,33208,Statemented - Special Unit Pupil Transpo,300750,08/07/2022,5100502389,1050,Alan Delooze Premier Travel,100727
WARRINGTON BOROUGH COUNCIL,http://opendatacommunities.org/id/unitary-authority/warrington,ET0,Woolston Depot,41331,Equipment Purchase & Contract,400000,08/07/2022,5100502402,804.39,Dayma Supplies,111936
WARRINGTON BOROUGH COUNCIL,http://opendatacommunities.org/id/unitary-authority/warrington,ET0,Crematorium,41411,Consult.& Prof. Serv,440000,08/07/2022,5100502407,2718,Redacted for personal data,100166
WARRINGTON BOROUGH COUNCIL,http://opendatacommunities.org/id/unitary-authority/warrington,ET0,Crematorium,41411,Maintenance of Plant & Machinery,250050,08/07/2022,5100502415,15835.5,IFZW Maintenance Ltd,110971
WARRINGTON BOROUGH COUNCIL,http://opendatacommunities.org/id/unitary-authority/warrington,ET0,Facilities Management,41422,Materials,400500,08/07/2022,5100502416,1035,Jrs Fabrications Ltd,105378
WARRINGTON BOROUGH COUNCIL,http://opendatacommunities.org/id/unitary-authority/warrington,FWB,Virtual School,31112,Looked after children in Warrington,301000,08/07/2022,5100502417,800,The Kassia Academy & Support Serv,118073
WARRINGTON BOROUGH COUNCIL,http://opendatacommunities.org/id/unitary-authority/warrington,FWB,Special Schools Transport,33208,Statemented - Special Unit Pupil Transpo,300750,08/07/2022,5100502418,2038.51,Redacted for personal data,117345
WARRINGTON BOROUGH COUNCIL,http://opendatacommunities.org/id/unitary-authority/warrington,FWB,Special Schools Transport,33208,Statemented - Special Unit Pupil Transpo,300750,08/07/2022,5100502419,1143.68,Redacted for personal data,117345
WARRINGTON BOROUGH COUNCIL,http://opendatacommunities.org/id/unitary-authority/warrington,FWB,Special Schools Transport,33208,Statemented - Special Unit Pupil Transpo,300750,08/07/2022,5100502420,3204.36,Elite Services NW Ltd,109753
WARRINGTON BOROUGH COUNCIL,http://opendatacommunities.org/id/unitary-authority/warrington,FWB,Special Schools Transport,33208,Statemented - Special Unit Pupil Transpo,300750,08/07/2022,5100502421,3510,Elite Services NW Ltd,109753
WARRINGTON BOROUGH COUNCIL,http://opendatacommunities.org/id/unitary-authority/warrington,ET0,Transport Holding Account,41311,Veh Maint. Materials,300000,26/07/2022,5100502423,3825.24,Turner Groundscare,105201
WARRINGTON BOROUGH COUNCIL,http://opendatacommunities.org/id/unitary-authority/warrington,ET0,Public Health Licensing,41550,Consult.& Prof. Serv,440000,08/07/2022,5100502428,750,Knox & Son Ltd,104857
WARRINGTON BOROUGH COUNCIL,http://opendatacommunities.org/id/unitary-authority/warrington,COR,Redevelopment Sites,43580,Security Systems,250000,08/07/2022,5100502433,4313.39,South East Guardians (SEG) Lttd,116189
WARRINGTON BOROUGH COUNCIL,http://opendatacommunities.org/id/unitary-authority/warrington,COR,Redevelopment Sites,43580,Security Systems,250000,08/07/2022,5100502434,4860,Sentry Security Ltd,103829
WARRINGTON BOROUGH COUNCIL,http://opendatacommunities.org/id/unitary-authority/warrington,ET0,Transport Holding Account,41311,Vehicle Hire Charges,320000,08/07/2022,5100502442,1738,Riverside Truck Rental Ltd,101057
WARRINGTON BOROUGH COUNCIL,http://opendatacommunities.org/id/unitary-authority/warrington,ET0,Traffic and Safety,44350,Unlit Signs,531200,14/07/2022,5100502458,815,Blue Arrow Traffic Management Ltd,109292
WARRINGTON BOROUGH COUNCIL,http://opendatacommunities.org/id/unitary-authority/warrington,ENO,Highways Other,82005,Equipment Purchase & Contract,400000,08/07/2022,5100502460,1575,Normanton Screenprint,108766
WARRINGTON BOROUGH COUNCIL,http://opendatacommunities.org/id/unitary-authority/warrington,ENO,Highways Other,82005,Equipment Purchase & Contract,400000,08/07/2022,5100502461,545,Normanton Screenprint,108766
WARRINGTON BOROUGH COUNCIL,http://opendatacommunities.org/id/unitary-authority/warrington,COR,Hatters Row,43710,Security Systems,250000,11/07/2022,5100502466,4278.12,Uniqwin UK,105210
WARRINGTON BOROUGH COUNCIL,http://opendatacommunities.org/id/unitary-authority/warrington,PIO,People & Improvement Other,85002,Lifts from Stock,400850,08/07/2022,5100502467,4945,TK Access Solutions Limited,105382
WARRINGTON BOROUGH COUNCIL,http://opendatacommunities.org/id/unitary-authority/warrington,ET0,Trading Standards North West,41564,"Campaigns,  Projects and Events",491950,08/07/2022,5100502469,990,Wagtail UK Limited,108156
WARRINGTON BOROUGH COUNCIL,http://opendatacommunities.org/id/unitary-authority/warrington,ET0,Taxi and Private Hire Licensing,44450,Equipment Purchase & Contract,400000,08/07/2022,5100502473,590,Mrs Communications Ltd,101525
WARRINGTON BOROUGH COUNCIL,http://opendatacommunities.org/id/unitary-authority/warrington,RSC,IT - Contracts,23600,Computer Software - Maintenance,450850,11/07/2022,5100502474,5761.8,Phoenix Software Ltd,105022
WARRINGTON BOROUGH COUNCIL,http://opendatacommunities.org/id/unitary-authority/warrington,DG0,Site Management,43530,Security Systems,250000,08/07/2022,5100502479,840,Sentry Security Ltd,103829
WARRINGTON BOROUGH COUNCIL,http://opendatacommunities.org/id/unitary-authority/warrington,FWB,Special Schools Transport,33208,Statemented - Special Unit Pupil Transpo,300750,08/07/2022,5100502496,2700,Hampton Coaches,104768
WARRINGTON BOROUGH COUNCIL,http://opendatacommunities.org/id/unitary-authority/warrington,FWB,Special Schools Transport,33208,Statemented - Special Unit Pupil Transpo,300750,08/07/2022,5100502497,2887.74,Hampton Coaches,104768
WARRINGTON BOROUGH COUNCIL,http://opendatacommunities.org/id/unitary-authority/warrington,FWB,Special Schools Transport,33208,Statemented - Special Unit Pupil Transpo,300750,08/07/2022,5100502511,3343.05,Hampton Coaches,104768
WARRINGTON BOROUGH COUNCIL,http://opendatacommunities.org/id/unitary-authority/warrington,FWB,Special Schools Transport,33208,Statemented - Special Unit Pupil Transpo,300750,08/07/2022,5100502512,2142.54,Wezs Travel,100842
WARRINGTON BOROUGH COUNCIL,http://opendatacommunities.org/id/unitary-authority/warrington,ET0,Vehicle & Plant Acq.,41312,Vehicle & Plant Purchase,301350,11/07/2022,5100502682,4452,Gibsons Garden Machinery Ltd,100164
WARRINGTON BOROUGH COUNCIL,http://opendatacommunities.org/id/unitary-authority/warrington,ET0,Vehicle & Plant Acq.,41312,Vehicle & Plant Purchase,301350,11/07/2022,5100502682,664,Gibsons Garden Machinery Ltd,100164
WARRINGTON BOROUGH COUNCIL,http://opendatacommunities.org/id/unitary-authority/warrington,ET0,Bus Interchange,44460,Security Systems,250000,11/07/2022,5100502683,9519.36,Step up Security Ltd,116851
WARRINGTON BOROUGH COUNCIL,http://opendatacommunities.org/id/unitary-authority/warrington,ET0,Trading Standards North West,41564,"Campaigns,  Projects and Events",491950,11/07/2022,5100502693,500,Cumbria County Council,410023
WARRINGTON BOROUGH COUNCIL,http://opendatacommunities.org/id/unitary-authority/warrington,ET0,Walton Estate,41430,Security Systems,250000,11/07/2022,5100502694,3143,Elite Digital Systems Limited,114251
WARRINGTON BOROUGH COUNCIL,http://opendatacommunities.org/id/unitary-authority/warrington,ET0,Transport Holding Account,41311,Veh Maint. Materials,300000,14/07/2022,5100502700,1660.75,North West Truck Services Ltd,104980
WARRINGTON BOROUGH COUNCIL,http://opendatacommunities.org/id/unitary-authority/warrington,ET0,T Hall Grd Heat Pump,40082,Consult.& Prof. Serv,440000,11/07/2022,5100502701,25000,QBots Energy Ltd,118630
WARRINGTON BOROUGH COUNCIL,http://opendatacommunities.org/id/unitary-authority/warrington,ET0,Construction Stores Overhead Account,41320,Materials,400500,11/07/2022,5100502705,1550.64,Instarmac Ltd,104820
WARRINGTON BOROUGH COUNCIL,http://opendatacommunities.org/id/unitary-authority/warrington,FWB,BCF - Equipment Store,54930,Equipment Purchase & Contract,400000,11/07/2022,5100502706,3774.3,Invacare Ltd,106115
WARRINGTON BOROUGH COUNCIL,http://opendatacommunities.org/id/unitary-authority/warrington,ET0,Building Control Services,43410,Consult.& Prof. Serv,440000,11/07/2022,5100502707,3000,Rochdale Metropolitan Borough Counc,410032
WARRINGTON BOROUGH COUNCIL,http://opendatacommunities.org/id/unitary-authority/warrington,FWB,Children with Disabilities,31005,Transport SLA,300400,11/07/2022,5100502709,2980.8,Warrington Cars,113774
WARRINGTON BOROUGH COUNCIL,http://opendatacommunities.org/id/unitary-authority/warrington,FWB,Special Schools Transport,33208,Statemented - Special Unit Pupil Transpo,300750,11/07/2022,5100502710,1730.52,Warrington Cars,113774
WARRINGTON BOROUGH COUNCIL,http://opendatacommunities.org/id/unitary-authority/warrington,FWB,Special Schools Transport,33208,Statemented - Special Unit Pupil Transpo,300750,11/07/2022,5100502711,2654.87,Warrington Cars,113774
WARRINGTON BOROUGH COUNCIL,http://opendatacommunities.org/id/unitary-authority/warrington,FWB,Special Schools Transport,33208,Statemented - Special Unit Pupil Transpo,300750,11/07/2022,5100502712,2240,Warrington Cars,113774
WARRINGTON BOROUGH COUNCIL,http://opendatacommunities.org/id/unitary-authority/warrington,FWB,Transport - Adult Social Care,54950,Transport-Snad Cot,300600,11/07/2022,5100502713,520,Warrington Cars,113774
WARRINGTON BOROUGH COUNCIL,http://opendatacommunities.org/id/unitary-authority/warrington,FWB,Special Schools Transport,33208,Statemented - Special Unit Pupil Transpo,300750,11/07/2022,5100502714,2605.66,Warrington Cars,113774
WARRINGTON BOROUGH COUNCIL,http://opendatacommunities.org/id/unitary-authority/warrington,FWB,Special Schools Transport,33208,Statemented - Special Unit Pupil Transpo,300750,11/07/2022,5100502715,2726.5,Warrington Cars,113774
WARRINGTON BOROUGH COUNCIL,http://opendatacommunities.org/id/unitary-authority/warrington,FWB,Special Schools Transport,33208,Statemented - Special Unit Pupil Transpo,300750,11/07/2022,5100502716,5112.9,Warrington Cars,113774
WARRINGTON BOROUGH COUNCIL,http://opendatacommunities.org/id/unitary-authority/warrington,FWB,Children with Disabilities,31005,Transport SLA,300400,11/07/2022,5100502717,1449.04,Warrington Cars,113774
WARRINGTON BOROUGH COUNCIL,http://opendatacommunities.org/id/unitary-authority/warrington,FWB,Special Schools Transport,33208,Statemented - Special Unit Pupil Transpo,300750,11/07/2022,5100502718,2340,Warrington Cars,113774
WARRINGTON BOROUGH COUNCIL,http://opendatacommunities.org/id/unitary-authority/warrington,ET0,Transport Holding Account,41311,Vehicle Hire Charges,320000,14/07/2022,5100502724,869.02,Hire Station North,104819
WARRINGTON BOROUGH COUNCIL,http://opendatacommunities.org/id/unitary-authority/warrington,ET0,Local Bus Contracts,44430,Payments To Operator,530150,11/07/2022,5100502747,1887.67,Warrington Borough Transport Ltd,105226
WARRINGTON BOROUGH COUNCIL,http://opendatacommunities.org/id/unitary-authority/warrington,ET0,Local Bus Contracts,44430,Payments To Operator,530150,11/07/2022,5100502754,4083.33,Warrington Borough Transport Ltd,105226
WARRINGTON BOROUGH COUNCIL,http://opendatacommunities.org/id/unitary-authority/warrington,ET0,Local Bus Contracts,44430,Payments To Operator,530150,12/07/2022,5100502800,2150.42,Warrington Borough Transport Ltd,105226
WARRINGTON BOROUGH COUNCIL,http://opendatacommunities.org/id/unitary-authority/warrington,ET0,Local Bus Contracts,44430,Payments To Operator,530150,12/07/2022,5100502801,732.48,Warrington Borough Transport Ltd,105226
WARRINGTON BOROUGH COUNCIL,http://opendatacommunities.org/id/unitary-authority/warrington,ET0,Local Bus Contracts,44430,Payments To Operator,530150,12/07/2022,5100502802,1512.5,Warrington Borough Transport Ltd,105226
WARRINGTON BOROUGH COUNCIL,http://opendatacommunities.org/id/unitary-authority/warrington,ET0,Local Bus Contracts,44430,Payments To Operator,530150,12/07/2022,5100502804,728.58,Warrington Borough Transport Ltd,105226
WARRINGTON BOROUGH COUNCIL,http://opendatacommunities.org/id/unitary-authority/warrington,ET0,Transport Holding Account,41311,Vehicle Hire Charges,320000,12/07/2022,5100502806,560,F G Rowland Ltd,102555
WARRINGTON BOROUGH COUNCIL,http://opendatacommunities.org/id/unitary-authority/warrington,FWB,BCF - Equipment Store,54930,Equipment Purchase & Contract,400000,12/07/2022,5100502822,635.6,Drive DeVilbiss Healthcare Ltd,101899
WARRINGTON BOROUGH COUNCIL,http://opendatacommunities.org/id/unitary-authority/warrington,FWB,BCF - Equipment Store,54930,Annual Maintenance,442100,12/07/2022,5100502826,814.2,TK Access Solutions Limited,105382
WARRINGTON BOROUGH COUNCIL,http://opendatacommunities.org/id/unitary-authority/warrington,ET0,Local Bus Contracts,44430,Payments To Operator,530150,12/07/2022,5100502828,1697.41,Warrington Borough Transport Ltd,105226
WARRINGTON BOROUGH COUNCIL,http://opendatacommunities.org/id/unitary-authority/warrington,ET0,Transport Holding Account,41311,Veh Maint. Materials,300000,12/07/2022,5100502829,650,Tennants Distribution Limited,103720
WARRINGTON BOROUGH COUNCIL,http://opendatacommunities.org/id/unitary-authority/warrington,ENO,Highways Other,82005,Environmental Works,531050,12/07/2022,5100502830,2057.24,Virgin Media Diversionary Works Tea,112137
WARRINGTON BOROUGH COUNCIL,http://opendatacommunities.org/id/unitary-authority/warrington,FWB,Appropriate Adults Project,33314,Consult.& Prof. Serv,440000,13/07/2022,5100502839,2828.94,Child Action North West,109412
WARRINGTON BOROUGH COUNCIL,http://opendatacommunities.org/id/unitary-authority/warrington,FWB,DSG - Medical Needs,32002,Eotas Pupil Funding,490350,12/07/2022,5100502845,591,Network Ventures Ltd,110554
WARRINGTON BOROUGH COUNCIL,http://opendatacommunities.org/id/unitary-authority/warrington,FWB,BCF - Equipment Store,54930,Equipment Purchase & Contract,400000,12/07/2022,5100502851,1010.65,Prism Medical UK,108616
WARRINGTON BOROUGH COUNCIL,http://opendatacommunities.org/id/unitary-authority/warrington,RSC,ICT Centralised Budget,23100,Computer Software - Maintenance,450850,12/07/2022,5100502853,3040,Stopford Information System Ltd,101988
WARRINGTON BOROUGH COUNCIL,http://opendatacommunities.org/id/unitary-authority/warrington,FWB,Special Schools Transport,33208,Statemented - Special Unit Pupil Transpo,300750,13/07/2022,5100502901,3048.17,Andys Bus Company,100654
WARRINGTON BOROUGH COUNCIL,http://opendatacommunities.org/id/unitary-authority/warrington,FWB,Children with Disabilities,31005,Statemented - Special Unit Pupil Transpo,300750,13/07/2022,5100502902,1225,Direct Taxis,101873
WARRINGTON BOROUGH COUNCIL,http://opendatacommunities.org/id/unitary-authority/warrington,FWB,Special Schools Transport,33208,Statemented - Special Unit Pupil Transpo,300750,13/07/2022,5100502902,1225,Direct Taxis,101873
WARRINGTON BOROUGH COUNCIL,http://opendatacommunities.org/id/unitary-authority/warrington,FWB,Special Schools Transport,33208,Statemented - Special Unit Pupil Transpo,300750,13/07/2022,5100502904,1921.94,Direct Taxis,101873
WARRINGTON BOROUGH COUNCIL,http://opendatacommunities.org/id/unitary-authority/warrington,FWB,Special Schools Transport,33208,Statemented - Special Unit Pupil Transpo,300750,13/07/2022,5100502906,1639.44,Direct Taxis,101873
WARRINGTON BOROUGH COUNCIL,http://opendatacommunities.org/id/unitary-authority/warrington,FWB,Special Schools Transport,33208,Statemented - Special Unit Pupil Transpo,300750,13/07/2022,5100502907,2645.46,Direct Taxis,101873
WARRINGTON BOROUGH COUNCIL,http://opendatacommunities.org/id/unitary-authority/warrington,FWB,Special Schools Transport,33208,Statemented - Special Unit Pupil Transpo,300750,13/07/2022,5100502909,1610,Direct Taxis,101873
WARRINGTON BOROUGH COUNCIL,http://opendatacommunities.org/id/unitary-authority/warrington,ET0,Local Bus Contracts,44430,Payments To Operator,530150,13/07/2022,5100502910,2590,Direct Taxis,101873
WARRINGTON BOROUGH COUNCIL,http://opendatacommunities.org/id/unitary-authority/warrington,FWB,Special Schools Transport,33208,Statemented - Special Unit Pupil Transpo,300750,13/07/2022,5100502911,2198.34,Direct Taxis,101873
WARRINGTON BOROUGH COUNCIL,http://opendatacommunities.org/id/unitary-authority/warrington,FWB,Transport - Adult Social Care,54950,Transport-Snad Cot,300600,13/07/2022,5100502912,1854.72,Direct Taxis,101873
WARRINGTON BOROUGH COUNCIL,http://opendatacommunities.org/id/unitary-authority/warrington,ET0,Local Bus Contracts,44430,Payments To Operator,530150,13/07/2022,5100502913,2500,Warrington Borough Transport Ltd,105226
WARRINGTON BOROUGH COUNCIL,http://opendatacommunities.org/id/unitary-authority/warrington,FWB,Home to School Transport,33210,Mainstream Pupil Transport,300800,13/07/2022,5100502914,1140,Warrington Borough Transport Ltd,105226
WARRINGTON BOROUGH COUNCIL,http://opendatacommunities.org/id/unitary-authority/warrington,DG0,Estates & Valuation,43520,Consult.& Prof. Serv,440000,13/07/2022,5100502915,40000,Redacted for personal data,103086
WARRINGTON BOROUGH COUNCIL,http://opendatacommunities.org/id/unitary-authority/warrington,FWB,Contracts - SM Commissioning Team 1,55910,Drug Action,443600,13/07/2022,5100502923,4144,Greater Mcr Mental Health NHS,117528
WARRINGTON BOROUGH COUNCIL,http://opendatacommunities.org/id/unitary-authority/warrington,ET0,Transport Holding Account,41311,Maintenance Work - Sub Contractors,301150,13/07/2022,5100502924,540,Jrs Fabrications Ltd,105378
WARRINGTON BOROUGH COUNCIL,http://opendatacommunities.org/id/unitary-authority/warrington,FWB,Virtual School,31112,Looked after children in Warrington,301000,13/07/2022,5100502926,611,Kings Leadership Academy,400191
WARRINGTON BOROUGH COUNCIL,http://opendatacommunities.org/id/unitary-authority/warrington,RSC,ICT Centralised Budget,23100,Computer Software - Maintenance,450850,13/07/2022,5100502937,9126.75,Transoft Solution (UK) Limited,100347
WARRINGTON BOROUGH COUNCIL,http://opendatacommunities.org/id/unitary-authority/warrington,ET0,Parks & Open Spaces,41426,Equipment Purchase & Contract,400000,13/07/2022,5100502938,900,Griffin Contracting Services,114529
WARRINGTON BOROUGH COUNCIL,http://opendatacommunities.org/id/unitary-authority/warrington,COR,Investment Property Acquisitions,62095,Consult.& Prof. Serv,440000,13/07/2022,5100502953,3000,CBRE Limited,113065
WARRINGTON BOROUGH COUNCIL,http://opendatacommunities.org/id/unitary-authority/warrington,FWB,DSG - Medical Needs,32002,Eotas Pupil Funding,490350,13/07/2022,5100502988,900,Warrington Education Centre,118354
WARRINGTON BOROUGH COUNCIL,http://opendatacommunities.org/id/unitary-authority/warrington,DG0,Project Delivery & Communications,43830,Consult.& Prof. Serv,440000,13/07/2022,5100503002,4450,Arc4 Limited,118684
WARRINGTON BOROUGH COUNCIL,http://opendatacommunities.org/id/unitary-authority/warrington,FWB,Virtual School,31112,Looked after children in Warrington,301000,13/07/2022,5100503004,1940,Beamont Collegiate Academy,111598
WARRINGTON BOROUGH COUNCIL,http://opendatacommunities.org/id/unitary-authority/warrington,FWB,BCF - Equipment Store,54930,Equipment Purchase & Contract,400000,13/07/2022,5100503005,660,Aidapt Bathrooms Ltd,100366
WARRINGTON BOROUGH COUNCIL,http://opendatacommunities.org/id/unitary-authority/warrington,FWB,BCF - Equipment Store,54930,Equipment Purchase & Contract,400000,13/07/2022,5100503006,870,Aidapt Bathrooms Ltd,100366
WARRINGTON BOROUGH COUNCIL,http://opendatacommunities.org/id/unitary-authority/warrington,ET0,Cardinal Newman HS,40067,Consult.& Prof. Serv,440000,13/07/2022,5100503011,1000,Sports Labs Limited,110739
WARRINGTON BOROUGH COUNCIL,http://opendatacommunities.org/id/unitary-authority/warrington,DG0,New Town House,45168,Subscriptions,470000,13/07/2022,5100503012,1530,Rics,100368
WARRINGTON BOROUGH COUNCIL,http://opendatacommunities.org/id/unitary-authority/warrington,FWB,BCF - Equipment Store,54930,Materials,400500,13/07/2022,5100503019,1200,Healthcare Matters,110751
WARRINGTON BOROUGH COUNCIL,http://opendatacommunities.org/id/unitary-authority/warrington,FWB,Homelessness,43650,Emergency Accommodation Allowance,550500,13/07/2022,5100503023,918.33,The Patten Arms Hotel,115465
WARRINGTON BOROUGH COUNCIL,http://opendatacommunities.org/id/unitary-authority/warrington,FWB,Winter Preventions,53140,Emergency Accommodation Allowance,550500,13/07/2022,5100503024,1900,The Patten Arms Hotel,115465
WARRINGTON BOROUGH COUNCIL,http://opendatacommunities.org/id/unitary-authority/warrington,ET0,Or Sm Bridges Etc,44130,Bridges - Structural,532800,13/07/2022,5100503030,1500,Sheffield Hallam University,105124
WARRINGTON BOROUGH COUNCIL,http://opendatacommunities.org/id/unitary-authority/warrington,ET0,Transport Holding Account,41311,Veh Maint. Materials,300000,13/07/2022,5100503032,580.7,Warrington Truck Parts,100379
WARRINGTON BOROUGH COUNCIL,http://opendatacommunities.org/id/unitary-authority/warrington,COR,Ukraine Resettlement,60308,Homes for Ukraine Thank You Payment,550490,14/07/2022,5100503092,700,Redacted for personal data,423933
WARRINGTON BOROUGH COUNCIL,http://opendatacommunities.org/id/unitary-authority/warrington,COR,Ukraine Resettlement,60308,Homes for Ukraine Thank You Payment,550490,14/07/2022,5100503095,700,Redacted for personal data,423936
WARRINGTON BOROUGH COUNCIL,http://opendatacommunities.org/id/unitary-authority/warrington,COR,Ukraine Resettlement,60308,Homes for Ukraine Thank You Payment,550490,14/07/2022,5100503097,700,Redacted for personal data,423938
WARRINGTON BOROUGH COUNCIL,http://opendatacommunities.org/id/unitary-authority/warrington,ET0,PW&F Management Operations,41427,Kennel Fees,440550,14/07/2022,5100503107,960,Animal Wardens Ltd,103042
WARRINGTON BOROUGH COUNCIL,http://opendatacommunities.org/id/unitary-authority/warrington,ET0,Transport Holding Account,41311,Vehicle Hire Charges,320000,14/07/2022,5100503132,1628,Peter Douglass Platforms,104676
WARRINGTON BOROUGH COUNCIL,http://opendatacommunities.org/id/unitary-authority/warrington,ET0,Transport Holding Account,41311,Vehicle Hire Charges,320000,14/07/2022,5100503133,1628,Peter Douglass Platforms,104676
WARRINGTON BOROUGH COUNCIL,http://opendatacommunities.org/id/unitary-authority/warrington,ET0,Transport Holding Account,41311,Vehicle Hire Charges,320000,14/07/2022,5100503134,1628,Peter Douglass Platforms,104676
WARRINGTON BOROUGH COUNCIL,http://opendatacommunities.org/id/unitary-authority/warrington,ET0,Transport Holding Account,41311,Vehicle Hire Charges,320000,14/07/2022,5100503135,2464,Peter Douglass Platforms,104676
WARRINGTON BOROUGH COUNCIL,http://opendatacommunities.org/id/unitary-authority/warrington,ENO,Building Maintenance Environment & Regen,82001,Consult.& Prof. Serv,440000,14/07/2022,5100503162,600,Steve Hunt Partnership,104802
WARRINGTON BOROUGH COUNCIL,http://opendatacommunities.org/id/unitary-authority/warrington,ET0,Waste Recycling,41820,Diverted Waste,530550,14/07/2022,5100503168,3814.69,The Greener Gardening Company,104283
WARRINGTON BOROUGH COUNCIL,http://opendatacommunities.org/id/unitary-authority/warrington,ET0,Waste Recycling,41820,Diverted Waste,530550,14/07/2022,5100503169,23543.32,The Greener Gardening Company,104283
WARRINGTON BOROUGH COUNCIL,http://opendatacommunities.org/id/unitary-authority/warrington,ET0,Waste Disposal,41830,Diverted Waste,530550,14/07/2022,5100503170,719.16,The Greener Gardening Company,104283
WARRINGTON BOROUGH COUNCIL,http://opendatacommunities.org/id/unitary-authority/warrington,ET0,Waste Disposal,41830,Diverted Waste,530550,14/07/2022,5100503171,750,The Greener Gardening Company,104283
WARRINGTON BOROUGH COUNCIL,http://opendatacommunities.org/id/unitary-authority/warrington,ET0,Crematorium,41411,Materials,400500,14/07/2022,5100503176,1566.84,M C & M A Stewart Haulage Ltd,105159
WARRINGTON BOROUGH COUNCIL,http://opendatacommunities.org/id/unitary-authority/warrington,ET0,Transport Holding Account,41311,Maintenance Work - Sub Contractors,301150,15/07/2022,5100503205,546.44,F R Sharrock Ltd,105122
WARRINGTON BOROUGH COUNCIL,http://opendatacommunities.org/id/unitary-authority/warrington,ET0,Transport Holding Account,41311,Maintenance Work - Sub Contractors,301150,15/07/2022,5100503206,610.41,F R Sharrock Ltd,105122
WARRINGTON BOROUGH COUNCIL,http://opendatacommunities.org/id/unitary-authority/warrington,RSC,Financial Protection Team,56130,Consult.& Prof. Serv,440000,27/07/2022,5100503209,828.45,Allied Publicity Services (Man) LTD,117019
WARRINGTON BOROUGH COUNCIL,http://opendatacommunities.org/id/unitary-authority/warrington,FWB,Virtual School,31112,Looked after children in Warrington,301000,14/07/2022,5100503210,1200,Bridgewater High School Academy,400251
WARRINGTON BOROUGH COUNCIL,http://opendatacommunities.org/id/unitary-authority/warrington,FWB,Training,31203,Training,190150,14/07/2022,5100503220,545.75,Healthcare Conferences UK,112013
WARRINGTON BOROUGH COUNCIL,http://opendatacommunities.org/id/unitary-authority/warrington,ET0,Fair Trading & Investigations,41500,Equipment Purchase & Contract,400000,14/07/2022,5100503228,545,Normanton Screenprint,108766
WARRINGTON BOROUGH COUNCIL,http://opendatacommunities.org/id/unitary-authority/warrington,FWB,Virtual School,31112,Looked after children in Warrington,301000,14/07/2022,5100503232,983.04,Park Road Primary Academy,400487
WARRINGTON BOROUGH COUNCIL,http://opendatacommunities.org/id/unitary-authority/warrington,FWB,Virtual School,31112,Looked after children in Warrington,301000,14/07/2022,5100503232,869.4,Park Road Primary Academy,400487
WARRINGTON BOROUGH COUNCIL,http://opendatacommunities.org/id/unitary-authority/warrington,RSC,Printing & Graphics,23040,External Printing,430100,14/07/2022,5100503241,803,Harris Associates,101986
WARRINGTON BOROUGH COUNCIL,http://opendatacommunities.org/id/unitary-authority/warrington,FWB,Winter Preventions,53140,Security Systems,250000,14/07/2022,5100503244,1652.73,Torus,101005
WARRINGTON BOROUGH COUNCIL,http://opendatacommunities.org/id/unitary-authority/warrington,ET0,Transport Holding Account,41311,Veh Maint. Materials,300000,14/07/2022,5100503246,594,Warrington Timber Co Ltd,113705
WARRINGTON BOROUGH COUNCIL,http://opendatacommunities.org/id/unitary-authority/warrington,ET0,Golf Course Client,41432,Stationery,430150,14/07/2022,5100503256,6683.98,Golfstorehouse Ltd,108916
WARRINGTON BOROUGH COUNCIL,http://opendatacommunities.org/id/unitary-authority/warrington,ET0,Golf Course Client,41432,Stationery,430150,14/07/2022,5100503257,7050.78,Golfstorehouse Ltd,108916
WARRINGTON BOROUGH COUNCIL,http://opendatacommunities.org/id/unitary-authority/warrington,ET0,Golf Course Client,41432,Stationery,430150,14/07/2022,5100503258,6491.68,Golfstorehouse Ltd,108916
WARRINGTON BOROUGH COUNCIL,http://opendatacommunities.org/id/unitary-authority/warrington,ENO,Highways LTP,82004,Environmental Works,531050,20/07/2022,5100503270,15006.14,Tarmac,100489
WARRINGTON BOROUGH COUNCIL,http://opendatacommunities.org/id/unitary-authority/warrington,FWB,CIN Team 6,31016,Fees (Including Agents Fees),441450,15/07/2022,5100503326,1714,AlphaBiolabs,109403
WARRINGTON BOROUGH COUNCIL,http://opendatacommunities.org/id/unitary-authority/warrington,COR,New Market - Operational Account,47000,"Campaigns,  Projects and Events",491950,19/07/2022,5100503366,600,Big Comedy UK,118554
WARRINGTON BOROUGH COUNCIL,http://opendatacommunities.org/id/unitary-authority/warrington,FWB,Supporting People Contracts,53260,Sheltd/Xtra Care Hsing and Comm Alarms,535050,16/07/2022,5100503402,5972.4,Catalyst Choice Management Services,115078
WARRINGTON BOROUGH COUNCIL,http://opendatacommunities.org/id/unitary-authority/warrington,FWB,Supporting People Contracts,53260,Sheltd/Xtra Care Hsing and Comm Alarms,535050,16/07/2022,5100503403,5019.84,Catalyst Choice Management Services,115078
WARRINGTON BOROUGH COUNCIL,http://opendatacommunities.org/id/unitary-authority/warrington,FWB,Supporting People Contracts,53260,Sheltd/Xtra Care Hsing and Comm Alarms,535050,16/07/2022,5100503403,917.84,Catalyst Choice Management Services,115078
WARRINGTON BOROUGH COUNCIL,http://opendatacommunities.org/id/unitary-authority/warrington,ENO,Highways Other,82005,Environmental Works,531050,16/07/2022,5100503404,49544.3,A E Yates Ltd,109758
WARRINGTON BOROUGH COUNCIL,http://opendatacommunities.org/id/unitary-authority/warrington,ENO,Priority Infrastructure,82009,Environmental Works,531050,16/07/2022,5100503406,46600.98,A E Yates Ltd,109758
WARRINGTON BOROUGH COUNCIL,http://opendatacommunities.org/id/unitary-authority/warrington,CYP,Secondary,81002,Building Work,200850,16/07/2022,5100503408,381514.23,Bridgewater High School Academy,400251
WARRINGTON BOROUGH COUNCIL,http://opendatacommunities.org/id/unitary-authority/warrington,COR,Concessionary Travel,60000,Travelling Allowance,330000,16/07/2022,5100503409,216886.92,Cheshire West And Chester,103357
WARRINGTON BOROUGH COUNCIL,http://opendatacommunities.org/id/unitary-authority/warrington,CYP,Childrens & Young People,81000,Specific Work,200200,16/07/2022,5100503410,133652.66,Gables (Uk) Ltd,105363
WARRINGTON BOROUGH COUNCIL,http://opendatacommunities.org/id/unitary-authority/warrington,FWB,Home to School Transport,33210,Mainstream Pupil Transport,300800,18/07/2022,5100503526,950,Redacted for personal data,118326
WARRINGTON BOROUGH COUNCIL,http://opendatacommunities.org/id/unitary-authority/warrington,FWB,Special Schools Transport,33208,Statemented - Special Unit Pupil Transpo,300750,18/07/2022,5100503527,1680,Redacted for personal data,118326
WARRINGTON BOROUGH COUNCIL,http://opendatacommunities.org/id/unitary-authority/warrington,FWB,Special Schools Transport,33208,Statemented - Special Unit Pupil Transpo,300750,18/07/2022,5100503528,672,Redacted for personal data,118326
WARRINGTON BOROUGH COUNCIL,http://opendatacommunities.org/id/unitary-authority/warrington,FWB,Special Schools Transport,33208,Statemented - Special Unit Pupil Transpo,300750,18/07/2022,5100503529,1140,Redacted for personal data,118326
WARRINGTON BOROUGH COUNCIL,http://opendatacommunities.org/id/unitary-authority/warrington,FWB,Virtual School,31112,Looked after children in Warrington,301000,18/07/2022,5100503534,730,Oakdene Primary School,400232
WARRINGTON BOROUGH COUNCIL,http://opendatacommunities.org/id/unitary-authority/warrington,ET0,Sankey Canal Maintenace,44125,Named Drainage Schm,532100,18/07/2022,5100503535,3908,Tarmac,100489
WARRINGTON BOROUGH COUNCIL,http://opendatacommunities.org/id/unitary-authority/warrington,PIO,People & Improvement Other,85002,Lifts from Stock,400850,18/07/2022,5100503541,2190.13,Prism Medical UK,108616
WARRINGTON BOROUGH COUNCIL,http://opendatacommunities.org/id/unitary-authority/warrington,FWB,OT/Equip - Childrens,54315,Equipment Purchase & Contract,400000,18/07/2022,5100503546,3600,Scan Mobility,105107
WARRINGTON BOROUGH COUNCIL,http://opendatacommunities.org/id/unitary-authority/warrington,ET0,Waste Disposal,41830,Residual Waste Disposal,530500,18/07/2022,5100503549,57609.62,VIRIDOR EFW (Runcorn),117566
WARRINGTON BOROUGH COUNCIL,http://opendatacommunities.org/id/unitary-authority/warrington,ET0,Waste Disposal,41830,Residual Waste Disposal,530500,18/07/2022,5100503550,61132.26,VIRIDOR EFW (Runcorn),117566
WARRINGTON BOROUGH COUNCIL,http://opendatacommunities.org/id/unitary-authority/warrington,ET0,Waste Disposal,41830,Residual Waste Disposal,530500,18/07/2022,5100503551,46283.31,VIRIDOR EFW (Runcorn),117566
WARRINGTON BOROUGH COUNCIL,http://opendatacommunities.org/id/unitary-authority/warrington,FWB,DSG Post-16 Special Educational Needs,32309,Fees (Including Agents Fees),441450,18/07/2022,5100503553,34484,Cheshire West And Chester,103357
WARRINGTON BOROUGH COUNCIL,http://opendatacommunities.org/id/unitary-authority/warrington,FWB,DSG Post-16 Special Educational Needs,32309,Fees (Including Agents Fees),441450,18/07/2022,5100503555,698.75,TutorRight Limited,116990
WARRINGTON BOROUGH COUNCIL,http://opendatacommunities.org/id/unitary-authority/warrington,FWB,BCF - Equipment Store,54930,Equipment Purchase & Contract,400000,18/07/2022,5100503563,4050,Harvest Healthcare Ltd,108555
WARRINGTON BOROUGH COUNCIL,http://opendatacommunities.org/id/unitary-authority/warrington,ENO,Highways Other,82005,Environmental Works,531050,18/07/2022,5100503571,3606.06,BT,104542
WARRINGTON BOROUGH COUNCIL,http://opendatacommunities.org/id/unitary-authority/warrington,FWB,Special Schools Transport,33208,Statemented - Special Unit Pupil Transpo,300750,18/07/2022,5100503584,2850,Abba Cars,105302
WARRINGTON BOROUGH COUNCIL,http://opendatacommunities.org/id/unitary-authority/warrington,COR,Industrial Estates,43570,Consult.& Prof. Serv,440000,18/07/2022,5100503587,698.75,Redacted for personal data,102651
WARRINGTON BOROUGH COUNCIL,http://opendatacommunities.org/id/unitary-authority/warrington,FWB,DSG Independent School Fees,32011,Fees (Including Agents Fees),441450,19/07/2022,5100503702,4495.91,Chaigeley Educational Foundation,400123
WARRINGTON BOROUGH COUNCIL,http://opendatacommunities.org/id/unitary-authority/warrington,FWB,DSG Independent School Fees,32011,Fees (Including Agents Fees),441450,19/07/2022,5100503705,4495.91,Chaigeley Educational Foundation,400123
WARRINGTON BOROUGH COUNCIL,http://opendatacommunities.org/id/unitary-authority/warrington,ET0,Engineering,44210,Equipment Purchase & Contract,400000,19/07/2022,5100503715,1236.87,Tarmac,100489
WARRINGTON BOROUGH COUNCIL,http://opendatacommunities.org/id/unitary-authority/warrington,ET0,Or Rm C'way & F'way,44260,M.C.R.Flexible Cat1,530850,19/07/2022,5100503715,16758.35,Tarmac,100489
WARRINGTON BOROUGH COUNCIL,http://opendatacommunities.org/id/unitary-authority/warrington,ET0,Or Rm C'way & F'way,44260,Fct Cat1,530950,19/07/2022,5100503715,9772.66,Tarmac,100489
WARRINGTON BOROUGH COUNCIL,http://opendatacommunities.org/id/unitary-authority/warrington,ET0,Or Rm C'way & F'way,44260,Safety Fences Cat1,531100,19/07/2022,5100503715,1351.26,Tarmac,100489
WARRINGTON BOROUGH COUNCIL,http://opendatacommunities.org/id/unitary-authority/warrington,ET0,Or Rm C'way & F'way,44260,Street Naming,532000,19/07/2022,5100503715,788.52,Tarmac,100489
WARRINGTON BOROUGH COUNCIL,http://opendatacommunities.org/id/unitary-authority/warrington,ET0,Or Rm C'way & F'way,44260,M.C.R.Flexible Cat1,530850,19/07/2022,5100503716,1196.51,Tarmac,100489
WARRINGTON BOROUGH COUNCIL,http://opendatacommunities.org/id/unitary-authority/warrington,ET0,Or Rm C'way & F'way,44260,Fct Cat1,530950,19/07/2022,5100503716,524.68,Tarmac,100489
WARRINGTON BOROUGH COUNCIL,http://opendatacommunities.org/id/unitary-authority/warrington,ET0,Or Rm C'way & F'way,44260,Clean Repair Drains,531000,19/07/2022,5100503719,1377,Tarmac,100489
WARRINGTON BOROUGH COUNCIL,http://opendatacommunities.org/id/unitary-authority/warrington,ET0,Or Rm C'way & F'way,44260,M.C.R.Flexible Cat1,530850,19/07/2022,5100503720,1069.77,Tarmac,100489
WARRINGTON BOROUGH COUNCIL,http://opendatacommunities.org/id/unitary-authority/warrington,ET0,Or Rm C'way & F'way,44260,Fct Cat1,530950,19/07/2022,5100503720,581.69,Tarmac,100489
WARRINGTON BOROUGH COUNCIL,http://opendatacommunities.org/id/unitary-authority/warrington,ET0,Or Rm C'way & F'way,44260,Safety Fences Cat1,531100,19/07/2022,5100503720,1033.38,Tarmac,100489
WARRINGTON BOROUGH COUNCIL,http://opendatacommunities.org/id/unitary-authority/warrington,ET0,Or Rm C'way & F'way,44260,M.C.R.Flexible Cat1,530850,19/07/2022,5100503721,2009,Tarmac,100489
WARRINGTON BOROUGH COUNCIL,http://opendatacommunities.org/id/unitary-authority/warrington,ET0,Or Rm C'way & F'way,44260,Clean Repair Drains,531000,19/07/2022,5100503721,1822.22,Tarmac,100489
WARRINGTON BOROUGH COUNCIL,http://opendatacommunities.org/id/unitary-authority/warrington,ET0,Engineering,44210,Equipment Purchase & Contract,400000,19/07/2022,5100503722,663.8,Tarmac,100489
WARRINGTON BOROUGH COUNCIL,http://opendatacommunities.org/id/unitary-authority/warrington,ET0,Or Rm C'way & F'way,44260,M.C.R.Flexible Cat1,530850,19/07/2022,5100503722,13001.86,Tarmac,100489
WARRINGTON BOROUGH COUNCIL,http://opendatacommunities.org/id/unitary-authority/warrington,ET0,Or Rm C'way & F'way,44260,Fct Cat1,530950,19/07/2022,5100503722,16198.15,Tarmac,100489
WARRINGTON BOROUGH COUNCIL,http://opendatacommunities.org/id/unitary-authority/warrington,ET0,Or Rm C'way & F'way,44260,Safety Fences Cat1,531100,19/07/2022,5100503722,676.79,Tarmac,100489
WARRINGTON BOROUGH COUNCIL,http://opendatacommunities.org/id/unitary-authority/warrington,ET0,Or Rm C'way & F'way,44260,M.C.R.Flexible Cat1,530850,19/07/2022,5100503723,557.08,Tarmac,100489
WARRINGTON BOROUGH COUNCIL,http://opendatacommunities.org/id/unitary-authority/warrington,ET0,Or Rm C'way & F'way,44260,Fct Cat1,530950,19/07/2022,5100503723,970.5,Tarmac,100489
WARRINGTON BOROUGH COUNCIL,http://opendatacommunities.org/id/unitary-authority/warrington,ET0,Land Drainage,44120,Clean Repair Drains,531000,19/07/2022,5100503725,15539.14,Tarmac,100489
WARRINGTON BOROUGH COUNCIL,http://opendatacommunities.org/id/unitary-authority/warrington,FWB,DSG Post-16 Special Educational Needs,32309,Fees (Including Agents Fees),441450,19/07/2022,5100503729,6893,Wargrave House School,400175
WARRINGTON BOROUGH COUNCIL,http://opendatacommunities.org/id/unitary-authority/warrington,FWB,DSG Post-16 Special Educational Needs,32309,Fees (Including Agents Fees),441450,19/07/2022,5100503733,14613.34,Wargrave House School,400175
WARRINGTON BOROUGH COUNCIL,http://opendatacommunities.org/id/unitary-authority/warrington,FWB,DSG Independent School Fees,32011,Fees (Including Agents Fees),441450,19/07/2022,5100503734,21339.77,Wargrave House School,400175
WARRINGTON BOROUGH COUNCIL,http://opendatacommunities.org/id/unitary-authority/warrington,FWB,DSG Post-16 Special Educational Needs,32309,Fees (Including Agents Fees),441450,19/07/2022,5100503735,5306.6,The LTE Group,117985
WARRINGTON BOROUGH COUNCIL,http://opendatacommunities.org/id/unitary-authority/warrington,FWB,DSG Independent School Fees,32011,Fees (Including Agents Fees),441450,19/07/2022,5100503736,5477.75,Cedar House School,111289
WARRINGTON BOROUGH COUNCIL,http://opendatacommunities.org/id/unitary-authority/warrington,FWB,DSG Inter Authority Recoupment,32009,Fees (Including Agents Fees),441450,19/07/2022,5100503737,4342.14,Adelaide Acad.Trust c/o Finch Woods,117573
WARRINGTON BOROUGH COUNCIL,http://opendatacommunities.org/id/unitary-authority/warrington,FWB,DSG Independent School Fees,32011,Fees (Including Agents Fees),441450,19/07/2022,5100503738,4495.91,Chaigeley Educational Foundation,400123
WARRINGTON BOROUGH COUNCIL,http://opendatacommunities.org/id/unitary-authority/warrington,FWB,DSG Independent School Fees,32011,Fees (Including Agents Fees),441450,25/07/2022,5100503739,4495.91,Chaigeley Educational Foundation,400123
WARRINGTON BOROUGH COUNCIL,http://opendatacommunities.org/id/unitary-authority/warrington,ET0,Walton Estate,41430,Events Costs,490000,19/07/2022,5100503741,2050,Heartbreak,101743
WARRINGTON BOROUGH COUNCIL,http://opendatacommunities.org/id/unitary-authority/warrington,FWB,Special Schools Transport,33208,Statemented - Special Unit Pupil Transpo,300750,20/07/2022,5100503745,1032.08,Abba Cars,105302
WARRINGTON BOROUGH COUNCIL,http://opendatacommunities.org/id/unitary-authority/warrington,FWB,Special Schools Transport,33208,Statemented - Special Unit Pupil Transpo,300750,20/07/2022,5100503746,886.41,Abba Cars,105302
WARRINGTON BOROUGH COUNCIL,http://opendatacommunities.org/id/unitary-authority/warrington,FWB,Staffing - Cluster Central & East,31520,Materials,400500,20/07/2022,5100503749,600,British Youth Council,110826
WARRINGTON BOROUGH COUNCIL,http://opendatacommunities.org/id/unitary-authority/warrington,FWB,DSG Independent School Fees,32011,Fees (Including Agents Fees),441450,19/07/2022,5100503750,2915.27,Belmont School Limited,400047
WARRINGTON BOROUGH COUNCIL,http://opendatacommunities.org/id/unitary-authority/warrington,FWB,DSG Independent School Fees,32011,Fees (Including Agents Fees),441450,19/07/2022,5100503751,2970,Belmont School Limited,400047
WARRINGTON BOROUGH COUNCIL,http://opendatacommunities.org/id/unitary-authority/warrington,FWB,DSG Independent School Fees,32011,Fees (Including Agents Fees),441450,19/07/2022,5100503752,3008.61,Belmont School Limited,400047
WARRINGTON BOROUGH COUNCIL,http://opendatacommunities.org/id/unitary-authority/warrington,FWB,CiC Management,30200,Specific Work,200200,20/07/2022,5100503797,4605,R C Building Services Ltd,117895
WARRINGTON BOROUGH COUNCIL,http://opendatacommunities.org/id/unitary-authority/warrington,FWB,CiC Management,30200,Specific Work,200200,20/07/2022,5100503798,7608.11,R C Building Services Ltd,117895
WARRINGTON BOROUGH COUNCIL,http://opendatacommunities.org/id/unitary-authority/warrington,RSC,ICT Centralised Budget,23100,Computer Software - Maintenance,450850,20/07/2022,5100503804,26255,Graitec,100160
WARRINGTON BOROUGH COUNCIL,http://opendatacommunities.org/id/unitary-authority/warrington,FWB,Inclusion,32207,Fees (Including Agents Fees),441450,26/07/2022,5100503813,1000,Lightbulb EMDR Ltd,118581
WARRINGTON BOROUGH COUNCIL,http://opendatacommunities.org/id/unitary-authority/warrington,ET0,Vehicle & Plant Acq.,41312,Vehicle & Plant Purchase,301350,20/07/2022,5100503820,95514,Turner Groundscare,105201
WARRINGTON BOROUGH COUNCIL,http://opendatacommunities.org/id/unitary-authority/warrington,FWB,Virtual School,31112,Looked after children in Warrington,301000,20/07/2022,5100503834,590,Kings Leadership Academy,400191
WARRINGTON BOROUGH COUNCIL,http://opendatacommunities.org/id/unitary-authority/warrington,FWB,CIN Team 3,31003,Consult.& Prof. Serv,440000,20/07/2022,5100503835,3911.6,AlphaBiolabs,109403
WARRINGTON BOROUGH COUNCIL,http://opendatacommunities.org/id/unitary-authority/warrington,ET0,Walton Estate,41430,Events Costs,490000,20/07/2022,5100503838,750,West Lancs Dog Display Team,109193
WARRINGTON BOROUGH COUNCIL,http://opendatacommunities.org/id/unitary-authority/warrington,FWB,DSG Independent School Fees,32011,Fees (Including Agents Fees),441450,20/07/2022,5100503843,3029.25,Belmont School Limited,400047
WARRINGTON BOROUGH COUNCIL,http://opendatacommunities.org/id/unitary-authority/warrington,FWB,DSG Independent School Fees,32011,Fees (Including Agents Fees),441450,20/07/2022,5100503844,3007.76,Belmont School Limited,400047
WARRINGTON BOROUGH COUNCIL,http://opendatacommunities.org/id/unitary-authority/warrington,FWB,DSG Independent School Fees,32011,Fees (Including Agents Fees),441450,20/07/2022,5100503845,2944.27,Belmont School Limited,400047
WARRINGTON BOROUGH COUNCIL,http://opendatacommunities.org/id/unitary-authority/warrington,FWB,DSG Independent School Fees,32011,Fees (Including Agents Fees),441450,20/07/2022,5100503846,2948.62,Belmont School Limited,400047
WARRINGTON BOROUGH COUNCIL,http://opendatacommunities.org/id/unitary-authority/warrington,DG0,Kickstart,22244,"Campaigns,  Projects and Events",491950,20/07/2022,5100503854,2870.75,Sigma,118224
WARRINGTON BOROUGH COUNCIL,http://opendatacommunities.org/id/unitary-authority/warrington,DG0,Kickstart,22244,"Campaigns,  Projects and Events",491950,20/07/2022,5100503855,746.52,JDG Media Ltd,118370
WARRINGTON BOROUGH COUNCIL,http://opendatacommunities.org/id/unitary-authority/warrington,FWB,Homelessness,43650,Emergency Accommodation Allowance,550500,20/07/2022,5100503857,2343.33,The Patten Arms Hotel,115465
WARRINGTON BOROUGH COUNCIL,http://opendatacommunities.org/id/unitary-authority/warrington,FWB,Homelessness,43650,Emergency Accommodation Allowance,550500,20/07/2022,5100503858,791.67,The Patten Arms Hotel,115465
WARRINGTON BOROUGH COUNCIL,http://opendatacommunities.org/id/unitary-authority/warrington,FWB,Homelessness,43650,Emergency Accommodation Allowance,550500,20/07/2022,5100503862,1868.33,The Patten Arms Hotel,115465
WARRINGTON BOROUGH COUNCIL,http://opendatacommunities.org/id/unitary-authority/warrington,FWB,Homelessness,43650,Emergency Accommodation Allowance,550500,20/07/2022,5100503863,1330,The Patten Arms Hotel,115465
WARRINGTON BOROUGH COUNCIL,http://opendatacommunities.org/id/unitary-authority/warrington,FWB,Homelessness,43650,Emergency Accommodation Allowance,550500,20/07/2022,5100503864,538.33,The Patten Arms Hotel,115465
WARRINGTON BOROUGH COUNCIL,http://opendatacommunities.org/id/unitary-authority/warrington,FWB,Homelessness,43650,Emergency Accommodation Allowance,550500,20/07/2022,5100503865,1425,The Patten Arms Hotel,115465
WARRINGTON BOROUGH COUNCIL,http://opendatacommunities.org/id/unitary-authority/warrington,FWB,Homelessness,43650,Emergency Accommodation Allowance,550500,20/07/2022,5100503866,945.78,The Patten Arms Hotel,115465
WARRINGTON BOROUGH COUNCIL,http://opendatacommunities.org/id/unitary-authority/warrington,FWB,Homelessness,43650,Emergency Accommodation Allowance,550500,20/07/2022,5100503867,1452.44,The Patten Arms Hotel,115465
WARRINGTON BOROUGH COUNCIL,http://opendatacommunities.org/id/unitary-authority/warrington,FWB,Homelessness,43650,Emergency Accommodation Allowance,550500,20/07/2022,5100503868,1553.78,The Patten Arms Hotel,115465
WARRINGTON BOROUGH COUNCIL,http://opendatacommunities.org/id/unitary-authority/warrington,FWB,Homelessness,43650,Emergency Accommodation Allowance,550500,20/07/2022,5100503872,1400,The Patten Arms Hotel,115465
WARRINGTON BOROUGH COUNCIL,http://opendatacommunities.org/id/unitary-authority/warrington,FWB,Homelessness,43650,Emergency Accommodation Allowance,550500,20/07/2022,5100503873,1047.11,The Patten Arms Hotel,115465
WARRINGTON BOROUGH COUNCIL,http://opendatacommunities.org/id/unitary-authority/warrington,FWB,Homelessness,43650,Emergency Accommodation Allowance,550500,20/07/2022,5100503874,1080.89,The Patten Arms Hotel,115465
WARRINGTON BOROUGH COUNCIL,http://opendatacommunities.org/id/unitary-authority/warrington,FWB,Homelessness,43650,Emergency Accommodation Allowance,550500,20/07/2022,5100503906,1120,DANL Limited,116459
WARRINGTON BOROUGH COUNCIL,http://opendatacommunities.org/id/unitary-authority/warrington,FWB,Special Schools Transport,33208,Statemented - Special Unit Pupil Transpo,300750,20/07/2022,5100503908,1873.9,Redacted for personal data,102978
WARRINGTON BOROUGH COUNCIL,http://opendatacommunities.org/id/unitary-authority/warrington,FWB,Special Schools Transport,33208,Statemented - Special Unit Pupil Transpo,300750,20/07/2022,5100503909,547.2,Abba Cars,105302
WARRINGTON BOROUGH COUNCIL,http://opendatacommunities.org/id/unitary-authority/warrington,FWB,Special Schools Transport,33208,Statemented - Special Unit Pupil Transpo,300750,20/07/2022,5100503914,695.9,Abba Cars,105302
WARRINGTON BOROUGH COUNCIL,http://opendatacommunities.org/id/unitary-authority/warrington,FWB,DSG Post-16 Special Educational Needs,32309,Fees (Including Agents Fees),441450,20/07/2022,5100503915,44661.66,Wargrave House School,400175
WARRINGTON BOROUGH COUNCIL,http://opendatacommunities.org/id/unitary-authority/warrington,FWB,DSG Inter Authority Recoupment,32009,Fees (Including Agents Fees),441450,20/07/2022,5100503918,6124.58,The Cavendish High Academy,400226
WARRINGTON BOROUGH COUNCIL,http://opendatacommunities.org/id/unitary-authority/warrington,FWB,DSG Independent School Fees,32011,Fees (Including Agents Fees),441450,20/07/2022,5100503920,6500,Cransley School,107861
WARRINGTON BOROUGH COUNCIL,http://opendatacommunities.org/id/unitary-authority/warrington,FWB,Special Schools Transport,33208,Statemented - Special Unit Pupil Transpo,300750,20/07/2022,5100503922,1566.36,Abba Cars,105302
WARRINGTON BOROUGH COUNCIL,http://opendatacommunities.org/id/unitary-authority/warrington,FWB,Special Schools Transport,33208,Statemented - Special Unit Pupil Transpo,300750,20/07/2022,5100503923,540,Redacted for personal data,107699
WARRINGTON BOROUGH COUNCIL,http://opendatacommunities.org/id/unitary-authority/warrington,FWB,Special Schools Transport,33208,Statemented - Special Unit Pupil Transpo,300750,20/07/2022,5100503924,1292,Abba Cars,105302
WARRINGTON BOROUGH COUNCIL,http://opendatacommunities.org/id/unitary-authority/warrington,FWB,DSG Independent School Fees,32011,Fees (Including Agents Fees),441450,20/07/2022,5100503925,1000,Cransley School,107861
WARRINGTON BOROUGH COUNCIL,http://opendatacommunities.org/id/unitary-authority/warrington,FWB,DSG Independent School Fees,32011,Fees (Including Agents Fees),441450,20/07/2022,5100503926,4498.59,Cransley School,107861
WARRINGTON BOROUGH COUNCIL,http://opendatacommunities.org/id/unitary-authority/warrington,FWB,DSG Independent School Fees,32011,Fees (Including Agents Fees),441450,20/07/2022,5100503927,4187.5,Belmont School Limited,400047
WARRINGTON BOROUGH COUNCIL,http://opendatacommunities.org/id/unitary-authority/warrington,FWB,DSG Independent School Fees,32011,Fees (Including Agents Fees),441450,20/07/2022,5100503928,25265,Cumberland School,112919
WARRINGTON BOROUGH COUNCIL,http://opendatacommunities.org/id/unitary-authority/warrington,DG0,Development Control,43430,Consult.& Prof. Serv,440000,21/07/2022,5100503929,5062,Tameside M B,440155
WARRINGTON BOROUGH COUNCIL,http://opendatacommunities.org/id/unitary-authority/warrington,FWB,OT/Equip - Childrens,54315,Equipment Purchase & Contract,400000,21/07/2022,5100503969,4218,Newlyn Healthcare Ltd,101429
WARRINGTON BOROUGH COUNCIL,http://opendatacommunities.org/id/unitary-authority/warrington,ET0,Private Sector Hsg.,43660,Equipment Purchase & Contract,400000,21/07/2022,5100503973,13795,Acorn Building Projects Ltd,105557
WARRINGTON BOROUGH COUNCIL,http://opendatacommunities.org/id/unitary-authority/warrington,ENO,Highways LTP,82004,Fct Repairs,532600,26/07/2022,5100503980,1235,Blue Arrow Traffic Management Ltd,109292
WARRINGTON BOROUGH COUNCIL,http://opendatacommunities.org/id/unitary-authority/warrington,FWB,BCF - Equipment Store,54930,Equipment Purchase & Contract,400000,26/07/2022,5100503992,610.65,Prism Medical UK,108616
WARRINGTON BOROUGH COUNCIL,http://opendatacommunities.org/id/unitary-authority/warrington,COR,Concessionary Travel,60000,Travelling Allowance,330000,21/07/2022,5100503994,24761.99,Cheshire West And Chester,103357
WARRINGTON BOROUGH COUNCIL,http://opendatacommunities.org/id/unitary-authority/warrington,ET0,Facilities Management,41422,Materials,400500,21/07/2022,5100503995,840,Earth Anchors Ltd,104682
WARRINGTON BOROUGH COUNCIL,http://opendatacommunities.org/id/unitary-authority/warrington,FWB,BCF - Padgate House,54760,Annual Maintenance,442100,21/07/2022,5100503998,903.58,Gainsborough Baths,114061
WARRINGTON BOROUGH COUNCIL,http://opendatacommunities.org/id/unitary-authority/warrington,ET0,Cemeteries,41410,Materials,400500,21/07/2022,5100504000,1980,Griffin Contracting Services,114529
WARRINGTON BOROUGH COUNCIL,http://opendatacommunities.org/id/unitary-authority/warrington,FWB,DSG Independent School Fees,32011,Fees (Including Agents Fees),441450,21/07/2022,5100504001,5921.42,Belmont School Limited,400047
WARRINGTON BOROUGH COUNCIL,http://opendatacommunities.org/id/unitary-authority/warrington,FWB,DSG Independent School Fees,32011,Fees (Including Agents Fees),441450,21/07/2022,5100504002,3192.75,Belmont School Limited,400047
WARRINGTON BOROUGH COUNCIL,http://opendatacommunities.org/id/unitary-authority/warrington,FWB,DSG Independent School Fees,32011,Fees (Including Agents Fees),441450,21/07/2022,5100504003,4979.17,Belmont School Limited,400047
WARRINGTON BOROUGH COUNCIL,http://opendatacommunities.org/id/unitary-authority/warrington,FWB,DSG Independent School Fees,32011,Fees (Including Agents Fees),441450,21/07/2022,5100504004,4833.33,Belmont School Limited,400047
WARRINGTON BOROUGH COUNCIL,http://opendatacommunities.org/id/unitary-authority/warrington,FWB,DSG Inter Authority Recoupment,32009,Fees (Including Agents Fees),441450,21/07/2022,5100504010,4542.86,Little Bollington CofE Primary Sch,400591
WARRINGTON BOROUGH COUNCIL,http://opendatacommunities.org/id/unitary-authority/warrington,DG0,Contingency,45227,Maintenance of Plant & Machinery,250050,21/07/2022,5100504015,5223.42,Mears Limited,114197
WARRINGTON BOROUGH COUNCIL,http://opendatacommunities.org/id/unitary-authority/warrington,ET0,Walton HLF Project,41440,Training,190150,21/07/2022,5100504018,3400,Myerscough College,101919
WARRINGTON BOROUGH COUNCIL,http://opendatacommunities.org/id/unitary-authority/warrington,FWB,DSG Inter Authority Recoupment,32009,Fees (Including Agents Fees),441450,21/07/2022,5100504020,2148.74,Our Lady's Catholic College,118197
WARRINGTON BOROUGH COUNCIL,http://opendatacommunities.org/id/unitary-authority/warrington,FWB,DSG Post-16 Special Educational Needs,32309,Fees (Including Agents Fees),441450,21/07/2022,5100504022,3293.4,The Royal School For The Blind,400046
WARRINGTON BOROUGH COUNCIL,http://opendatacommunities.org/id/unitary-authority/warrington,FWB,DSG Inter Authority Recoupment,32009,Fees (Including Agents Fees),441450,21/07/2022,5100504023,3849.46,The Russett School,400576
WARRINGTON BOROUGH COUNCIL,http://opendatacommunities.org/id/unitary-authority/warrington,FWB,SEN Projects,32301,Fees (Including Agents Fees),441450,21/07/2022,5100504024,500,Thelwall Infant School (Academy),400705
WARRINGTON BOROUGH COUNCIL,http://opendatacommunities.org/id/unitary-authority/warrington,FWB,DSG Independent School Fees,32011,Fees (Including Agents Fees),441450,21/07/2022,5100504025,5921.42,Belmont School Limited,400047
WARRINGTON BOROUGH COUNCIL,http://opendatacommunities.org/id/unitary-authority/warrington,FWB,DSG Post-16 Special Educational Needs,32309,Fees (Including Agents Fees),441450,21/07/2022,5100504026,6283.33,Wigan And Leigh College,101597
WARRINGTON BOROUGH COUNCIL,http://opendatacommunities.org/id/unitary-authority/warrington,FWB,DSG Independent School Fees,32011,Fees (Including Agents Fees),441450,21/07/2022,5100504027,2942.6,Withington Girls School,400331
WARRINGTON BOROUGH COUNCIL,http://opendatacommunities.org/id/unitary-authority/warrington,ET0,Construction Stores Overhead Account,41320,Materials,400500,21/07/2022,5100504035,514,Thorne & Derrick (Northern),100201
WARRINGTON BOROUGH COUNCIL,http://opendatacommunities.org/id/unitary-authority/warrington,ET0,Trading Standards North West,41564,"Campaigns,  Projects and Events",491950,21/07/2022,5100504040,700,Wagtail UK Limited,108156
WARRINGTON BOROUGH COUNCIL,http://opendatacommunities.org/id/unitary-authority/warrington,FWB,Education Leadership & Quality,32100,"Campaigns,  Projects and Events",491950,21/07/2022,5100504042,4246,Warrington Voluntary Action,110206
WARRINGTON BOROUGH COUNCIL,http://opendatacommunities.org/id/unitary-authority/warrington,COR,Other Commercial Prop.,43560,Consult.& Prof. Serv,440000,21/07/2022,5100504057,1000,TLT Solicitors,115669
WARRINGTON BOROUGH COUNCIL,http://opendatacommunities.org/id/unitary-authority/warrington,ET0,Transport Holding Account,41311,Veh Maint. Materials,300000,21/07/2022,5100504058,680,Tennants Distribution Limited,103720
WARRINGTON BOROUGH COUNCIL,http://opendatacommunities.org/id/unitary-authority/warrington,ET0,Transport Holding Account,41311,Veh Maint. Materials,300000,21/07/2022,5100504059,680,Tennants Distribution Limited,103720
WARRINGTON BOROUGH COUNCIL,http://opendatacommunities.org/id/unitary-authority/warrington,ENO,Highways LTP,82004,Environmental Works,531050,21/07/2022,5100504064,10635.07,Tarmac,100489
WARRINGTON BOROUGH COUNCIL,http://opendatacommunities.org/id/unitary-authority/warrington,FWB,Special Schools Transport,33208,Statemented - Special Unit Pupil Transpo,300750,21/07/2022,5100504065,2109,PR CARS,118263
WARRINGTON BOROUGH COUNCIL,http://opendatacommunities.org/id/unitary-authority/warrington,FWB,Special Schools Transport,33208,Statemented - Special Unit Pupil Transpo,300750,21/07/2022,5100504066,1482,PR CARS,118263
WARRINGTON BOROUGH COUNCIL,http://opendatacommunities.org/id/unitary-authority/warrington,FWB,Special Schools Transport,33208,Statemented - Special Unit Pupil Transpo,300750,21/07/2022,5100504067,1040,Soran's Travel,118414
WARRINGTON BOROUGH COUNCIL,http://opendatacommunities.org/id/unitary-authority/warrington,CYP,Secondary,81002,Building Work,200850,21/07/2022,5100504068,544474.43,Bridgewater High School Academy,400251
WARRINGTON BOROUGH COUNCIL,http://opendatacommunities.org/id/unitary-authority/warrington,ENO,Environmental Projects,82007,Payment of Grants,470050,27/07/2022,5100504069,1667039.3,Cheshire West And Chester,103357
WARRINGTON BOROUGH COUNCIL,http://opendatacommunities.org/id/unitary-authority/warrington,ENO,Highways LTP,82004,Carriageway-Resurfacing,532250,21/07/2022,5100504071,165000,Tarmac,100489
WARRINGTON BOROUGH COUNCIL,http://opendatacommunities.org/id/unitary-authority/warrington,FWB,DSG Independent School Fees,32011,Fees (Including Agents Fees),441450,21/07/2022,5100504075,4839,Belmont School Limited,400047
WARRINGTON BOROUGH COUNCIL,http://opendatacommunities.org/id/unitary-authority/warrington,FWB,BCF - Equipment Store,54930,Equipment Purchase & Contract,400000,21/07/2022,5100504093,709,Cefndy Enterprises,104660
WARRINGTON BOROUGH COUNCIL,http://opendatacommunities.org/id/unitary-authority/warrington,FWB,DSG Post-16 Special Educational Needs,32309,Fees (Including Agents Fees),441450,21/07/2022,5100504100,102916,Wargrave House School,400175
WARRINGTON BOROUGH COUNCIL,http://opendatacommunities.org/id/unitary-authority/warrington,FWB,DSG Post-16 Special Educational Needs,32309,Fees (Including Agents Fees),441450,21/07/2022,5100504101,53623.68,Wargrave House School,400175
WARRINGTON BOROUGH COUNCIL,http://opendatacommunities.org/id/unitary-authority/warrington,ET0,Trading Standards North West,41564,"Campaigns,  Projects and Events",491950,21/07/2022,5100504102,1500,Manchester City Council,410005
WARRINGTON BOROUGH COUNCIL,http://opendatacommunities.org/id/unitary-authority/warrington,FWB,DSG Post-16 Special Educational Needs,32309,Fees (Including Agents Fees),441450,21/07/2022,5100504106,69678.33,Riverside College Halton,104765
WARRINGTON BOROUGH COUNCIL,http://opendatacommunities.org/id/unitary-authority/warrington,NEP,Neighbourhood & Community Services,83000,Consult.& Prof. Serv,440000,21/07/2022,5100504109,941.25,Redacted for personal data,102651
WARRINGTON BOROUGH COUNCIL,http://opendatacommunities.org/id/unitary-authority/warrington,FWB,Home to School Transport,33210,Mainstream Pupil Transport,300800,21/07/2022,5100504110,600,PR CARS,118263
WARRINGTON BOROUGH COUNCIL,http://opendatacommunities.org/id/unitary-authority/warrington,ENO,Environmental Projects,82007,Consult.& Prof. Serv,440000,22/07/2022,5100504123,1850,Warmer Home Grants Ltd,118266
WARRINGTON BOROUGH COUNCIL,http://opendatacommunities.org/id/unitary-authority/warrington,FWB,Special Schools Transport,33208,Statemented - Special Unit Pupil Transpo,300750,25/07/2022,5100504322,2358.33,Diamond Travel,104665
WARRINGTON BOROUGH COUNCIL,http://opendatacommunities.org/id/unitary-authority/warrington,FWB,Inclusion,32207,Fees (Including Agents Fees),441450,28/07/2022,5100504323,1000,Lightbulb EMDR Ltd,118581
WARRINGTON BOROUGH COUNCIL,http://opendatacommunities.org/id/unitary-authority/warrington,RSC,Annual Canvas,11500,Postages,450000,26/07/2022,5100504324,3992.9,Print Image Facilities LLP,111374
WARRINGTON BOROUGH COUNCIL,http://opendatacommunities.org/id/unitary-authority/warrington,FWB,Home to School Transport,33210,Mainstream Pupil Transport,300800,26/07/2022,5100504325,950,Arrivals Star,101879
WARRINGTON BOROUGH COUNCIL,http://opendatacommunities.org/id/unitary-authority/warrington,FWB,Special Schools Transport,33208,Statemented - Special Unit Pupil Transpo,300750,26/07/2022,5100504326,2163.18,Arrivals Star,101879
WARRINGTON BOROUGH COUNCIL,http://opendatacommunities.org/id/unitary-authority/warrington,FWB,Special Schools Transport,33208,Statemented - Special Unit Pupil Transpo,300750,26/07/2022,5100504327,1733.56,Arrivals Star,101879
WARRINGTON BOROUGH COUNCIL,http://opendatacommunities.org/id/unitary-authority/warrington,FWB,BCF - Equipment Store,54930,Equipment Purchase & Contract,400000,25/07/2022,5100504338,670.92,Cefndy Enterprises,104660
WARRINGTON BOROUGH COUNCIL,http://opendatacommunities.org/id/unitary-authority/warrington,ENO,Highways LTP,82004,Annual Maintenance,442100,25/07/2022,5100504341,3840,Commutaports Ltd,111451
WARRINGTON BOROUGH COUNCIL,http://opendatacommunities.org/id/unitary-authority/warrington,ENO,Highways LTP,82004,Annual Maintenance,442100,25/07/2022,5100504342,700,Commutaports Ltd,111451
WARRINGTON BOROUGH COUNCIL,http://opendatacommunities.org/id/unitary-authority/warrington,ET0,Waste Recycling,41820,Waste Initiatives,443200,25/07/2022,5100504343,1034.8,Contenur UK Ltd,117538
WARRINGTON BOROUGH COUNCIL,http://opendatacommunities.org/id/unitary-authority/warrington,ET0,Trading Standards North West,41564,"Campaigns,  Projects and Events",491950,26/07/2022,5100504389,1500,Salford City Council,410033
WARRINGTON BOROUGH COUNCIL,http://opendatacommunities.org/id/unitary-authority/warrington,FWB,SEN Projects,32301,Fees (Including Agents Fees),441450,26/07/2022,5100504390,500,Oughtrington Primary (Academy),400702
WARRINGTON BOROUGH COUNCIL,http://opendatacommunities.org/id/unitary-authority/warrington,ENO,Highways LTP,82004,Consult.& Prof. Serv,440000,26/07/2022,5100504394,20495,Tarmac,100489
WARRINGTON BOROUGH COUNCIL,http://opendatacommunities.org/id/unitary-authority/warrington,ENO,Highways Other,82005,Consult.& Prof. Serv,440000,26/07/2022,5100504395,8965,Tarmac,100489
WARRINGTON BOROUGH COUNCIL,http://opendatacommunities.org/id/unitary-authority/warrington,FWB,DSG Independent School Fees,32011,Fees (Including Agents Fees),441450,26/07/2022,5100504397,17110,Peak Activity Services Ltd,117927
WARRINGTON BOROUGH COUNCIL,http://opendatacommunities.org/id/unitary-authority/warrington,DG0,Contingency,45227,Maintenance of Plant & Machinery,250050,26/07/2022,5100504398,76908.81,Mears Limited,114197
WARRINGTON BOROUGH COUNCIL,http://opendatacommunities.org/id/unitary-authority/warrington,FWB,Virtual School,31112,Looked after children in Warrington,301000,26/07/2022,5100504405,893.88,Avening Primary School,400736
WARRINGTON BOROUGH COUNCIL,http://opendatacommunities.org/id/unitary-authority/warrington,FWB,Virtual School,31112,Looked after children in Warrington,301000,26/07/2022,5100504418,511.25,Golborne High School,400316
WARRINGTON BOROUGH COUNCIL,http://opendatacommunities.org/id/unitary-authority/warrington,FWB,BCF - Intermediate Care at Home,54520,Stationery,430150,26/07/2022,5100504420,754.1,Banner Group Ltd,111644
WARRINGTON BOROUGH COUNCIL,http://opendatacommunities.org/id/unitary-authority/warrington,DG0,Kickstart,22244,"Campaigns,  Projects and Events",491950,26/07/2022,5100504430,5303.26,Go Earth Ltd,118059
WARRINGTON BOROUGH COUNCIL,http://opendatacommunities.org/id/unitary-authority/warrington,DG0,Kickstart,22244,"Campaigns,  Projects and Events",491950,26/07/2022,5100504431,4299.91,Go Earth Ltd,118059
WARRINGTON BOROUGH COUNCIL,http://opendatacommunities.org/id/unitary-authority/warrington,DG0,Kickstart,22244,"Campaigns,  Projects and Events",491950,26/07/2022,5100504432,1085.21,Go Earth Ltd,118059
WARRINGTON BOROUGH COUNCIL,http://opendatacommunities.org/id/unitary-authority/warrington,DG0,Kickstart,22244,"Campaigns,  Projects and Events",491950,26/07/2022,5100504433,10390.62,Go Earth Ltd,118059
WARRINGTON BOROUGH COUNCIL,http://opendatacommunities.org/id/unitary-authority/warrington,DG0,Kickstart,22244,"Campaigns,  Projects and Events",491950,26/07/2022,5100504434,1493.04,Go Earth Ltd,118059
WARRINGTON BOROUGH COUNCIL,http://opendatacommunities.org/id/unitary-authority/warrington,DG0,Kickstart,22244,"Campaigns,  Projects and Events",491950,26/07/2022,5100504436,746.52,JDG Media Ltd,118370
WARRINGTON BOROUGH COUNCIL,http://opendatacommunities.org/id/unitary-authority/warrington,FWB,BCF - Equipment Store,54930,Equipment Purchase & Contract,400000,26/07/2022,5100504439,533.1,Langham Products,103643
WARRINGTON BOROUGH COUNCIL,http://opendatacommunities.org/id/unitary-authority/warrington,DG0,Kickstart,22244,"Campaigns,  Projects and Events",491950,26/07/2022,5100504443,1085.21,MKM Building Supplies Ltd,118088
WARRINGTON BOROUGH COUNCIL,http://opendatacommunities.org/id/unitary-authority/warrington,ET0,Transport Holding Account,41311,Vehicle Hire Charges,320000,26/07/2022,5100504467,2540.15,P S D Vehicle Rental,100551
WARRINGTON BOROUGH COUNCIL,http://opendatacommunities.org/id/unitary-authority/warrington,PIO,People & Improvement Other,85002,Lifts from Stock,400850,26/07/2022,5100504474,2575,TK Access Solutions Limited,105382
WARRINGTON BOROUGH COUNCIL,http://opendatacommunities.org/id/unitary-authority/warrington,DG0,Kickstart,22244,"Campaigns,  Projects and Events",491950,26/07/2022,5100504475,1044.28,Top Print Ltd,118063
WARRINGTON BOROUGH COUNCIL,http://opendatacommunities.org/id/unitary-authority/warrington,FWB,Virtual School,31112,Looked after children in Warrington,301000,26/07/2022,5100504478,2301,Westleigh High School,400361
WARRINGTON BOROUGH COUNCIL,http://opendatacommunities.org/id/unitary-authority/warrington,ET0,Walton Estate,41430,Materials,400500,26/07/2022,5100504479,632.5,Walton Christmas Tree Centre,104180
WARRINGTON BOROUGH COUNCIL,http://opendatacommunities.org/id/unitary-authority/warrington,ET0,Taxi and Private Hire Licensing,44450,Consult.& Prof. Serv,440000,26/07/2022,5100504481,4144,Radius Security Ltd,116645
WARRINGTON BOROUGH COUNCIL,http://opendatacommunities.org/id/unitary-authority/warrington,ET0,Transport Holding Account,41311,Veh Maint. Materials,300000,26/07/2022,5100504487,1523.2,Scarab Sweepers Ltd,108570
WARRINGTON BOROUGH COUNCIL,http://opendatacommunities.org/id/unitary-authority/warrington,ET0,Transport Holding Account,41311,Vehicle Hire Charges,320000,26/07/2022,5100504489,2464,Peter Douglass Platforms,104676
WARRINGTON BOROUGH COUNCIL,http://opendatacommunities.org/id/unitary-authority/warrington,ET0,Transport Holding Account,41311,Vehicle Hire Charges,320000,26/07/2022,5100504490,1628,Peter Douglass Platforms,104676
WARRINGTON BOROUGH COUNCIL,http://opendatacommunities.org/id/unitary-authority/warrington,ET0,Transport Holding Account,41311,Vehicle Hire Charges,320000,26/07/2022,5100504491,1628,Peter Douglass Platforms,104676
WARRINGTON BOROUGH COUNCIL,http://opendatacommunities.org/id/unitary-authority/warrington,ET0,Transport Holding Account,41311,Vehicle Hire Charges,320000,26/07/2022,5100504492,1308,Peter Douglass Platforms,104676
WARRINGTON BOROUGH COUNCIL,http://opendatacommunities.org/id/unitary-authority/warrington,FWB,ASC Stationery,54100,Accommodation Allowance,550650,26/07/2022,5100504496,1800,Villaggio Hotel,108074
WARRINGTON BOROUGH COUNCIL,http://opendatacommunities.org/id/unitary-authority/warrington,FWB,DSG Independent School Fees,32011,Fees (Including Agents Fees),441450,26/07/2022,5100504510,4187.5,Belmont School Limited,400047
